Workbook

Sheet Instructions
B12: The goal of this tool is to to assist policymakers in planning and prioritizing coastal marsh areas for adaptation and conservation.
B14: This tool was prepared by Warren Pinnacle Consulting, Inc. in the course of performing work contracted for and sponsored by the New York State Energy Research and Development Authority (hereafter NYSERDA). The opinions expressed here do not necessarily reflect those of NYSERDA or the State of New York, and reference to any specific product, service, process, or method does not constitute an implied or expressed recommendation or endorsement of it. Further, NYSERDA, the State of New York, and the contractor make no warranties or representations, expressed or implied, as to the fitness for particular purpose or merchantability of any product, apparatus, or service, or the usefulness, completeness, or accuracy of any processes, methods, or other information contained, described, disclosed, or referred to in this report. NYSERDA, the State of New York, and the contractor make no representation that the use of any product, apparatus, process, method, or other information will not infringe privately owned rights and will assume no liability for any loss, injury, or damage resulting from, or occurring in connection with, the use of information contained, described, disclosed, or referred to in this tool.
B151: to unprotect cells password "SLAMM"

Sheet Model Summary
A11: Site details | G11: ="Scenarios Included: "&'Data Setup'!C4 -> Scenarios Included: 5
C12: Site Name | D12: Historic Pct. Annual Marsh Loss (yr-1) | H12: Scenario Name
B13: ='Data Setup'!S5 -> Site 1 | C13: ='Data Setup'!T5 -> Dosoris Pond/West Pond | D13: ='Model Inputs'!C91 -> 0.008792431328 | G13: Scen. 1 | H13: ='Data Setup'!D7 -> No Migration | I13: (no-action base case)
B14: ='Data Setup'!S6 -> Site 2 | C14: ='Data Setup'!T6 -> Lattingtown | D14: ='Model Inputs'!C92 -> 0.01558100538 | G14: Scen. 2 | H14: ='Data Setup'!D8 -> Migr. Undeveloped
B15: ='Data Setup'!S7 -> Site 3 | C15: ='Data Setup'!T7 -> Hempstead Harbor | D15: ='Model Inputs'!C93 -> 0.04025657903 | G15: Scen. 3 | H15: ='Data Setup'!D9 -> Migr. All Dry
B16: ='Data Setup'!S8 -> Site 4 | C16: ='Data Setup'!T8 -> Cuba Middle and East Island | D16: ='Model Inputs'!C94 -> 0.008020026263 | G16: Scen. 4 | H16: ='Data Setup'!D10 -> Restore to 1974
B17: ='Data Setup'!S9 -> Site 5 | C17: ='Data Setup'!T9 -> Marine Nature Study Area | D17: ='Model Inputs'!C95 -> 0.003017722115 | G17: Scen. 5 | H17: ='Data Setup'!D11 -> Thin Layer Depo.
B18: ='Data Setup'!S10 -> Site 6 | C18: ='Data Setup'!T10 -> Seamans Neck Park | D18: ='Model Inputs'!C96 -> 0.004692800237
C20: (information only, to change model inputs use the next tab)
C24: Scenario Details:
C25: Scenario 1, No Migration: Marsh remains in its current footprint only with no migration to upland whether it be developed or not.
C26: Scenario 2, Migration to Undeveloped Land: Marsh is allowed to migrate onto undeveloped upland in the case of SLR.
C27: Scenario 3, Migration to all dry land. Marsh is allowed to migrate onto adjacent upland regardless of development status.
C28: Scenario 4, Restore to 1974 wetlands footprint. Marsh is restored off shore back to its 1974 boundaries.
C29: Scenario 5, Thin Layer Deposition. 20 cm of sediment is added to marsh lands where accessible to build elevation capital.

Sheet Model Inputs
I2: 1. Fill in relative ranks of ecosystem services - these weight the importance of each ecosystem service within the overall analysis. Enter zero if a service has no weight (this will negate all site-specific ranks for that service). The total does not have to equal 100.
I6: 2. Provide weights for each service at each site. Enter zero to give no weight, higher numbers to give more weight. The total does not have to equal 100.
A9: Ecosystem Service Valuation | I9: 3. Press the Calulate button to run the tool. Excel will temporarily freeze. See progress at the lower left of the window.
C11: Beginning Year: | D11: 2016 | E11: End Year: | F11: 2100
C15: Nutrient Sequestration | F15: Recreation | I15: Habitat | K15: Other
C16: Carbon Sequestration | D16: Nitrogen Sequestration | E16: Phosphorus Sequestration | F16: Dry-land Recreation | G16: Wetland Recreation | H16: Natural services to under-served communities | I16: Nekton habitat | J16: Habitat fragmentation/connectivity | K16: Flood Vulnerability Reduction | L16: Political/ Cultural/ Historic value | M16: General preservation of natural areas | N16: Total Relative Rank
B17: Ecoservice Relative Rank | C17: 7.167919799 | D17: 7.167919799 | E17: 7.167919799 | F17: 4.461152882 | G17: 9.072681704 | H17: 9.072681704 | I17: 9.072681704 | J17: 12.73182957 | K17: 14.48621554 | L17: 7.167919799 | M17: 12.43107769 | N17: =SUM(C17:M17) -> 100
C18: Site-specific "Quality of Habitat," should not reflect the numbers of acres of a particular land-cover type
A19: Site 1 | B19: Dosoris Pond/West Pond | C19: 20.33 | D19: 23.67 | E19: 35 | F19: 7.67 | G19: 6.67 | H19: 7.67 | I19: 6 | J19: 6 | K19: 7.67 | L19: 9 | M19: 6
A20: Site 2 | B20: Lattingtown | C20: 30.33 | D20: 32 | E20: 47.5 | F20: 6.67 | G20: 6.33 | H20: 7.33 | I20: 9 | J20: 6.67 | K20: 7.33 | L20: 9 | M20: 6.67
A21: Site 3 | B21: Hempstead Harbor | C21: 28.67 | D21: 30.33 | E21: 45 | F21: 6.33 | G21: 6.67 | H21: 6.33 | I21: 6.5 | J21: 7 | K21: 7.33 | L21: 8.5 | M21: 6
A22: Site 4 | B22: Cuba Middle and East Island | C22: 27 | D22: 23.67 | E22: 35 | F22: 6.33 | G22: 6.33 | H22: 6 | I22: 10.5 | J22: 6.33 | K22: 4 | L22: 9 | M22: 7.33
A23: Site 5 | B23: Marine Nature Study Area | C23: 33.67 | D23: 30.33 | E23: 45 | F23: 6.33 | G23: 6.33 | H23: 6.67 | I23: 11 | J23: 6 | K23: 6 | L23: 9.5 | M23: 6.67
A24: Site 6 | B24: Seamans Neck Park | C24: 28.67 | D24: 30.33 | E24: 45 | F24: 7 | G24: 7 | H24: 7 | I24: 8.5 | J24: 7.33 | K24: 8 | L24: 9.5 | M24: 6.33
A25: Site 7
A26: Site 8
A27: Site 9
A28: Site 10
A29: Site 11
A30: Site 12
B44: Total spent: | C44: =SUM(C19:C31) -> 168.67 | D44: =SUM(D19:D31) -> 170.33 | E44: 252.5 | F44: 40.33 | G44: 39.33 | H44: 41 | I44: 51.5 | J44: 39.33 | K44: 40.33 | L44: 54.5 | M44: 39
B48: Discount Factors | C48: Discount Factors | G48: Discount Rate: | H48: 0
D49: Year | E49: Discount Factor
C50: Timestep 1 | D50: 2016 | E50: 1 | G50: 2016 | H50: 1
C51: Timestep 2 | D51: 2020 | E51: 1 | G51: 2020 | H51: =(1/((1+$H$48)^(G51-$G$50))) -> 1
C52: Timestep 3 | D52: 2040 | E52: 1 | G52: 2040 | H52: 1
C53: Timestep 4 | D53: 2050 | E53: 1 | G53: 2050 | H53: 1
C54: Timestep 5 | D54: 2065 | E54: 1 | G54: 2065 | H54: 1
C55: Timestep 6 | D55: 2075 | E55: 1 | G55: 2075 | H55: 1
C56: Timestep 7 | D56: 2085 | E56: 1 | G56: 2085 | H56: 1
C57: Timestep 8 | D57: 2100 | E57: 1 | G57: 2100 | H57: 1
C58: Timestep 9
C59: Timestep 10 | G59: Example discount rate calcuation
D60: interpolates within up to 10 timesteps | G60: that can be copied into the discount
G61: factors table to the left.
C67: Adaptation Strategy Costs (millions of dollars per parcel) | J67: Supporting Data for cost calculations
C68: ='Model Summary'!H13 -> No Migration | D68: ='Model Summary'!H14 -> Migr. Undeveloped | E68: ='Model Summary'!H15 -> Migr. All Dry | F68: ='Model Summary'!H16 -> Restore to 1974 | G68: ='Model Summary'!H17 -> Thin Layer Depo. | P68: acres | S68: acres
B69: Cost Details | C69: no cost, existing marsh footprint | D69: purchase undeveloped land or easement when required | E69: purchase developed and undeveloped land when required | F69: marsh restoration costs | G69: thin layer deposition costs | J69: Acres Restored for 1974 | M69: Salt Marsh APPLIED in 2016 for Thin Layer Depo (acres) | P69: Avg Undeveloped Dry Land Converting to Wetland by 2100 | S69: Avg Developed Dry Land Converting to Wetland by 2100
A70: Site 1 | B70: Dosoris Pond/West Pond | C70: N / A | D70: =3*P70 -> 181.1807219 | E70: =4*S70+D70 -> 228.8433227 | F70: 4.301676328 | G70: 10.93004288 | J70: 6.890399372 | L70: Dosoris Pond/West Pond | M70: 19.89813013 | O70: Dosoris Pond/West Pond | P70: 60.39357397 | Q70: assume private; assume NYC price | S70: 11.91565021
A71: Site 2 | B71: Lattingtown | C71: N / A | D71: =3*P71 -> 72.53359552 | E71: =4*S71+D71 -> 80.50174335 | F71: 16.17997696 | G71: 1 | J71: 25.91699016 | L71: Lattingtown | M71: 0.1729735 | O71: Lattingtown | P71: 24.17786517 | Q71: assume private; assume NYC price | S71: 1.992036957
A72: Site 3 | B72: Hempstead Harbor | C72: N / A | D72: 16.87270006 | E72: 52.92383693 | F72: 11.25436511 | G72: 1 | J72: 18.02717462 | L72: Hempstead Harbor | M72: 0.228572125 | O72: Hempstead Harbor | P72: 5.624233353 | Q72: assume private; assume NYC price | S72: 9.012784217
A73: Site 4 | B73: Cuba Middle and East Island | C73: N / A | D73: 0 | E73: 0 | F73: 38.16982794 | G73: 29.27799129 | J73: 61.14020173 | L73: Cuba Middle and East Island | M73: 53.3005485
A74: Site 5 | B74: Marine Nature Study Area | C74: N / A | D74: 18.78306881 | E74: 20.64129841 | F74: 2.420073783 | G74: 2.677368466 | J74: 3.876459687 | L74: Marine Nature Study Area | M74: 4.874146125 | O74: Marine Nature Study Area | P74: 6.261022937 | Q74: assume private; assume NYC price | S74: 0.4645574
A75: Site 6 | B75: Seamans Neck Park | C75: N / A | D75: 35.99232588 | E75: 43.08374517 | F75: 2.077368195 | G75: 1.201252772 | J75: 3.32751593 | L75: Seamans Neck Park | M75: 2.18687925 | O75: Seamans Neck Park | P75: 11.99744196 | Q75: assume private; assume NYC price | S75: 1.772854822
A76: Site 7
A77: Site 8
A78: Site 9
A79: Site 10
A80: Site 11
A81: Site 12
B85: Total Strategy Cost | C85: =SUM(C70:C81) -> 0 | D85: =SUM(D70:D81) -> 325.3624122 | E85: =SUM(E70:E81) -> 425.9939466 | F85: =SUM(F70:F81) -> 74.40328832 | G85: =SUM(G70:G81) -> 46.08665541
B90: ='Model Summary'!C12 -> Site Name | C90: ='Model Summary'!D12 -> Historic Pct. Annual Marsh Loss (yr-1)
A91: ='Model Summary'!B13 -> Site 1 | B91: ='Model Summary'!C13 -> Dosoris Pond/West Pond | C91: 0.008792431328
A92: ='Model Summary'!B14 -> Site 2 | B92: ='Model Summary'!C14 -> Lattingtown | C92: 0.01558100538
A93: ='Model Summary'!B15 -> Site 3 | B93: ='Model Summary'!C15 -> Hempstead Harbor | C93: 0.04025657903
A94: ='Model Summary'!B16 -> Site 4 | B94: ='Model Summary'!C16 -> Cuba Middle and East Island | C94: 0.008020026263
A95: ='Model Summary'!B17 -> Site 5 | B95: ='Model Summary'!C17 -> Marine Nature Study Area | C95: 0.003017722115
A96: ='Model Summary'!B18 -> Site 6 | B96: ='Model Summary'!C18 -> Seamans Neck Park | C96: 0.004692800237

Sheet Model Outputs
C9: Sort By | D9: 2 | F9: 3
H12: Nutrient Sequestration | K12: Recreation and Human Use | N12: Habitat | P12: Other Wetland Benefits
H13: 7.167919799 | I13: 7.167919799 | J13: 7.167919799 | K13: 4.461152882 | L13: 9.072681704 | M13: 9.072681704 | N13: 9.072681704 | O13: 12.73182957 | P13: 14.48621554 | Q13: 7.167919799 | R13: 12.43107769
A14: # | B14: Site number | C14: Site Name | D14: Adaptation Strategy | E14: Run Identification | F14: Carbon Sequestration | G14: Overall benefit | H14: Carbon Sequestration | I14: Nitrogen Sequestration | J14: Phosphorus Sequestration | K14: Undeveloped Dry Land Recreation | L14: Marsh Land Recreation | M14: Natural Areas for Underserved Communities | N14: Nekton Habitat | O14: Habitat connectivity / Frag | P14: Flood Vulnerability Reduction | Q14: Political/Cultural/Historic value | R14: General preservation of wetlands | S14: Incremental Benefit | T14: Cost of Strategy (millions) | U14: Cost per Unit Benefit | V14: Benefit per Unit Cost
A15: 5 | B15: Site 1 | C15: Dosoris Pond/West Pond | D15: No Migration | E15: Default | F15: 2017-10-27T15:52:03 | G15: =SUM(H15:R15) -> 4164.396357 | H15: 131.8471492 | I15: 147.4422028 | J15: 127.9084421 | K15: 1163.245672 | L15: 167.2837683 | M15: 474.6572478 | N15: 287.9039887 | O15: 492.7350115 | P15: 384.2194382 | Q15: 313.7383307 | R15: 473.4151066 | S15: N / A | T15: N / A | U15: N / A | V15: N / A
A16: 4 | B16: Site 2 | C16: Lattingtown | D16: No Migration | E16: Default | F16: 2017-10-27T15:52:03 | G16: =SUM(H16:R16) -> 7243.083705 | H16: 525.7789721 | I16: 598.9296059 | J16: 609.1669248 | K16: 837.4098995 | L16: 635.5107255 | M16: 622.3306707 | N16: 883.8851427 | O16: 747.9290306 | P16: 629.695275 | Q16: 430.4275481 | R16: 722.0199096 | S16: N / A | T16: N / A | U16: N / A | V16: N / A
A17: 3 | B17: Site 3 | C17: Hempstead Harbor | D17: No Migration | E17: Default | F17: 2017-10-27T15:52:03 | G17: =SUM(H17:R17) -> 1697.411327 | H17: 99.3374878 | I17: 112.7408136 | J17: 113.7639992 | K17: 110.9847331 | L17: 131.2815551 | M17: 113.2878741 | N17: 77.57780285 | O17: 169.9991673 | P17: 545.8355529 | Q17: 85.69174015 | R17: 136.9106009 | S17: N / A | T17: N / A | U17: N / A | V17: N / A
A18: 2 | B18: Site 4 | C18: Cuba Middle and East Island | D18: No Migration | E18: Default | F18: 2017-10-27T15:52:03 | G18: =SUM(H18:R18) -> 19269.34846 | H18: 1318.328366 | I18: 1203.245016 | J18: 1166.779384 | K18: 7.721416065e-12 | L18: 1597.537022 | M18: 1875.138384 | N18: 3592.390975 | O18: 2745.90832 | P18: 1264.885734 | Q18: 1584.400249 | R18: 2920.735014 | S18: N / A | T18: N / A | U18: N / A | V18: N / A
A19: 1 | B19: Site 5 | C19: Marine Nature Study Area | D19: No Migration | E19: Default | F19: 2017-10-27T15:52:03 | G19: =SUM(H19:R19) -> 6145.605889 | H19: 406.962125 | I19: 388.4153294 | J19: 386.1693221 | K19: 35.71899998 | L19: 418.2124158 | M19: 458.1425169 | N19: 480.2358777 | O19: 581.3913789 | P19: 2038.662856 | Q19: 367.5688402 | R19: 584.126227 | S19: N / A | T19: N / A | U19: N / A | V19: N / A
A20: 0 | B20: Site 6 | C20: Seamans Neck Park | D20: No Migration | E20: Default | F20: 2017-10-27T15:52:03 | G20: =SUM(H20:R20) -> 3515.614921 | H20: 159.075279 | I20: 176.1312966 | J20: 172.5055478 | K20: 127.8286658 | L20: 204.2082273 | M20: 240.2549932 | N20: 277.9555434 | O20: 338.7198322 | P20: 1358.262674 | Q20: 183.6700342 | R20: 277.0028269 | S20: N / A | T20: N / A | U20: N / A | V20: N / A
A21: 5 | B21: Site 1 | C21: Dosoris Pond/West Pond | D21: Migr. Undeveloped | E21: Default | F21: 2017-10-27T15:52:03 | G21: =SUM(H21:R21) -> 6677.482582 | H21: 300.9301493 | I21: 354.1819161 | J21: 330.5561224 | K21: 1059.464332 | L21: 462.1382249 | M21: 860.4128831 | N21: 299.484206 | O21: 886.9629651 | P21: 696.4759445 | Q21: 568.7145891 | R21: 858.1612493 | S21: 2513.086224 | T21: 181.1807219 | U21: 0.0720949087 | V21: 13.87060498
A22: 4 | B22: Site 2 | C22: Lattingtown | D22: Migr. Undeveloped | E22: Default | F22: 2017-10-27T15:52:03 | G22: =SUM(H22:R22) -> 8479.088503 | H22: 633.7983527 | I22: 719.1151575 | J22: 728.0340448 | K22: 799.0631331 | L22: 756.9332549 | M22: 775.7349362 | N22: 941.7287272 | O22: 903.2406836 | P22: 784.9149108 | Q22: 536.5277694 | R22: 899.9975332 | S22: 1236.004799 | T22: 72.53359552 | U22: 0.05868391093 | V22: 17.04044574
A23: 3 | B23: Site 3 | C23: Hempstead Harbor | D23: Migr. Undeveloped | E23: Default | F23: 2017-10-27T15:52:03 | G23: =SUM(H23:R23) -> 2051.330809 | H23: 120.4404832 | I23: 136.1205399 | J23: 136.6795396 | K23: 103.4826432 | L23: 157.1447508 | M23: 141.995126 | N23: 82.942066 | O23: 209.3648947 | P23: 684.1507856 | Q23: 107.4061062 | R23: 171.6038735 | S23: 353.9194815 | T23: 16.87270006 | U23: 0.04767383809 | V23: 20.97586517
A24: 2 | B24: Site 4 | C24: Cuba Middle and East Island | D24: Migr. Undeveloped | E24: Default | F24: 2017-10-27T15:52:03 | G24: =SUM(H24:R24) -> 19326.97539 | H24: 1327.431762 | I24: 1212.563392 | J24: 1177.044371 | K24: 7.721416065e-12 | L24: 1612.927443 | M24: 1878.113865 | N24: 3588.698073 | O24: 2751.019576 | P24: 1266.892863 | Q24: 1586.914386 | R24: 2925.369655 | S24: 57.62692327 | T24: 0 | U24: 0 | V24: N / A
A25: 1 | B25: Site 5 | C25: Marine Nature Study Area | D25: Migr. Undeveloped | E25: Default | F25: 2017-10-27T15:52:03 | G25: =SUM(H25:R25) -> 6577.231413 | H25: 434.9591584 | I25: 414.6385674 | J25: 411.6434123 | K25: 26.80079325 | L25: 445.3059592 | M25: 493.9268539 | N25: 496.5152184 | O25: 629.5143391 | P25: 2197.897583 | Q25: 396.2786996 | R25: 629.7508284 | S25: 431.6255249 | T25: 18.78306881 | U25: 0.0435170483 | V25: 22.97949974
A26: 0 | B26: Site 6 | C26: Seamans Neck Park | D26: Migr. Undeveloped | E26: Default | F26: 2017-10-27T15:52:03 | G26: =SUM(H26:R26) -> 4194.048678 | H26: 194.715753 | I26: 215.894383 | J26: 211.8160938 | K26: 113.1302978 | L26: 251.0830687 | M26: 291.3744116 | N26: 320.0178594 | O26: 390.0636117 | P26: 1647.262276 | Q26: 222.7497853 | R26: 335.9411375 | S26: 678.4337573 | T26: 35.99232588 | U26: 0.05305208576 | V26: 18.84940027
A27: 5 | B27: Site 1 | C27: Dosoris Pond/West Pond | D27: Migr. All Dry | E27: Default | F27: 2017-10-27T15:52:03 | G27: =SUM(H27:R27) -> 7122.239936 | H27: 328.6394869 | I27: 387.9575825 | J27: 363.5367263 | K27: 1059.465092 | L27: 509.9819852 | M27: 924.9545391 | N27: 302.5272873 | O27: 962.5476885 | P27: 748.7202939 | Q27: 611.375249 | R27: 922.5340048 | S27: 2957.843578 | T27: 228.8433227 | U27: 0.07736829777 | V27: 12.92519066
A28: 4 | B28: Site 2 | C28: Lattingtown | D28: Migr. All Dry | E28: Default | F28: 2017-10-27T15:52:03 | G28: =SUM(H28:R28) -> 8538.136181 | H28: 638.6739272 | I28: 724.5941666 | J28: 733.5184564 | K28: 799.063463 | L28: 762.5872038 | M28: 782.1743303 | N28: 947.8653176 | O28: 909.7788727 | P28: 791.4305103 | Q28: 540.9814991 | R28: 907.468434 | S28: 1295.052476 | T28: 80.50174335 | U28: 0.06216098948 | V28: 16.08726001
A29: 3 | B29: Site 3 | C29: Hempstead Harbor | D29: Migr. All Dry | E29: Default | F29: 2017-10-27T15:52:03 | G29: =SUM(H29:R29) -> 2772.999391 | H29: 162.9922307 | I29: 183.345721 | J29: 183.0674806 | K29: 103.4826426 | L29: 209.5883888 | M29: 199.2076742 | N29: 84.06729668 | O29: 296.0113228 | P29: 959.8082043 | Q29: 150.6820777 | R29: 240.7463515 | S29: 1075.588064 | T29: 52.92383693 | U29: 0.04920455954 | V29: 20.32331982
A30: 2 | B30: Site 4 | C30: Cuba Middle and East Island | D30: Migr. All Dry | E30: Default | F30: 2017-10-27T15:52:03 | G30: =SUM(H30:R30) -> 19326.93242 | H30: 1327.430556 | I30: 1212.562493 | J30: 1177.043744 | K30: 7.721416065e-12 | L30: 1612.92685 | M30: 1878.110167 | N30: 3588.677966 | O30: 2751.015126 | P30: 1266.890369 | Q30: 1586.911261 | R30: 2925.363893 | S30: 57.58395928 | T30: 0 | U30: 0 | V30: N / A
A31: 1 | B31: Site 5 | C31: Marine Nature Study Area | D31: Migr. All Dry | E31: Default | F31: 2017-10-27T15:52:03 | G31: =SUM(H31:R31) -> 6591.237145 | H31: 436.0013524 | I31: 415.6390884 | J31: 412.645137 | K31: 26.80079325 | L31: 446.3965857 | M31: 495.0502121 | N31: 496.560238 | O31: 630.8843162 | P31: 2202.896352 | Q31: 397.1799726 | R31: 631.1830967 | S31: 445.6312561 | T31: 20.64129841 | U31: 0.04631923397 | V31: 21.5893035
A32: 0 | B32: Site 6 | C32: Seamans Neck Park | D32: Migr. All Dry | E32: Default | F32: 2017-10-27T15:52:03 | G32: =SUM(H32:R32) -> 4262.965028 | H32: 198.3552051 | I32: 219.9824083 | J32: 215.8908599 | K32: 113.1302223 | L32: 255.9725233 | M32: 296.3463862 | N32: 323.5970946 | O32: 396.0950366 | P32: 1675.37094 | Q32: 226.5507583 | R32: 341.6735929 | S32: 747.3501071 | T32: 43.08374517 | U32: 0.05764867732 | V32: 17.34645176
A33: 5 | B33: Site 1 | C33: Dosoris Pond/West Pond | D33: Restore to 1974 | E33: Default | F33: 2017-10-27T15:52:03 | G33: =SUM(H33:R33) -> 4684.672146 | H33: 153.3692675 | I33: 171.2774556 | J33: 148.2790932 | K33: 1161.423589 | L33: 193.5325704 | M33: 555.0741658 | N33: 354.9128189 | O33: 576.975115 | P33: 449.31429 | Q33: 366.8922007 | R33: 553.6215798 | S33: 520.275789 | T33: 4.301676328 | U33: 0.008268069395 | V33: 120.947219
A34: 4 | B34: Site 2 | C34: Lattingtown | D34: Restore to 1974 | E34: Default | F34: 2017-10-27T15:52:03 | G34: =SUM(H34:R34) -> 8513.698661 | H34: 595.7189224 | I34: 667.9366433 | J34: 666.7886235 | K34: 837.4098995 | L34: 685.9938025 | M34: 800.2939305 | N34: 984.9671595 | O34: 982.8208837 | P34: 809.7645352 | Q34: 553.5137034 | R34: 928.4905574 | S34: 1270.614956 | T34: 16.17997696 | U34: 0.01273397332 | V34: 78.53008441
A35: 3 | B35: Site 3 | C35: Hempstead Harbor | D35: Restore to 1974 | E35: Default | F35: 2017-10-27T15:52:03 | G35: =SUM(H35:R35) -> 3569.048498 | H35: 168.8063802 | I35: 181.453878 | J35: 171.094783 | K35: 110.9847331 | L35: 187.1287033 | M35: 274.88674 | N35: 182.2547554 | O35: 427.8666091 | P35: 1324.439688 | Q35: 207.9262523 | R35: 332.2059756 | S35: 1871.637171 | T35: 11.25436511 | U35: 0.00601311263 | V35: 166.3032212
A36: 2 | B36: Site 4 | C36: Cuba Middle and East Island | D36: Restore to 1974 | E36: Default | F36: 2017-10-27T15:52:03 | G36: =SUM(H36:R36) -> 22261.09065 | H36: 1446.579776 | I36: 1308.342913 | J36: 1254.136452 | K36: 7.721416065e-12 | L36: 1701.325147 | M36: 2175.670449 | N36: 4517.085591 | O36: 3163.156874 | P36: 1467.611422 | Q36: 1838.33515 | R36: 3388.846879 | S36: 2991.74219 | T36: 38.16982794 | U36: 0.01275839478 | V36: 78.37976619
A37: 1 | B37: Site 5 | C37: Marine Nature Study Area | D37: Restore to 1974 | E37: Default | F37: 2017-10-27T15:52:03 | G37: =SUM(H37:R37) -> 6513.007434 | H37: 419.3558758 | I37: 398.8519531 | J37: 394.8746324 | K37: 35.71899998 | L37: 426.2577232 | M37: 484.0258966 | N37: 585.2593663 | O37: 609.3607561 | P37: 2153.839866 | Q37: 388.3351378 | R37: 617.1272264 | S37: 367.4015454 | T37: 2.420073783 | U37: 0.006586999464 | V37: 151.8141918
A38: 0 | B38: Site 6 | C38: Seamans Neck Park | D38: Restore to 1974 | E38: Default | F38: 2017-10-27T15:52:03 | G38: =SUM(H38:R38) -> 3795.013815 | H38: 166.6437915 | I38: 183.6090319 | J38: 178.733134 | K38: 127.8286658 | L38: 210.5622909 | M38: 259.8002267 | N38: 338.9583112 | O38: 361.9687153 | P38: 1468.76011 | Q38: 198.6119659 | R38: 299.5375716 | S38: 279.3988948 | T38: 2.077368195 | U38: 0.007435133902 | V38: 134.496569
A39: 5 | B39: Site 1 | C39: Dosoris Pond/West Pond | D39: Thin Layer Depo. | E39: Default | F39: 2017-10-27T15:52:03 | G39: =SUM(H39:R39) -> 4269.70783 | H39: 137.3653705 | I39: 153.4433751 | J39: 132.8905782 | K39: 1163.269335 | L39: 173.5128902 | M39: 496.6665465 | N39: 269.1292672 | O39: 517.742408 | P39: 402.0352424 | Q39: 328.2860083 | R39: 495.3668087 | S39: 105.3114727 | T39: 10.93004288 | U39: 0.1037877697 | V39: 9.635046624
A40: 4 | B40: Site 2 | C40: Lattingtown | D40: Thin Layer Depo. | E40: Default | F40: 2017-10-27T15:52:03 | G40: =SUM(H40:R40) -> 7225.3579 | H40: 525.8834131 | I40: 599.0312202 | J40: 609.2498237 | K40: 837.4098995 | L40: 635.5815335 | M40: 622.6092185 | N40: 884.3832777 | O40: 728.2691152 | P40: 629.9771188 | Q40: 430.6202024 | R40: 722.343077 | S40: 0 | T40: 1 | U40: N / A | V40: 0
A41: 3 | B41: Site 3 | C41: Hempstead Harbor | D41: Thin Layer Depo. | E41: Default | F41: 2017-10-27T15:52:03 | G41: =SUM(H41:R41) -> 1695.57337 | H41: 99.34629373 | I41: 112.7491126 | J41: 113.7703643 | K41: 110.9847331 | L41: 131.2871747 | M41: 113.3117021 | N41: 77.57915376 | O41: 167.9453155 | P41: 545.9503592 | Q41: 85.70976381 | R41: 136.9393975 | S41: 0 | T41: 1 | U41: N / A | V41: 0
A42: 2 | B42: Site 4 | C42: Cuba Middle and East Island | D42: Thin Layer Depo. | E42: Default | F42: 2017-10-27T15:52:03 | G42: =SUM(H42:R42) -> 19816.18821 | H42: 1357.455677 | I42: 1235.317608 | J42: 1193.45026 | K42: 7.721416065e-12 | L42: 1629.23995 | M42: 1966.736471 | N42: 3478.727598 | O42: 2903.381577 | P42: 1326.673767 | Q42: 1661.796154 | R42: 3063.409145 | S42: 546.8397437 | T42: 29.27799129 | U42: 0.05354035004 | V42: 18.6775021
A43: 1 | B43: Site 5 | C43: Marine Nature Study Area | D43: Thin Layer Depo. | E43: Default | F43: 2017-10-27T15:52:03 | G43: =SUM(H43:R43) -> 6225.731629 | H43: 411.9771111 | I43: 392.6399524 | J43: 389.6952591 | K43: 35.71899998 | L43: 421.4731296 | M43: 468.6025089 | N43: 449.093541 | O43: 597.899428 | P43: 2085.208191 | Q43: 375.9609169 | R43: 597.4625916 | S43: 80.12574048 | T43: 2.677368466 | U43: 0.03341458626 | V43: 29.92705019
A44: 0 | B44: Site 6 | C44: Seamans Neck Park | D44: Thin Layer Depo. | E44: Default | F44: 2017-10-27T15:52:03 | G44: =SUM(H44:R44) -> 3562.80063 | H44: 161.1865754 | I44: 178.2206323 | J44: 174.2501604 | K44: 127.8286658 | L44: 205.9932713 | M44: 245.6770529 | N44: 268.4202989 | O44: 341.238816 | P44: 1388.91586 | Q44: 187.8150881 | R44: 283.2542094 | S44: 47.18570981 | T44: 1.201252772 | U44: 0.0254579782 | V44: 39.28041701

Sheet Ecosystem Service Benefits
C1: Graphs for DMMT Run 'Default' run on 10/27/2017 3:52:03 PM

Sheet Adaptation Strategy Benefits
B49: This 'Current Utility' graph is for DMMT Run 'Default' run on 10/27/2017 3:52:03 PM

Sheet Utility1
A1: N Points | B1: 2
A3: X Axis | B3: Utility [0..1] | D3: Function Name: | E3: Carbon Sequestration
A4: 0 | B4: =IF(A4>$E$9,1,0) -> 0 | D4: Optional Function Description: | E4: Linear function of marsh area and marsh type
A5: 1000000 | B5: =IF(A5>$E$9,1,0) -> 1
D6: Number of X Categories | E6: 3
E8: Cat # | F8: Weight | G8: description
D9: X1 | E9: 6 | F9: 1 | G9: Tidal Fresh acres
D10: X2 | E10: 33 | F10: 0.75 | G10: (aggregated) transitional acres
D11: X3 | E11: 32 | F11: 0.3225806452 | G11: salt marsh acres
D12: etc. | G12: (agg = trans + IFM)
D14: having both weights at 100% results in additive acrage

Sheet Utility2
A1: N Points | B1: 2
A3: X Axis | B3: Utility [0..1] | D3: Function Name: | E3: Nitrogen Sequestration
A4: 0 | B4: =IF(A4>$E$9,1,0) -> 0 | D4: Optional Function Description: | E4: Linear function of marsh area and marsh type
A5: 1000000 | B5: =IF(A5>$E$9,1,0) -> 1
D6: Number of X Categories | E6: 3
E8: Cat # | F8: Weight | G8: description
D9: X1 | E9: 6 | F9: 1 | G9: Tidal Fresh acres
D10: X2 | E10: 33 | F10: 0.7926829268 | G10: (aggregated) transitional acres
D11: X3 | E11: 32 | F11: 0.2926829268 | G11: salt marsh acres
D12: etc. | G12: (agg = trans + IFM)
D14: having both weights at 100% results in additive acrage

Sheet Utility3
A1: N Points | B1: 2
A3: X Axis | B3: Utility [0..1] | D3: Function Name: | E3: Phosphorus Sequestration
A4: 0 | B4: =IF(A4>$E$9,1,0) -> 0 | D4: Optional Function Description: | E4: Linear function of marsh area and marsh type
A5: 1000000 | B5: =IF(A5>$E$9,1,0) -> 1
D6: Number of X Categories | E6: 3
E8: Cat # | F8: Weight | G8: description
D9: X1 | E9: 6 | F9: 0.7 | G9: Tidal Fresh acres
D10: X2 | E10: 33 | F10: 1 | G10: (aggregated) transitional acres
D11: X3 | E11: 32 | F11: 0.3 | G11: salt marsh acres
D12: etc. | G12: (agg = trans + IFM)
D14: having both weights at 100% results in additive acrage

Sheet Utility4
A1: N Points | B1: 2
A3: X Axis | B3: Utility [0..1] | D3: Function Name: | E3: Undeveloped Dry Land Recreation
A4: 0 | B4: =IF(A4>$E$9,1,0) -> 0 | D4: Optional Function Description: | E4: U=1 if Area >10, 0 otherwise
A5: 1000 | B5: 1
D6: Number of X Categories | E6: 1
E8: Cat # | F8: Weight | G8: description
D9: X1 | E9: 2 | F9: 1 | G9: undeveloped dry land acres
D10: X2
D11: X3
D12: etc.

Sheet Utility5
A1: N Points | B1: 2
A3: X Axis | B3: Utility [0..1] | D3: Function Name: | E3: Marsh Land Recreation
A4: 0 | B4: =IF(A4>$E$9,1,0) -> 0 | D4: Optional Function Description: | E4: U=0 if Area < 1, upward utility to 60 acres then flat
A5: 1000 | B5: 1
D6: Number of X Categories | E6: 2
E8: Cat # | F8: Weight | G8: description
D9: X1 | E9: 32 | F9: 0.25 | G9: (aggregated) saltmarsh acres
D10: X2 | E10: 33 | F10: 1 | G10: (aggregated) transitional acres
D11: X3
D12: etc.
D14: having both weights at 100% results in additive acrage

Sheet Utility6
A1: N Points | B1: 2
A3: X Axis | B3: Utility [0..1] | D3: Function Name: | E3: Natural Areas for Underserved Communities
A4: 0 | B4: =IF(A4>$E$9,1,0) -> 0 | D4: Optional Function Description: | E4: Linear function of marsh area and marsh type
A5: 1000000 | B5: =IF(A5>$E$9,1,0) -> 1
D6: Number of X Categories | E6: 3
E8: Cat # | F8: Weight | G8: description
D9: X1 | E9: 6 | F9: 1 | G9: Tidal Fresh acres
D10: X2 | E10: 33 | F10: 1 | G10: (aggregated) transitional acres
D11: X3 | E11: 32 | F11: 1 | G11: salt marsh acres
D12: etc. | G12: (agg = trans + IFM)
D14: having both weights at 100% results in additive acrage

Sheet Utility7
A1: N Points | B1: 2
A3: X Axis | B3: Utility [0..1] | D3: Function Name: | E3: Nekton Habitat
A4: 0 | B4: =IF(A4>$E$9,1,0) -> 0 | D4: Optional Function Description: | E4: Linear function of marsh to open water interface
A5: 5000000 | B5: =IF(A5>$E$9,1,0) -> 1
D6: Number of X Categories | E6: 1
E8: Cat # | F8: Weight | G8: description
D9: X1 | E9: 35 | F9: 1 | G9: marsh-to OW interface
D10: X2
D11: X3
D12: etc.
D14: having both weights at 100% results in additive acrage

Sheet Utility8
A1: N Points | B1: 2
A3: X Axis | B3: Utility [0..1] | D3: Function Name: | E3: Habitat connectivity / Frag
A4: 0 | B4: 0 | D4: Optional Function Description: | E4: Non Fragmentation Metric weighted by Wetland Area
A5: 1000 | B5: 1
D6: Number of X Categories | E6: 1
E8: Cat # | F8: Weight | G8: description
D9: X1 | E9: 36 | F9: 1 | G9: non-fragmentation metric for salt & trans. Marshes
D10: X2
D11: X3
D12: etc.

Sheet Utility9
A1: N Points | B1: 2
A3: X Axis | B3: Utility [0..1] | D3: Function Name: | E3: Flood Vulnerability Reduction
A4: 0 | B4: =IF(A4>$E$9,1,0) -> 0 | D4: Optional Function Description: | E4: Linear function of marsh Width
A5: 3000 | B5: =IF(A5>$E$9,1,0) -> 1
D6: Number of X Categories | E6: 1
E8: Cat # | F8: Weight | G8: description
D9: X1 | E9: 37 | F9: 1 | G9: Width of salt & trans. Marshes
D10: X2
D11: X3
D12: etc.
D14: having both weights at 100% results in additive acrage

Sheet Utility10
A1: N Points | B1: 2
A3: X Axis | B3: Utility [0..1] | D3: Function Name: | E3: Political/Cultural/Historic value
A4: 0 | B4: =IF(A4>$E$9,1,0) -> 0 | D4: Optional Function Description: | E4: Linear function of marsh Width
A5: 1000000 | B5: =IF(A5>$E$9,1,0) -> 1
D6: Number of X Categories | E6: 3
E8: Cat # | F8: Weight | G8: description
D9: X1 | E9: 6 | F9: 1 | G9: Tidal Fresh acres
D10: X2 | E10: 33 | F10: 1 | G10: (aggregated) transitional acres
D11: X3 | E11: 32 | F11: 1 | G11: salt marsh acres
D12: etc. | G12: (agg = trans + IFM)
D14: having both weights at 100% results in additive acrage

Sheet Utility11
A1: N Points | B1: 2
A3: X Axis | B3: Utility [0..1] | D3: Function Name: | E3: General preservation of wetlands
A4: 0 | B4: =IF(A4>$E$9,1,0) -> 0 | D4: Optional Function Description: | E4: Linear function of marsh Width
A5: 1000000 | B5: =IF(A5>$E$9,1,0) -> 1
D6: Number of X Categories | E6: 3
E8: Cat # | F8: Weight | G8: description
D9: X1 | E9: 6 | F9: 1 | G9: Tidal Fresh acres
D10: X2 | E10: 33 | F10: 1 | G10: (aggregated) transitional acres
D11: X3 | E11: 32 | F11: 1 | G11: salt marsh acres
D12: etc. | G12: (agg = trans + IFM)
D14: having both weights at 100% results in additive acrage

Sheet Data Setup
B2: NSites | C2: 6 | E2: NYears | F2: 7 | H2: NSims | I2: 50 | K2: NCats | L2: 37 | N2: NUtil Functions | O2: 11
B4: NScenarios | C4: 5 | N4: Utility output Summaries | R4: ID | S4: Site ID | T4: Parcel
O5: (For dropdown sort menu) | R5: 1 | S5: Site 1 | T5: Dosoris Pond/West Pond
B6: Scenario | C6: Num | D6: Name | E6: Start Row in Raw SLAMM Results | N6: Site number | R6: 2 | S6: Site 2 | T6: Lattingtown
B7: Scenario | C7: 1 | D7: No Migration | E7: 4205 | F7: Base case, Normalization | G7: Base Case | N7: Site Name | R7: 3 | S7: Site 3 | T7: Hempstead Harbor
B8: Scenario | C8: 2 | D8: Migr. Undeveloped | E8: 2104 | N8: Adaptation Strategy | R8: 4 | S8: Site 4 | T8: Cuba Middle and East Island
B9: Scenario | C9: 3 | D9: Migr. All Dry | E9: 8407 | N9: Run Identification | R9: 5 | S9: Site 5 | T9: Marine Nature Study Area
B10: Scenario | C10: 4 | D10: Restore to 1974 | E10: 6306 | N10: DMMT Run Time | R10: 6 | S10: Site 6 | T10: Seamans Neck Park
B11: Scenario | C11: 5 | D11: Thin Layer Depo. | E11: 3 | N11: Overall Benefit (descending)
N12: Incremental Benefit
N13: Cost of Strategy (millions)
N14: Cost per Unit Benefit
N15: Benefit per Unit Cost
B20: Do not Edit This Item
B21: Use Marsh Loss Rates | D21: FALSE

Sheet Raw SLAMM Results
H1: C1 (ha) | I1: C2 (ha) | J1: C3 | K1: C4 | L1: C5 | M1: C6 | N1: C7 | O1: C8 | P1: C9 | Q1: C10 | R1: C11 | S1: C12 | T1: C13 | U1: C14 | V1: C15 | W1: C16 | X1: C17 | Y1: C18 | Z1: C19 | AA1: C20 | AB1: C21 | AC1: C22 | AD1: C23 | AE1: C24 | AF1: C25 | AG1: C26 | AH1: C27 | AI1: C28 | AJ1: C29 | AK1: C30 | AL1: C31 | AM1: C32 | AN1: C33 | AO1: C34 (ha) | AP1: C35 (ha) | AQ1: C36 | AR1: C37
A2: Scenario | B2: Date | C2: Site Desc. | D2: Scenario | E2: Parameters | F2: Protection | G2: SLR (eustatic) | H2: Developed Dry Land | I2: Undeveloped Dry Land | J2: Swamp | K2: Cypress Swamp | L2: Inland-Fresh Marsh | M2: Tidal-Fresh Marsh | N2: Trans. Salt Marsh | O2: Regularly-Flooded Marsh | P2: Mangrove | Q2: Estuarine Beach | R2: Tidal Flat | S2: Ocean Beach | T2: Ocean Flat | U2: Rocky Intertidal | V2: Inland Open Water | W2: Riverine Tidal | X2: Estuarine Open Water | Y2: Tidal Creek | Z2: Open Ocean | AA2: Irreg.-Flooded Marsh | AB2: Not Used | AC2: Inland Shore | AD2: Tidal Swamp | AE2: Blank | AF2: Flooded Developed Dry Land | AG2: Flooded Forest | AH2: SAV (sq.km) | AI2: Non Tidal | AJ2: Freshwater Non-Tidal | AK2: Open Water | AL2: Low Tidal | AM2: Saltmarsh | AN2: Transitional | AO2: Freshwater Tidal | AP2: Marsh OW (m) | AQ2: Non Frag Area | AR2: Marsh Width (m) | AT2: location | AU2: Site Desc.
A3: Thin Layer | B3: 2004 | C3: Dosoris Pond/West Pond | D3: Iteration 1 | E3: N A | F3: N A | G3: N A | H3: 28.3125 | I3: 122.8975 | J3: 1.6475 | K3: 0 | L3: 0.6175 | M3: 0 | N3: 1.175 | O3: 13.385 | P3: 0 | Q3: 14.9475 | R3: 0.02 | S3: 0 | T3: 0 | U3: 0 | V3: 1.12 | W3: 0 | X3: 76.845 | Y3: 0 | Z3: 0 | AA3: 0.37 | AB3: 0 | AC3: 0.2075 | AD3: 0.15 | AE3: 0 | AF3: 0.0525 | AG3: 0 | AH3: -9999 | AI3: 151.2625 | AJ3: 2.4725 | AK3: 77.965 | AL3: 14.9675 | AM3: 13.385 | AN3: 1.545 | AO3: 0.15 | AP3: 4945 | AQ3: 13.46853197 | AR3: 54.290909 | AU3: Site 1
A4: Thin Layer | B4: 2025 | C4: Dosoris Pond/West Pond | D4: Iteration 1 | E4: N A | F4: N A | G4: N A | H4: 28.3125 | I4: 122.8975 | J4: 1.6475 | K4: 0 | L4: 0.6175 | M4: 0 | N4: 0.655 | O4: 13.3575 | P4: 0 | Q4: 14.655 | R4: 0.575 | S4: 0 | T4: 0 | U4: 0 | V4: 1.1175 | W4: 0 | X4: 77.16 | Y4: 0 | Z4: 0 | AA4: 0.355 | AB4: 0 | AC4: 0.2075 | AD4: 0.1375 | AE4: 0 | AF4: 0.0525 | AG4: 0 | AH4: -9999 | AI4: 151.2625 | AJ4: 2.4725 | AK4: 78.2775 | AL4: 15.23 | AM4: 13.3575 | AN4: 1.01 | AO4: 0.1375 | AP4: 5415 | AQ4: 12.8358895 | AR4: 52.245455 | AU4: Site 1
A5: Thin Layer | B5: 2040 | C5: Dosoris Pond/West Pond | D5: Iteration 1 | E5: N A | F5: N A | G5: N A | H5: 28.3125 | I5: 122.8975 | J5: 1.64 | K5: 0 | L5: 0.0675 | M5: 0 | N5: 0.645 | O5: 12.8525 | P5: 0 | Q5: 13.815 | R5: 1.3775 | S5: 0 | T5: 0 | U5: 0 | V5: 1.115 | W5: 0 | X5: 78.31 | Y5: 0 | Z5: 0 | AA5: 0.3425 | AB5: 0 | AC5: 0.2075 | AD5: 0.1125 | AE5: 0 | AF5: 0.0525 | AG5: 0 | AH5: -9999 | AI5: 151.2625 | AJ5: 1.915 | AK5: 79.425 | AL5: 15.1925 | AM5: 12.8525 | AN5: 0.9875 | AO5: 0.1125 | AP5: 7725 | AQ5: 11.95676285 | AR5: 50.327273 | AU5: Site 1
A6: Thin Layer | B6: 2055 | C6: Dosoris Pond/West Pond | D6: Iteration 1 | E6: N A | F6: N A | G6: N A | H6: 28.3125 | I6: 122.8975 | J6: 1.52 | K6: 0 | L6: 0.0325 | M6: 0 | N6: 0.17 | O6: 10.86 | P6: 0 | Q6: 9.62 | R6: 3.315 | S6: 0 | T6: 0 | U6: 0 | V6: 1.045 | W6: 0 | X6: 83.37 | Y6: 0 | Z6: 0 | AA6: 0.25 | AB6: 0 | AC6: 0.2075 | AD6: 0.095 | AE6: 0 | AF6: 0.0525 | AG6: 0 | AH6: -9999 | AI6: 151.2625 | AJ6: 1.76 | AK6: 84.415 | AL6: 12.935 | AM6: 10.86 | AN6: 0.42 | AO6: 0.095 | AP6: 10855 | AQ6: 8.95765181 | AR6: 41.018182 | AU6: Site 1
A7: Thin Layer | B7: 2070 | C7: Dosoris Pond/West Pond | D7: Iteration 1 | E7: N A | F7: N A | G7: N A | H7: 28.3125 | I7: 122.8975 | J7: 1.105 | K7: 0 | L7: 0.0075 | M7: 0 | N7: 0.44 | O7: 6.6725 | P7: 0 | Q7: 6.335 | R7: 4.8575 | S7: 0 | T7: 0 | U7: 0 | V7: 0.7275 | W7: 0 | X7: 89.9225 | Y7: 0 | Z7: 0 | AA7: 0.16 | AB7: 0 | AC7: 0.2075 | AD7: 0.05 | AE7: 0 | AF7: 0.0525 | AG7: 0 | AH7: -9999 | AI7: 151.2625 | AJ7: 1.32 | AK7: 90.65 | AL7: 11.1925 | AM7: 6.6725 | AN7: 0.6 | AO7: 0.05 | AP7: 8805 | AQ7: 5.053779502 | AR7: 26.445455 | AU7: Site 1
A8: Thin Layer | B8: 2085 | C8: Dosoris Pond/West Pond | D8: Iteration 1 | E8: N A | F8: N A | G8: N A | H8: 28.3125 | I8: 122.8975 | J8: 0.6075 | K8: 0 | L8: 0 | M8: 0 | N8: 0.505 | O8: 4.9975 | P8: 0 | Q8: 5.17 | R8: 2.0325 | S8: 0 | T8: 0 | U8: 0 | V8: 0.6375 | W8: 0 | X8: 96.1725 | Y8: 0 | Z8: 0 | AA8: 0.13 | AB8: 0 | AC8: 0.2075 | AD8: 0.025 | AE8: 0 | AF8: 0.0525 | AG8: 0 | AH8: -9999 | AI8: 151.2625 | AJ8: 0.815 | AK8: 96.81 | AL8: 7.2025 | AM8: 4.9975 | AN8: 0.635 | AO8: 0.025 | AP8: 6590 | AQ8: 3.689784276 | AR8: 20.481818 | AU8: Site 1
A9: Thin Layer | B9: 2100 | C9: Dosoris Pond/West Pond | D9: Iteration 1 | E9: N A | F9: N A | G9: N A | H9: 28.3125 | I9: 122.8975 | J9: 0.4325 | K9: 0 | L9: 0 | M9: 0 | N9: 0.175 | O9: 3.9625 | P9: 0 | Q9: 4.405 | R9: 1.2925 | S9: 0 | T9: 0 | U9: 0 | V9: 0.585 | W9: 0 | X9: 99.335 | Y9: 0 | Z9: 0 | AA9: 0.07 | AB9: 0 | AC9: 0.2075 | AD9: 0.02 | AE9: 0 | AF9: 0.0525 | AG9: 0 | AH9: -9999 | AI9: 151.2625 | AJ9: 0.64 | AK9: 99.92 | AL9: 5.6975 | AM9: 3.9625 | AN9: 0.245 | AO9: 0.02 | AP9: 5130 | AQ9: 2.787394488 | AR9: 15.3 | AU9: Site 1
A10: Thin Layer | B10: 2004 | C10: Lattingtown | D10: Iteration 1 | E10: N A | F10: N A | G10: N A | H10: 7.905 | I10: 101.735 | J10: 2.85 | K10: 0 | L10: 0.315 | M10: 0 | N10: 2.8725 | O10: 0.38 | P10: 0 | Q10: 7.3775 | R10: 7.57 | S10: 0 | T10: 0 | U10: 0 | V10: 1.5525 | W10: 0 | X10: 21.84 | Y10: 0 | Z10: 0 | AA10: 14.9325 | AB10: 0 | AC10: 0 | AD10: 0 | AE10: 0 | AF10: 0.04 | AG10: 0 | AH10: -9999 | AI10: 109.68 | AJ10: 3.165 | AK10: 23.3925 | AL10: 14.9475 | AM10: 0.38 | AN10: 17.805 | AO10: 0 | AP10: 13745 | AQ10: 15.51529767 | AR10: 82.659091 | AU10: Site 2 | BB10: ID | BC10: Site ID | BD10: Parcel | BE10: Marsh Acres 1974 | BF10: Marsh Acres 2004 | BG10: Loss Rate
A11: Thin Layer | B11: 2025 | C11: Lattingtown | D11: Iteration 1 | E11: N A | F11: N A | G11: N A | H11: 7.905 | I11: 101.735 | J11: 2.85 | K11: 0 | L11: 0.285 | M11: 0 | N11: 2.7425 | O11: 0.6125 | P11: 0 | Q11: 6.9 | R11: 7.56 | S11: 0 | T11: 0 | U11: 0 | V11: 1.57 | W11: 0 | X11: 22.31 | Y11: 0 | Z11: 0 | AA11: 14.86 | AB11: 0 | AC11: 0 | AD11: 0 | AE11: 0 | AF11: 0.04 | AG11: 0 | AH11: -9999 | AI11: 109.68 | AJ11: 3.135 | AK11: 23.88 | AL11: 14.46 | AM11: 0.6125 | AN11: 17.6025 | AO11: 0 | AP11: 13995 | AQ11: 15.48563042 | AR11: 82.795455 | AU11: Site 2 | BB11: 1 | BC11: Site 1 | BD11: Dosoris Pond/West Pond
A12: Thin Layer | B12: 2040 | C12: Lattingtown | D12: Iteration 1 | E12: N A | F12: N A | G12: N A | H12: 7.905 | I12: 101.735 | J12: 2.665 | K12: 0 | L12: 0.2125 | M12: 0 | N12: 2.665 | O12: 1.48 | P12: 0 | Q12: 6.4425 | R12: 7.1825 | S12: 0 | T12: 0 | U12: 0 | V12: 1.51 | W12: 0 | X12: 23.2325 | Y12: 0 | Z12: 0 | AA12: 14.3 | AB12: 0 | AC12: 0 | AD12: 0 | AE12: 0 | AF12: 0.04 | AG12: 0 | AH12: -9999 | AI12: 109.68 | AJ12: 2.8775 | AK12: 24.7425 | AL12: 13.625 | AM12: 1.48 | AN12: 16.965 | AO12: 0 | AP12: 14500 | AQ12: 15.54141008 | AR12: 83.840909 | AU12: Site 2 | BB12: 2 | BC12: Site 2 | BD12: Lattingtown
A13: Thin Layer | B13: 2055 | C13: Lattingtown | D13: Iteration 1 | E13: N A | F13: N A | G13: N A | H13: 7.905 | I13: 101.735 | J13: 2.3425 | K13: 0 | L13: 0.205 | M13: 0 | N13: 2.45 | O13: 3.8675 | P13: 0 | Q13: 5.9775 | R13: 5.6525 | S13: 0 | T13: 0 | U13: 0 | V13: 1.505 | W13: 0 | X13: 25.485 | Y13: 0 | Z13: 0 | AA13: 12.205 | AB13: 0 | AC13: 0 | AD13: 0 | AE13: 0 | AF13: 0.04 | AG13: 0 | AH13: -9999 | AI13: 109.68 | AJ13: 2.5475 | AK13: 26.99 | AL13: 11.63 | AM13: 3.8675 | AN13: 14.655 | AO13: 0 | AP13: 15080 | AQ13: 15.45480536 | AR13: 84.193182 | AU13: Site 2 | BB13: 3 | BC13: Site 3 | BD13: Hempstead Harbor
A14: Thin Layer | B14: 2070 | C14: Lattingtown | D14: Iteration 1 | E14: N A | F14: N A | G14: N A | H14: 7.905 | I14: 101.735 | J14: 1.905 | K14: 0 | L14: 0.1975 | M14: 0 | N14: 2.0175 | O14: 8.225 | P14: 0 | Q14: 5.5225 | R14: 3.9175 | S14: 0 | T14: 0 | U14: 0 | V14: 1.3275 | W14: 0 | X14: 29.7 | Y14: 0 | Z14: 0 | AA14: 6.8775 | AB14: 0 | AC14: 0 | AD14: 0 | AE14: 0 | AF14: 0.04 | AG14: 0 | AH14: -9999 | AI14: 109.68 | AJ14: 2.1025 | AK14: 31.0275 | AL14: 9.44 | AM14: 8.225 | AN14: 8.895 | AO14: 0 | AP14: 14970 | AQ14: 14.06541368 | AR14: 77.818182 | AU14: Site 2 | BB14: 4 | BC14: Site 4 | BD14: Cuba Middle and East Island
A15: Thin Layer | B15: 2085 | C15: Lattingtown | D15: Iteration 1 | E15: N A | F15: N A | G15: N A | H15: 7.905 | I15: 101.735 | J15: 1.6125 | K15: 0 | L15: 0.1975 | M15: 0 | N15: 1.2425 | O15: 10.1325 | P15: 0 | Q15: 5.07 | R15: 4.96 | S15: 0 | T15: 0 | U15: 0 | V15: 0.8825 | W15: 0 | X15: 34.715 | Y15: 0 | Z15: 0 | AA15: 0.8775 | AB15: 0 | AC15: 0 | AD15: 0 | AE15: 0 | AF15: 0.04 | AG15: 0 | AH15: -9999 | AI15: 109.68 | AJ15: 1.81 | AK15: 35.5975 | AL15: 10.03 | AM15: 10.1325 | AN15: 2.12 | AO15: 0 | AP15: 14265 | AQ15: 9.510077319 | AR15: 55.693182 | AU15: Site 2 | BB15: 5 | BC15: Site 5 | BD15: Marine Nature Study Area
A16: Thin Layer | B16: 2100 | C16: Lattingtown | D16: Iteration 1 | E16: N A | F16: N A | G16: N A | H16: 7.905 | I16: 101.735 | J16: 1.455 | K16: 0 | L16: 0.1075 | M16: 0 | N16: 0.5525 | O16: 4.1675 | P16: 0 | Q16: 4.585 | R16: 7.4025 | S16: 0 | T16: 0 | U16: 0 | V16: 0.725 | W16: 0 | X16: 40.66 | Y16: 0 | Z16: 0 | AA16: 0.035 | AB16: 0 | AC16: 0 | AD16: 0 | AE16: 0 | AF16: 0.04 | AG16: 0 | AH16: -9999 | AI16: 109.68 | AJ16: 1.5625 | AK16: 41.385 | AL16: 11.9875 | AM16: 4.1675 | AN16: 0.5875 | AO16: 0 | AP16: 8450 | AQ16: 3.099566429 | AR16: 21.613636 | AU16: Site 2 | BB16: 6 | BC16: Site 6 | BD16: Seamans Neck Park
A17: Thin Layer | B17: 2004 | C17: Hempstead Harbor | D17: Iteration 1 | E17: N A | F17: N A | G17: N A | H17: 9.515 | I17: 14.2075 | J17: 0.175 | K17: 0 | L17: 0 | M17: 0 | N17: 0.615 | O17: 0.3425 | P17: 0 | Q17: 0.55 | R17: 0 | S17: 0 | T17: 0 | U17: 0 | V17: 0.03 | W17: 0 | X17: 41.5525 | Y17: 0 | Z17: 0 | AA17: 2.845 | AB17: 0 | AC17: 0 | AD17: 0 | AE17: 0 | AF17: 0.1375 | AG17: 0 | AH17: -9999 | AI17: 23.86 | AJ17: 0.175 | AK17: 41.5825 | AL17: 0.55 | AM17: 0.3425 | AN17: 3.46 | AO17: 0 | AP17: 1405 | AQ17: 3.441553592 | AR17: 71.074766 | AU17: Site 3
A18: Thin Layer | B18: 2025 | C18: Hempstead Harbor | D18: Iteration 1 | E18: N A | F18: N A | G18: N A | H18: 9.515 | I18: 14.2075 | J18: 0.175 | K18: 0 | L18: 0 | M18: 0 | N18: 0.405 | O18: 0.55 | P18: 0 | Q18: 0.55 | R18: 0.0025 | S18: 0 | T18: 0 | U18: 0 | V18: 0.03 | W18: 0 | X18: 41.5525 | Y18: 0 | Z18: 0 | AA18: 2.845 | AB18: 0 | AC18: 0 | AD18: 0 | AE18: 0 | AF18: 0.1375 | AG18: 0 | AH18: -9999 | AI18: 23.86 | AJ18: 0.175 | AK18: 41.5825 | AL18: 0.5525 | AM18: 0.55 | AN18: 3.25 | AO18: 0 | AP18: 1615 | AQ18: 3.362252937 | AR18: 71.028037 | AU18: Site 3
A19: Thin Layer | B19: 2040 | C19: Hempstead Harbor | D19: Iteration 1 | E19: N A | F19: N A | G19: N A | H19: 9.515 | I19: 14.2075 | J19: 0.175 | K19: 0 | L19: 0 | M19: 0 | N19: 0.1525 | O19: 0.8125 | P19: 0 | Q19: 0.55 | R19: 0 | S19: 0 | T19: 0 | U19: 0 | V19: 0.03 | W19: 0 | X19: 41.5625 | Y19: 0 | Z19: 0 | AA19: 2.8275 | AB19: 0 | AC19: 0 | AD19: 0 | AE19: 0 | AF19: 0.1375 | AG19: 0 | AH19: -9999 | AI19: 23.86 | AJ19: 0.175 | AK19: 41.5925 | AL19: 0.55 | AM19: 0.8125 | AN19: 2.98 | AO19: 0 | AP19: 1910 | AQ19: 3.283089716 | AR19: 70.88785 | AU19: Site 3
A20: Thin Layer | B20: 2055 | C20: Hempstead Harbor | D20: Iteration 1 | E20: N A | F20: N A | G20: N A | H20: 9.515 | I20: 14.2075 | J20: 0.175 | K20: 0 | L20: 0 | M20: 0 | N20: 0.0625 | O20: 1.3825 | P20: 0 | Q20: 0.55 | R20: 0 | S20: 0 | T20: 0 | U20: 0 | V20: 0.03 | W20: 0 | X20: 41.5625 | Y20: 0 | Z20: 0 | AA20: 2.3475 | AB20: 0 | AC20: 0 | AD20: 0 | AE20: 0 | AF20: 0.1375 | AG20: 0 | AH20: -9999 | AI20: 23.86 | AJ20: 0.175 | AK20: 41.5925 | AL20: 0.55 | AM20: 1.3825 | AN20: 2.41 | AO20: 0 | AP20: 1960 | AQ20: 3.28060479 | AR20: 70.88785 | AU20: Site 3
A21: Thin Layer | B21: 2070 | C21: Hempstead Harbor | D21: Iteration 1 | E21: N A | F21: N A | G21: N A | H21: 9.515 | I21: 14.2075 | J21: 0.175 | K21: 0 | L21: 0 | M21: 0 | N21: 0.03 | O21: 2.045 | P21: 0 | Q21: 0.55 | R21: 0 | S21: 0 | T21: 0 | U21: 0 | V21: 0.03 | W21: 0 | X21: 41.5625 | Y21: 0 | Z21: 0 | AA21: 1.7175 | AB21: 0 | AC21: 0 | AD21: 0 | AE21: 0 | AF21: 0.1375 | AG21: 0 | AH21: -9999 | AI21: 23.86 | AJ21: 0.175 | AK21: 41.5925 | AL21: 0.55 | AM21: 2.045 | AN21: 1.7475 | AO21: 0 | AP21: 1960 | AQ21: 3.287078502 | AR21: 70.88785 | AU21: Site 3
A22: Thin Layer | B22: 2085 | C22: Hempstead Harbor | D22: Iteration 1 | E22: N A | F22: N A | G22: N A | H22: 9.515 | I22: 14.2075 | J22: 0.175 | K22: 0 | L22: 0 | M22: 0 | N22: 0.0175 | O22: 2.3925 | P22: 0 | Q22: 0.55 | R22: 0.0025 | S22: 0 | T22: 0 | U22: 0 | V22: 0.03 | W22: 0 | X22: 41.5675 | Y22: 0 | Z22: 0 | AA22: 1.375 | AB22: 0 | AC22: 0 | AD22: 0 | AE22: 0 | AF22: 0.1375 | AG22: 0 | AH22: -9999 | AI22: 23.86 | AJ22: 0.175 | AK22: 41.5975 | AL22: 0.5525 | AM22: 2.3925 | AN22: 1.3925 | AO22: 0 | AP22: 1955 | AQ22: 3.282725152 | AR22: 70.747664 | AU22: Site 3
A23: Thin Layer | B23: 2100 | C23: Hempstead Harbor | D23: Iteration 1 | E23: N A | F23: N A | G23: N A | H23: 9.515 | I23: 14.2075 | J23: 0.175 | K23: 0 | L23: 0 | M23: 0 | N23: 0.0075 | O23: 2.2625 | P23: 0 | Q23: 0.5425 | R23: 0.275 | S23: 0 | T23: 0 | U23: 0 | V23: 0.03 | W23: 0 | X23: 41.665 | Y23: 0 | Z23: 0 | AA23: 1.1525 | AB23: 0 | AC23: 0 | AD23: 0 | AE23: 0 | AF23: 0.1375 | AG23: 0 | AH23: -9999 | AI23: 23.86 | AJ23: 0.175 | AK23: 41.695 | AL23: 0.8175 | AM23: 2.2625 | AN23: 1.16 | AO23: 0 | AP23: 2495 | AQ23: 2.869236177 | AR23: 63.971963 | AU23: Site 3
A24: Thin Layer | B24: 2004 | C24: Cuba Middle and East Island | D24: Iteration 1 | E24: N A | F24: N A | G24: N A | H24: 0 | I24: 0 | J24: 0 | K24: 0 | L24: 0 | M24: 0 | N24: 0 | O24: 28.105 | P24: 0 | Q24: 1.1025 | R24: 12.3475 | S24: 0 | T24: 0 | U24: 0 | V24: 0 | W24: 0 | X24: 193.0525 | Y24: 0 | Z24: 0 | AA24: 62.1625 | AB24: 0 | AC24: 0 | AD24: 0 | AE24: 0 | AF24: 0 | AG24: 0 | AH24: -9999 | AI24: 0 | AJ24: 0 | AK24: 193.0525 | AL24: 13.45 | AM24: 28.105 | AN24: 62.1625 | AO24: 0 | AP24: 38220 | AQ24: 85.70974166 | AR24: 410.30682 | AU24: Site 4
A25: Thin Layer | B25: 2025 | C25: Cuba Middle and East Island | D25: Iteration 1 | E25: N A | F25: N A | G25: N A | H25: 0 | I25: 0 | J25: 0 | K25: 0 | L25: 0 | M25: 0 | N25: 0 | O25: 36.34 | P25: 0 | Q25: 1.1025 | R25: 7.495 | S25: 0 | T25: 0 | U25: 0 | V25: 0 | W25: 0 | X25: 199.36 | Y25: 0 | Z25: 0 | AA25: 52.4725 | AB25: 0 | AC25: 0 | AD25: 0 | AE25: 0 | AF25: 0 | AG25: 0 | AH25: -9999 | AI25: 0 | AJ25: 0 | AK25: 199.36 | AL25: 8.5975 | AM25: 36.34 | AN25: 52.4725 | AO25: 0 | AP25: 41540 | AQ25: 83.83418401 | AR25: 403.69318 | AU25: Site 4
A26: Thin Layer | B26: 2040 | C26: Cuba Middle and East Island | D26: Iteration 1 | E26: N A | F26: N A | G26: N A | H26: 0 | I26: 0 | J26: 0 | K26: 0 | L26: 0 | M26: 0 | N26: 0 | O26: 55.0525 | P26: 0 | Q26: 1.075 | R26: 10.64 | S26: 0 | T26: 0 | U26: 0 | V26: 0 | W26: 0 | X26: 206.99 | Y26: 0 | Z26: 0 | AA26: 23.0125 | AB26: 0 | AC26: 0 | AD26: 0 | AE26: 0 | AF26: 0 | AG26: 0 | AH26: -9999 | AI26: 0 | AJ26: 0 | AK26: 206.99 | AL26: 11.715 | AM26: 55.0525 | AN26: 23.0125 | AO26: 0 | AP26: 70915 | AQ26: 69.37668672 | AR26: 354.84091 | AU26: Site 4
A27: Thin Layer | B27: 2055 | C27: Cuba Middle and East Island | D27: Iteration 1 | E27: N A | F27: N A | G27: N A | H27: 0 | I27: 0 | J27: 0 | K27: 0 | L27: 0 | M27: 0 | N27: 0 | O27: 33.13 | P27: 0 | Q27: 0.6375 | R27: 33.6975 | S27: 0 | T27: 0 | U27: 0 | V27: 0 | W27: 0 | X27: 227.395 | Y27: 0 | Z27: 0 | AA27: 1.91 | AB27: 0 | AC27: 0 | AD27: 0 | AE27: 0 | AF27: 0 | AG27: 0 | AH27: -9999 | AI27: 0 | AJ27: 0 | AK27: 227.395 | AL27: 34.335 | AM27: 33.13 | AN27: 1.91 | AO27: 0 | AP27: 82815 | AQ27: 24.80190985 | AR27: 159.27273 | AU27: Site 4
A28: Thin Layer | B28: 2070 | C28: Cuba Middle and East Island | D28: Iteration 1 | E28: N A | F28: N A | G28: N A | H28: 0 | I28: 0 | J28: 0 | K28: 0 | L28: 0 | M28: 0 | N28: 0 | O28: 2.26 | P28: 0 | Q28: 0.035 | R28: 24.16 | S28: 0 | T28: 0 | U28: 0 | V28: 0 | W28: 0 | X28: 270.3125 | Y28: 0 | Z28: 0 | AA28: 0.0025 | AB28: 0 | AC28: 0 | AD28: 0 | AE28: 0 | AF28: 0 | AG28: 0 | AH28: -9999 | AI28: 0 | AJ28: 0 | AK28: 270.3125 | AL28: 24.195 | AM28: 2.26 | AN28: 0.0025 | AO28: 0 | AP28: 11055 | AQ28: 0.9054230136 | AR28: 10.284091 | AU28: Site 4
A29: Thin Layer | B29: 2085 | C29: Cuba Middle and East Island | D29: Iteration 1 | E29: N A | F29: N A | G29: N A | H29: 0 | I29: 0 | J29: 0 | K29: 0 | L29: 0 | M29: 0 | N29: 0 | O29: 0.0025 | P29: 0 | Q29: 0 | R29: 1.44 | S29: 0 | T29: 0 | U29: 0 | V29: 0 | W29: 0 | X29: 295.3275 | Y29: 0 | Z29: 0 | AA29: 0 | AB29: 0 | AC29: 0 | AD29: 0 | AE29: 0 | AF29: 0 | AG29: 0 | AH29: -9999 | AI29: 0 | AJ29: 0 | AK29: 295.3275 | AL29: 1.44 | AM29: 0.0025 | AN29: 0 | AO29: 0 | AP29: 20 | AQ29: 0 | AR29: 0.011363636 | AU29: Site 4
A30: Thin Layer | B30: 2100 | C30: Cuba Middle and East Island | D30: Iteration 1 | E30: N A | F30: N A | G30: N A | H30: 0 | I30: 0 | J30: 0 | K30: 0 | L30: 0 | M30: 0 | N30: 0 | O30: 0 | P30: 0 | Q30: 0 | R30: 0 | S30: 0 | T30: 0 | U30: 0 | V30: 0 | W30: 0 | X30: 296.77 | Y30: 0 | Z30: 0 | AA30: 0 | AB30: 0 | AC30: 0 | AD30: 0 | AE30: 0 | AF30: 0 | AG30: 0 | AH30: -9999 | AI30: 0 | AJ30: 0 | AK30: 296.77 | AL30: 0 | AM30: 0 | AN30: 0 | AO30: 0 | AP30: 0 | AQ30: 0 | AR30: 0 | AU30: Site 4
A31: Thin Layer | B31: 2004 | C31: Marine Nature Study Area | D31: Iteration 1 | E31: N A | F31: N A | G31: N A | H31: 1.0675 | I31: 4.5725 | J31: 0 | K31: 0 | L31: 0 | M31: 0 | N31: 0.0525 | O31: 2.0525 | P31: 0 | Q31: 0 | R31: 1.7525 | S31: 0 | T31: 0 | U31: 0 | V31: 0 | W31: 0 | X31: 4.81 | Y31: 0 | Z31: 0 | AA31: 14.3125 | AB31: 0 | AC31: 0 | AD31: 0 | AE31: 0 | AF31: 0 | AG31: 0 | AH31: -9999 | AI31: 5.64 | AJ31: 0 | AK31: 4.81 | AL31: 1.7525 | AM31: 2.0525 | AN31: 14.365 | AO31: 0 | AP31: 4270 | AQ31: 15.53718233 | AR31: 364.83333 | AU31: Site 5
A32: Thin Layer | B32: 2025 | C32: Marine Nature Study Area | D32: Iteration 1 | E32: N A | F32: N A | G32: N A | H32: 1.0675 | I32: 4.5725 | J32: 0 | K32: 0 | L32: 0 | M32: 0 | N32: 0.0175 | O32: 2.4475 | P32: 0 | Q32: 0 | R32: 1.035 | S32: 0 | T32: 0 | U32: 0 | V32: 0 | W32: 0 | X32: 5.705 | Y32: 0 | Z32: 0 | AA32: 13.775 | AB32: 0 | AC32: 0 | AD32: 0 | AE32: 0 | AF32: 0 | AG32: 0 | AH32: -9999 | AI32: 5.64 | AJ32: 0 | AK32: 5.705 | AL32: 1.035 | AM32: 2.4475 | AN32: 13.7925 | AO32: 0 | AP32: 4370 | AQ32: 15.35773601 | AR32: 360.88889 | AU32: Site 5
A33: Thin Layer | B33: 2040 | C33: Marine Nature Study Area | D33: Iteration 1 | E33: N A | F33: N A | G33: N A | H33: 1.0675 | I33: 4.5725 | J33: 0 | K33: 0 | L33: 0 | M33: 0 | N33: 0.005 | O33: 5.4225 | P33: 0 | Q33: 0 | R33: 0.3575 | S33: 0 | T33: 0 | U33: 0 | V33: 0 | W33: 0 | X33: 6.79 | Y33: 0 | Z33: 0 | AA33: 10.405 | AB33: 0 | AC33: 0 | AD33: 0 | AE33: 0 | AF33: 0 | AG33: 0 | AH33: -9999 | AI33: 5.64 | AJ33: 0 | AK33: 6.79 | AL33: 0.3575 | AM33: 5.4225 | AN33: 10.41 | AO33: 0 | AP33: 4980 | AQ33: 14.87656542 | AR33: 351.83333 | AU33: Site 5
A34: Thin Layer | B34: 2055 | C34: Marine Nature Study Area | D34: Iteration 1 | E34: N A | F34: N A | G34: N A | H34: 1.0675 | I34: 4.5725 | J34: 0 | K34: 0 | L34: 0 | M34: 0 | N34: 0 | O34: 11.035 | P34: 0 | Q34: 0 | R34: 0.8225 | S34: 0 | T34: 0 | U34: 0 | V34: 0 | W34: 0 | X34: 7.5675 | Y34: 0 | Z34: 0 | AA34: 3.555 | AB34: 0 | AC34: 0 | AD34: 0 | AE34: 0 | AF34: 0 | AG34: 0 | AH34: -9999 | AI34: 5.64 | AJ34: 0 | AK34: 7.5675 | AL34: 0.8225 | AM34: 11.035 | AN34: 3.555 | AO34: 0 | AP34: 8680 | AQ34: 13.18166766 | AR34: 324.22222 | AU34: Site 5
A35: Thin Layer | B35: 2070 | C35: Marine Nature Study Area | D35: Iteration 1 | E35: N A | F35: N A | G35: N A | H35: 1.0675 | I35: 4.5725 | J35: 0 | K35: 0 | L35: 0 | M35: 0 | N35: 0 | O35: 6.9975 | P35: 0 | Q35: 0 | R35: 5.5875 | S35: 0 | T35: 0 | U35: 0 | V35: 0 | W35: 0 | X35: 9.5975 | Y35: 0 | Z35: 0 | AA35: 0.7975 | AB35: 0 | AC35: 0 | AD35: 0 | AE35: 0 | AF35: 0 | AG35: 0 | AH35: -9999 | AI35: 5.64 | AJ35: 0 | AK35: 9.5975 | AL35: 5.5875 | AM35: 6.9975 | AN35: 0.7975 | AO35: 0 | AP35: 15070 | AQ35: 5.633154346 | AR35: 173.22222 | AU35: Site 5
A36: Thin Layer | B36: 2085 | C36: Marine Nature Study Area | D36: Iteration 1 | E36: N A | F36: N A | G36: N A | H36: 1.0675 | I36: 4.5725 | J36: 0 | K36: 0 | L36: 0 | M36: 0 | N36: 0 | O36: 0.8675 | P36: 0 | Q36: 0 | R36: 5.18 | S36: 0 | T36: 0 | U36: 0 | V36: 0 | W36: 0 | X36: 16.475 | Y36: 0 | Z36: 0 | AA36: 0.4575 | AB36: 0 | AC36: 0 | AD36: 0 | AE36: 0 | AF36: 0 | AG36: 0 | AH36: -9999 | AI36: 5.64 | AJ36: 0 | AK36: 16.475 | AL36: 5.18 | AM36: 0.8675 | AN36: 0.4575 | AO36: 0 | AP36: 3785 | AQ36: 0.6448225947 | AR36: 29.444444 | AU36: Site 5
A37: Thin Layer | B37: 2100 | C37: Marine Nature Study Area | D37: Iteration 1 | E37: N A | F37: N A | G37: N A | H37: 1.0675 | I37: 4.5725 | J37: 0 | K37: 0 | L37: 0 | M37: 0 | N37: 0 | O37: 0.44 | P37: 0 | Q37: 0 | R37: 0.5525 | S37: 0 | T37: 0 | U37: 0 | V37: 0 | W37: 0 | X37: 21.825 | Y37: 0 | Z37: 0 | AA37: 0.1625 | AB37: 0 | AC37: 0 | AD37: 0 | AE37: 0 | AF37: 0 | AG37: 0 | AH37: -9999 | AI37: 5.64 | AJ37: 0 | AK37: 21.825 | AL37: 0.5525 | AM37: 0.44 | AN37: 0.1625 | AO37: 0 | AP37: 1045 | AQ37: 0.3393737997 | AR37: 13.388889 | AU37: Site 5
A38: Thin Layer | B38: 2004 | C38: Seamans Neck Park | D38: Iteration 1 | E38: N A | F38: N A | G38: N A | H38: 7.4475 | I38: 14.7975 | J38: 0.0975 | K38: 0 | L38: 0 | M38: 0 | N38: 1.71 | O38: 1.83 | P38: 0 | Q38: 0 | R38: 0.1775 | S38: 0 | T38: 0 | U38: 0 | V38: 1.1375 | W38: 0 | X38: 8.455 | Y38: 0 | Z38: 0 | AA38: 6.215 | AB38: 0 | AC38: 0 | AD38: 0 | AE38: 0 | AF38: 0.0275 | AG38: 0 | AH38: -9999 | AI38: 22.2725 | AJ38: 0.0975 | AK38: 9.5925 | AL38: 0.1775 | AM38: 1.83 | AN38: 7.925 | AO38: 0 | AP38: 3450 | AQ38: 8.822210091 | AR38: 216.77778 | AU38: Site 6
A39: Thin Layer | B39: 2025 | C39: Seamans Neck Park | D39: Iteration 1 | E39: N A | F39: N A | G39: N A | H39: 7.4475 | I39: 14.7975 | J39: 0.0975 | K39: 0 | L39: 0 | M39: 0 | N39: 1.4175 | O39: 2.71 | P39: 0 | Q39: 0 | R39: 0.2525 | S39: 0 | T39: 0 | U39: 0 | V39: 1.1375 | W39: 0 | X39: 8.75 | Y39: 0 | Z39: 0 | AA39: 5.2575 | AB39: 0 | AC39: 0 | AD39: 0 | AE39: 0 | AF39: 0.0275 | AG39: 0 | AH39: -9999 | AI39: 22.2725 | AJ39: 0.0975 | AK39: 9.8875 | AL39: 0.2525 | AM39: 2.71 | AN39: 6.675 | AO39: 0 | AP39: 3395 | AQ39: 8.491881632 | AR39: 208.55556 | AU39: Site 6
A40: Thin Layer | B40: 2040 | C40: Seamans Neck Park | D40: Iteration 1 | E40: N A | F40: N A | G40: N A | H40: 7.4475 | I40: 14.7975 | J40: 0.0975 | K40: 0 | L40: 0 | M40: 0 | N40: 0.89 | O40: 5.6975 | P40: 0 | Q40: 0 | R40: 0.745 | S40: 0 | T40: 0 | U40: 0 | V40: 1.1375 | W40: 0 | X40: 9.2875 | Y40: 0 | Z40: 0 | AA40: 1.7675 | AB40: 0 | AC40: 0 | AD40: 0 | AE40: 0 | AF40: 0.0275 | AG40: 0 | AH40: -9999 | AI40: 22.2725 | AJ40: 0.0975 | AK40: 10.425 | AL40: 0.745 | AM40: 5.6975 | AN40: 2.6575 | AO40: 0 | AP40: 6750 | AQ40: 7.060003845 | AR40: 185.66667 | AU40: Site 6
A41: Thin Layer | B41: 2055 | C41: Seamans Neck Park | D41: Iteration 1 | E41: N A | F41: N A | G41: N A | H41: 7.4475 | I41: 14.7975 | J41: 0.0475 | K41: 0 | L41: 0 | M41: 0 | N41: 0.545 | O41: 2.89 | P41: 0 | Q41: 0 | R41: 3.695 | S41: 0 | T41: 0 | U41: 0 | V41: 0 | W41: 0 | X41: 12.1325 | Y41: 0 | Z41: 0 | AA41: 0.3125 | AB41: 0 | AC41: 0 | AD41: 0 | AE41: 0 | AF41: 0.0275 | AG41: 0 | AH41: -9999 | AI41: 22.2725 | AJ41: 0.0475 | AK41: 12.1325 | AL41: 3.695 | AM41: 2.89 | AN41: 0.8575 | AO41: 0 | AP41: 8100 | AQ41: 2.302371232 | AR41: 83.277778 | AU41: Site 6
A42: Thin Layer | B42: 2070 | C42: Seamans Neck Park | D42: Iteration 1 | E42: N A | F42: N A | G42: N A | H42: 7.4475 | I42: 14.7975 | J42: 0.0125 | K42: 0 | L42: 0 | M42: 0 | N42: 0.2175 | O42: 0.765 | P42: 0 | Q42: 0 | R42: 2.135 | S42: 0 | T42: 0 | U42: 0 | V42: 0 | W42: 0 | X42: 16.3575 | Y42: 0 | Z42: 0 | AA42: 0.135 | AB42: 0 | AC42: 0 | AD42: 0 | AE42: 0 | AF42: 0.0275 | AG42: 0 | AH42: -9999 | AI42: 22.2725 | AJ42: 0.0125 | AK42: 16.3575 | AL42: 2.135 | AM42: 0.765 | AN42: 0.3525 | AO42: 0 | AP42: 1890 | AQ42: 0.7127949625 | AR42: 24.833333 | AU42: Site 6
A43: Thin Layer | B43: 2085 | C43: Seamans Neck Park | D43: Iteration 1 | E43: N A | F43: N A | G43: N A | H43: 7.4475 | I43: 14.7975 | J43: 0 | K43: 0 | L43: 0 | M43: 0 | N43: 0.07 | O43: 0.3975 | P43: 0 | Q43: 0 | R43: 0.4525 | S43: 0 | T43: 0 | U43: 0 | V43: 0 | W43: 0 | X43: 18.6375 | Y43: 0 | Z43: 0 | AA43: 0.065 | AB43: 0 | AC43: 0 | AD43: 0 | AE43: 0 | AF43: 0.0275 | AG43: 0 | AH43: -9999 | AI43: 22.2725 | AJ43: 0 | AK43: 18.6375 | AL43: 0.4525 | AM43: 0.3975 | AN43: 0.135 | AO43: 0 | AP43: 1105 | AQ43: 0.3309619587 | AR43: 11.833333 | AU43: Site 6
A44: Thin Layer | B44: 2100 | C44: Seamans Neck Park | D44: Iteration 1 | E44: N A | F44: N A | G44: N A | H44: 7.4475 | I44: 14.7975 | J44: 0 | K44: 0 | L44: 0 | M44: 0 | N44: 0.0025 | O44: 0.185 | P44: 0 | Q44: 0 | R44: 0.2025 | S44: 0 | T44: 0 | U44: 0 | V44: 0 | W44: 0 | X44: 19.2125 | Y44: 0 | Z44: 0 | AA44: 0.02 | AB44: 0 | AC44: 0 | AD44: 0 | AE44: 0 | AF44: 0.0275 | AG44: 0 | AH44: -9999 | AI44: 22.2725 | AJ44: 0 | AK44: 19.2125 | AL44: 0.2025 | AM44: 0.185 | AN44: 0.0225 | AO44: 0 | AP44: 570 | AQ44: 0.1345521107 | AR44: 4.6111111 | AU44: Site 6
A45: Thin Layer | B45: 2004 | C45: Dosoris Pond/West Pond | D45: Iteration 2 | E45: N A | F45: N A | G45: N A | H45: 28.3125 | I45: 122.8975 | J45: 1.6475 | K45: 0 | L45: 0.6175 | M45: 0 | N45: 0.9425 | O45: 13.58 | P45: 0 | Q45: 15.015 | R45: 0.025 | S45: 0 | T45: 0 | U45: 0 | V45: 1.1175 | W45: 0 | X45: 76.78 | Y45: 0 | Z45: 0 | AA45: 0.39 | AB45: 0 | AC45: 0.2075 | AD45: 0.1625 | AE45: 0 | AF45: 0.0525 | AG45: 0 | AH45: -9999 | AI45: 151.2625 | AJ45: 2.4725 | AK45: 77.8975 | AL45: 15.04 | AM45: 13.58 | AN45: 1.3325 | AO45: 0.1625 | AP45: 5115 | AQ45: 13.38752701 | AR45: 54.227273 | AU45: Site 1
A46: Thin Layer | B46: 2025 | C46: Dosoris Pond/West Pond | D46: Iteration 2 | E46: N A | F46: N A | G46: N A | H46: 28.3125 | I46: 122.8975 | J46: 1.6475 | K46: 0 | L46: 0.6175 | M46: 0 | N46: 0.9325 | O46: 13.4975 | P46: 0 | Q46: 14.7575 | R46: 0.1175 | S46: 0 | T46: 0 | U46: 0 | V46: 1.1175 | W46: 0 | X46: 77.0375 | Y46: 0 | Z46: 0 | AA46: 0.3925 | AB46: 0 | AC46: 0.2075 | AD46: 0.16 | AE46: 0 | AF46: 0.0525 | AG46: 0 | AH46: -9999 | AI46: 151.2625 | AJ46: 2.4725 | AK46: 78.155 | AL46: 14.875 | AM46: 13.4975 | AN46: 1.325 | AO46: 0.16 | AP46: 5270 | AQ46: 13.27723558 | AR46: 53.9 | AU46: Site 1
A47: Thin Layer | B47: 2040 | C47: Dosoris Pond/West Pond | D47: Iteration 2 | E47: N A | F47: N A | G47: N A | H47: 28.3125 | I47: 122.8975 | J47: 1.6475 | K47: 0 | L47: 0.1025 | M47: 0 | N47: 1.315 | O47: 13.615 | P47: 0 | Q47: 14.5 | R47: 0.135 | S47: 0 | T47: 0 | U47: 0 | V47: 1.115 | W47: 0 | X47: 77.3025 | Y47: 0 | Z47: 0 | AA47: 0.3875 | AB47: 0 | AC47: 0.2075 | AD47: 0.1575 | AE47: 0 | AF47: 0.0525 | AG47: 0 | AH47: -9999 | AI47: 151.2625 | AJ47: 1.9575 | AK47: 78.4175 | AL47: 14.635 | AM47: 13.615 | AN47: 1.7025 | AO47: 0.1575 | AP47: 5325 | AQ47: 13.71430942 | AR47: 55.7 | AU47: Site 1
A48: Thin Layer | B48: 2055 | C48: Dosoris Pond/West Pond | D48: Iteration 2 | E48: N A | F48: N A | G48: N A | H48: 28.3125 | I48: 122.8975 | J48: 1.6475 | K48: 0 | L48: 0.07 | M48: 0 | N48: 0.725 | O48: 14.1725 | P48: 0 | Q48: 14.235 | R48: 0.21 | S48: 0 | T48: 0 | U48: 0 | V48: 1.115 | W48: 0 | X48: 77.57 | Y48: 0 | Z48: 0 | AA48: 0.39 | AB48: 0 | AC48: 0.2075 | AD48: 0.1425 | AE48: 0 | AF48: 0.0525 | AG48: 0 | AH48: -9999 | AI48: 151.2625 | AJ48: 1.925 | AK48: 78.685 | AL48: 14.445 | AM48: 14.1725 | AN48: 1.115 | AO48: 0.1425 | AP48: 5580 | AQ48: 13.64039301 | AR48: 55.590909 | AU48: Site 1
A49: Thin Layer | B49: 2070 | C49: Dosoris Pond/West Pond | D49: Iteration 2 | E49: N A | F49: N A | G49: N A | H49: 28.3125 | I49: 122.8975 | J49: 1.6475 | K49: 0 | L49: 0.045 | M49: 0 | N49: 0.5025 | O49: 14.29 | P49: 0 | Q49: 13.9425 | R49: 0.355 | S49: 0 | T49: 0 | U49: 0 | V49: 1.1125 | W49: 0 | X49: 77.87 | Y49: 0 | Z49: 0 | AA49: 0.3825 | AB49: 0 | AC49: 0.2075 | AD49: 0.13 | AE49: 0 | AF49: 0.0525 | AG49: 0 | AH49: -9999 | AI49: 151.2625 | AJ49: 1.9 | AK49: 78.9825 | AL49: 14.2975 | AM49: 14.29 | AN49: 0.885 | AO49: 0.13 | AP49: 5865 | AQ49: 13.50315079 | AR49: 55.181818 | AU49: Site 1
A50: Thin Layer | B50: 2085 | C50: Dosoris Pond/West Pond | D50: Iteration 2 | E50: N A | F50: N A | G50: N A | H50: 28.3125 | I50: 122.8975 | J50: 1.6475 | K50: 0 | L50: 0.0375 | M50: 0 | N50: 0.31 | O50: 14.2825 | P50: 0 | Q50: 13.6325 | R50: 0.53 | S50: 0 | T50: 0 | U50: 0 | V50: 0.975 | W50: 0 | X50: 78.355 | Y50: 0 | Z50: 0 | AA50: 0.3825 | AB50: 0 | AC50: 0.2075 | AD50: 0.125 | AE50: 0 | AF50: 0.0525 | AG50: 0 | AH50: -9999 | AI50: 151.2625 | AJ50: 1.8925 | AK50: 79.33 | AL50: 14.1625 | AM50: 14.2825 | AN50: 0.6925 | AO50: 0.125 | AP50: 5950 | AQ50: 13.29686702 | AR50: 54.454545 | AU50: Site 1
A51: Thin Layer | B51: 2100 | C51: Dosoris Pond/West Pond | D51: Iteration 2 | E51: N A | F51: N A | G51: N A | H51: 28.3125 | I51: 122.8975 | J51: 1.6475 | K51: 0 | L51: 0.025 | M51: 0 | N51: 0.1525 | O51: 14.215 | P51: 0 | Q51: 13.2725 | R51: 0.7275 | S51: 0 | T51: 0 | U51: 0 | V51: 0.9425 | W51: 0 | X51: 78.8075 | Y51: 0 | Z51: 0 | AA51: 0.3675 | AB51: 0 | AC51: 0.2075 | AD51: 0.12 | AE51: 0 | AF51: 0.0525 | AG51: 0 | AH51: -9999 | AI51: 151.2625 | AJ51: 1.88 | AK51: 79.75 | AL51: 14 | AM51: 14.215 | AN51: 0.52 | AO51: 0.12 | AP51: 6095 | AQ51: 13.05934905 | AR51: 53.581818 | AU51: Site 1
A52: Thin Layer | B52: 2004 | C52: Lattingtown | D52: Iteration 2 | E52: N A | F52: N A | G52: N A | H52: 7.905 | I52: 101.735 | J52: 2.85 | K52: 0 | L52: 0.305 | M52: 0 | N52: 2.815 | O52: 0.4575 | P52: 0 | Q52: 7.3775 | R52: 7.57 | S52: 0 | T52: 0 | U52: 0 | V52: 1.5525 | W52: 0 | X52: 21.84 | Y52: 0 | Z52: 0 | AA52: 14.9225 | AB52: 0 | AC52: 0 | AD52: 0 | AE52: 0 | AF52: 0.04 | AG52: 0 | AH52: -9999 | AI52: 109.68 | AJ52: 3.155 | AK52: 23.3925 | AL52: 14.9475 | AM52: 0.4575 | AN52: 17.7375 | AO52: 0 | AP52: 13915 | AQ52: 15.47507982 | AR52: 82.704545 | AU52: Site 2
A53: Thin Layer | B53: 2025 | C53: Lattingtown | D53: Iteration 2 | E53: N A | F53: N A | G53: N A | H53: 7.905 | I53: 101.735 | J53: 2.85 | K53: 0 | L53: 0.2575 | M53: 0 | N53: 2.86 | O53: 0.46 | P53: 0 | Q53: 6.9 | R53: 7.57 | S53: 0 | T53: 0 | U53: 0 | V53: 1.58 | W53: 0 | X53: 22.29 | Y53: 0 | Z53: 0 | AA53: 14.9225 | AB53: 0 | AC53: 0 | AD53: 0 | AE53: 0 | AF53: 0.04 | AG53: 0 | AH53: -9999 | AI53: 109.68 | AJ53: 3.1075 | AK53: 23.87 | AL53: 14.47 | AM53: 0.46 | AN53: 17.7825 | AO53: 0 | AP53: 13915 | AQ53: 15.51424347 | AR53: 82.920455 | AU53: Site 2
A54: Thin Layer | B54: 2040 | C54: Lattingtown | D54: Iteration 2 | E54: N A | F54: N A | G54: N A | H54: 7.905 | I54: 101.735 | J54: 2.8475 | K54: 0 | L54: 0.2325 | M54: 0 | N54: 2.83 | O54: 0.5325 | P54: 0 | Q54: 6.4525 | R54: 7.565 | S54: 0 | T54: 0 | U54: 0 | V54: 1.61 | W54: 0 | X54: 22.7125 | Y54: 0 | Z54: 0 | AA54: 14.9075 | AB54: 0 | AC54: 0 | AD54: 0 | AE54: 0 | AF54: 0.04 | AG54: 0 | AH54: -9999 | AI54: 109.68 | AJ54: 3.08 | AK54: 24.3225 | AL54: 14.0175 | AM54: 0.5325 | AN54: 17.7375 | AO54: 0 | AP54: 14020 | AQ54: 15.50804255 | AR54: 83.045455 | AU54: Site 2
A55: Thin Layer | B55: 2055 | C55: Lattingtown | D55: Iteration 2 | E55: N A | F55: N A | G55: N A | H55: 7.905 | I55: 101.735 | J55: 2.835 | K55: 0 | L55: 0.2125 | M55: 0 | N55: 2.765 | O55: 0.655 | P55: 0 | Q55: 6.0925 | R55: 7.5025 | S55: 0 | T55: 0 | U55: 0 | V55: 1.685 | W55: 0 | X55: 23.0625 | Y55: 0 | Z55: 0 | AA55: 14.88 | AB55: 0 | AC55: 0 | AD55: 0 | AE55: 0 | AF55: 0.04 | AG55: 0 | AH55: -9999 | AI55: 109.68 | AJ55: 3.0475 | AK55: 24.7475 | AL55: 13.595 | AM55: 0.655 | AN55: 17.645 | AO55: 0 | AP55: 14170 | AQ55: 15.49194798 | AR55: 83.181818 | AU55: Site 2
A56: Thin Layer | B56: 2070 | C56: Lattingtown | D56: Iteration 2 | E56: N A | F56: N A | G56: N A | H56: 7.905 | I56: 101.735 | J56: 2.79 | K56: 0 | L56: 0.205 | M56: 0 | N56: 2.67 | O56: 0.865 | P56: 0 | Q56: 5.835 | R56: 7.2625 | S56: 0 | T56: 0 | U56: 0 | V56: 1.6625 | W56: 0 | X56: 23.59 | Y56: 0 | Z56: 0 | AA56: 14.81 | AB56: 0 | AC56: 0 | AD56: 0 | AE56: 0 | AF56: 0.04 | AG56: 0 | AH56: -9999 | AI56: 109.68 | AJ56: 2.995 | AK56: 25.2525 | AL56: 13.0975 | AM56: 0.865 | AN56: 17.48 | AO56: 0 | AP56: 14420 | AQ56: 15.47096324 | AR56: 83.386364 | AU56: Site 2
A57: Thin Layer | B57: 2085 | C57: Lattingtown | D57: Iteration 2 | E57: N A | F57: N A | G57: N A | H57: 7.905 | I57: 101.735 | J57: 2.745 | K57: 0 | L57: 0.205 | M57: 0 | N57: 2.535 | O57: 1.14 | P57: 0 | Q57: 5.5375 | R57: 6.8575 | S57: 0 | T57: 0 | U57: 0 | V57: 1.6675 | W57: 0 | X57: 24.295 | Y57: 0 | Z57: 0 | AA57: 14.7075 | AB57: 0 | AC57: 0 | AD57: 0 | AE57: 0 | AF57: 0.04 | AG57: 0 | AH57: -9999 | AI57: 109.68 | AJ57: 2.95 | AK57: 25.9625 | AL57: 12.395 | AM57: 1.14 | AN57: 17.2425 | AO57: 0 | AP57: 14730 | AQ57: 15.44356109 | AR57: 83.556818 | AU57: Site 2
A58: Thin Layer | B58: 2100 | C58: Lattingtown | D58: Iteration 2 | E58: N A | F58: N A | G58: N A | H58: 7.905 | I58: 101.735 | J58: 2.61 | K58: 0 | L58: 0.2025 | M58: 0 | N58: 2.4975 | O58: 1.4675 | P58: 0 | Q58: 5.275 | R58: 6.24 | S58: 0 | T58: 0 | U58: 0 | V58: 1.645 | W58: 0 | X58: 25.2275 | Y58: 0 | Z58: 0 | AA58: 14.525 | AB58: 0 | AC58: 0 | AD58: 0 | AE58: 0 | AF58: 0.04 | AG58: 0 | AH58: -9999 | AI58: 109.68 | AJ58: 2.8125 | AK58: 26.8725 | AL58: 11.515 | AM58: 1.4675 | AN58: 17.0225 | AO58: 0 | AP58: 14890 | AQ58: 15.50646467 | AR58: 84.045455 | AU58: Site 2
A59: Thin Layer | B59: 2004 | C59: Hempstead Harbor | D59: Iteration 2 | E59: N A | F59: N A | G59: N A | H59: 9.515 | I59: 14.2075 | J59: 0.175 | K59: 0 | L59: 0 | M59: 0 | N59: 0.535 | O59: 0.4225 | P59: 0 | Q59: 0.55 | R59: 0 | S59: 0 | T59: 0 | U59: 0 | V59: 0.03 | W59: 0 | X59: 41.5525 | Y59: 0 | Z59: 0 | AA59: 2.845 | AB59: 0 | AC59: 0 | AD59: 0 | AE59: 0 | AF59: 0.1375 | AG59: 0 | AH59: -9999 | AI59: 23.86 | AJ59: 0.175 | AK59: 41.5825 | AL59: 0.55 | AM59: 0.4225 | AN59: 3.38 | AO59: 0 | AP59: 1590 | AQ59: 3.394504423 | AR59: 71.074766 | AU59: Site 3
A60: Thin Layer | B60: 2025 | C60: Hempstead Harbor | D60: Iteration 2 | E60: N A | F60: N A | G60: N A | H60: 9.515 | I60: 14.2075 | J60: 0.175 | K60: 0 | L60: 0 | M60: 0 | N60: 0.535 | O60: 0.4125 | P60: 0 | Q60: 0.55 | R60: 0.01 | S60: 0 | T60: 0 | U60: 0 | V60: 0.03 | W60: 0 | X60: 41.5525 | Y60: 0 | Z60: 0 | AA60: 2.845 | AB60: 0 | AC60: 0 | AD60: 0 | AE60: 0 | AF60: 0.1375 | AG60: 0 | AH60: -9999 | AI60: 23.86 | AJ60: 0.175 | AK60: 41.5825 | AL60: 0.56 | AM60: 0.4125 | AN60: 3.38 | AO60: 0 | AP60: 1580 | AQ60: 3.387139517 | AR60: 70.88785 | AU60: Site 3
A61: Thin Layer | B61: 2040 | C61: Hempstead Harbor | D61: Iteration 2 | E61: N A | F61: N A | G61: N A | H61: 9.515 | I61: 14.2075 | J61: 0.175 | K61: 0 | L61: 0 | M61: 0 | N61: 0.47 | O61: 0.4775 | P61: 0 | Q61: 0.55 | R61: 0 | S61: 0 | T61: 0 | U61: 0 | V61: 0.03 | W61: 0 | X61: 41.5625 | Y61: 0 | Z61: 0 | AA61: 2.845 | AB61: 0 | AC61: 0 | AD61: 0 | AE61: 0 | AF61: 0.1375 | AG61: 0 | AH61: -9999 | AI61: 23.86 | AJ61: 0.175 | AK61: 41.5925 | AL61: 0.55 | AM61: 0.4775 | AN61: 3.315 | AO61: 0 | AP61: 1660 | AQ61: 3.344235691 | AR61: 70.88785 | AU61: Site 3
A62: Thin Layer | B62: 2055 | C62: Hempstead Harbor | D62: Iteration 2 | E62: N A | F62: N A | G62: N A | H62: 9.515 | I62: 14.2075 | J62: 0.175 | K62: 0 | L62: 0 | M62: 0 | N62: 0.4025 | O62: 0.535 | P62: 0 | Q62: 0.55 | R62: 0.01 | S62: 0 | T62: 0 | U62: 0 | V62: 0.03 | W62: 0 | X62: 41.5625 | Y62: 0 | Z62: 0 | AA62: 2.845 | AB62: 0 | AC62: 0 | AD62: 0 | AE62: 0 | AF62: 0.1375 | AG62: 0 | AH62: -9999 | AI62: 23.86 | AJ62: 0.175 | AK62: 41.5925 | AL62: 0.56 | AM62: 0.535 | AN62: 3.2475 | AO62: 0 | AP62: 1695 | AQ62: 3.31026924 | AR62: 70.700935 | AU62: Site 3
A63: Thin Layer | B63: 2070 | C63: Hempstead Harbor | D63: Iteration 2 | E63: N A | F63: N A | G63: N A | H63: 9.515 | I63: 14.2075 | J63: 0.175 | K63: 0 | L63: 0 | M63: 0 | N63: 0.305 | O63: 0.6325 | P63: 0 | Q63: 0.55 | R63: 0 | S63: 0 | T63: 0 | U63: 0 | V63: 0.03 | W63: 0 | X63: 41.5725 | Y63: 0 | Z63: 0 | AA63: 2.845 | AB63: 0 | AC63: 0 | AD63: 0 | AE63: 0 | AF63: 0.1375 | AG63: 0 | AH63: -9999 | AI63: 23.86 | AJ63: 0.175 | AK63: 41.6025 | AL63: 0.55 | AM63: 0.6325 | AN63: 3.15 | AO63: 0 | AP63: 1750 | AQ63: 3.296763923 | AR63: 70.700935 | AU63: Site 3
A64: Thin Layer | B64: 2085 | C64: Hempstead Harbor | D64: Iteration 2 | E64: N A | F64: N A | G64: N A | H64: 9.515 | I64: 14.2075 | J64: 0.175 | K64: 0 | L64: 0 | M64: 0 | N64: 0.1975 | O64: 0.7375 | P64: 0 | Q64: 0.55 | R64: 0.0025 | S64: 0 | T64: 0 | U64: 0 | V64: 0.03 | W64: 0 | X64: 41.5725 | Y64: 0 | Z64: 0 | AA64: 2.845 | AB64: 0 | AC64: 0 | AD64: 0 | AE64: 0 | AF64: 0.1375 | AG64: 0 | AH64: -9999 | AI64: 23.86 | AJ64: 0.175 | AK64: 41.6025 | AL64: 0.5525 | AM64: 0.7375 | AN64: 3.0425 | AO64: 0 | AP64: 1815 | AQ64: 3.28172784 | AR64: 70.654206 | AU64: Site 3
A65: Thin Layer | B65: 2100 | C65: Hempstead Harbor | D65: Iteration 2 | E65: N A | F65: N A | G65: N A | H65: 9.515 | I65: 14.2075 | J65: 0.175 | K65: 0 | L65: 0 | M65: 0 | N65: 0.13 | O65: 0.805 | P65: 0 | Q65: 0.55 | R65: 0 | S65: 0 | T65: 0 | U65: 0 | V65: 0.03 | W65: 0 | X65: 41.575 | Y65: 0 | Z65: 0 | AA65: 2.845 | AB65: 0 | AC65: 0 | AD65: 0 | AE65: 0 | AF65: 0.1375 | AG65: 0 | AH65: -9999 | AI65: 23.86 | AJ65: 0.175 | AK65: 41.605 | AL65: 0.55 | AM65: 0.805 | AN65: 2.975 | AO65: 0 | AP65: 1880 | AQ65: 3.281975112 | AR65: 70.654206 | AU65: Site 3
A66: Thin Layer | B66: 2004 | C66: Cuba Middle and East Island | D66: Iteration 2 | E66: N A | F66: N A | G66: N A | H66: 0 | I66: 0 | J66: 0 | K66: 0 | L66: 0 | M66: 0 | N66: 0 | O66: 36.855 | P66: 0 | Q66: 1.1025 | R66: 13.8925 | S66: 0 | T66: 0 | U66: 0 | V66: 0 | W66: 0 | X66: 191.2575 | Y66: 0 | Z66: 0 | AA66: 53.6625 | AB66: 0 | AC66: 0 | AD66: 0 | AE66: 0 | AF66: 0 | AG66: 0 | AH66: -9999 | AI66: 0 | AJ66: 0 | AK66: 191.2575 | AL66: 14.995 | AM66: 36.855 | AN66: 53.6625 | AO66: 0 | AP66: 37480 | AQ66: 86.05328938 | AR66: 411.44318 | AU66: Site 4
A67: Thin Layer | B67: 2025 | C67: Cuba Middle and East Island | D67: Iteration 2 | E67: N A | F67: N A | G67: N A | H67: 0 | I67: 0 | J67: 0 | K67: 0 | L67: 0 | M67: 0 | N67: 0 | O67: 36.855 | P67: 0 | Q67: 1.1025 | R67: 11.6225 | S67: 0 | T67: 0 | U67: 0 | V67: 0 | W67: 0 | X67: 193.5275 | Y67: 0 | Z67: 0 | AA67: 53.6625 | AB67: 0 | AC67: 0 | AD67: 0 | AE67: 0 | AF67: 0 | AG67: 0 | AH67: -9999 | AI67: 0 | AJ67: 0 | AK67: 193.5275 | AL67: 12.725 | AM67: 36.855 | AN67: 53.6625 | AO67: 0 | AP67: 37480 | AQ67: 86.05328938 | AR67: 411.44318 | AU67: Site 4
A68: Thin Layer | B68: 2040 | C68: Cuba Middle and East Island | D68: Iteration 2 | E68: N A | F68: N A | G68: N A | H68: 0 | I68: 0 | J68: 0 | K68: 0 | L68: 0 | M68: 0 | N68: 0 | O68: 41.12 | P68: 0 | Q68: 1.1025 | R68: 10.875 | S68: 0 | T68: 0 | U68: 0 | V68: 0 | W68: 0 | X68: 194.46 | Y68: 0 | Z68: 0 | AA68: 49.2125 | AB68: 0 | AC68: 0 | AD68: 0 | AE68: 0 | AF68: 0 | AG68: 0 | AH68: -9999 | AI68: 0 | AJ68: 0 | AK68: 194.46 | AL68: 11.9775 | AM68: 41.12 | AN68: 49.2125 | AO68: 0 | AP68: 37930 | AQ68: 85.8113214 | AR68: 410.60227 | AU68: Site 4
A69: Thin Layer | B69: 2055 | C69: Cuba Middle and East Island | D69: Iteration 2 | E69: N A | F69: N A | G69: N A | H69: 0 | I69: 0 | J69: 0 | K69: 0 | L69: 0 | M69: 0 | N69: 0 | O69: 47.63 | P69: 0 | Q69: 1.1025 | R69: 10.0425 | S69: 0 | T69: 0 | U69: 0 | V69: 0 | W69: 0 | X69: 195.605 | Y69: 0 | Z69: 0 | AA69: 42.39 | AB69: 0 | AC69: 0 | AD69: 0 | AE69: 0 | AF69: 0 | AG69: 0 | AH69: -9999 | AI69: 0 | AJ69: 0 | AK69: 195.605 | AL69: 11.145 | AM69: 47.63 | AN69: 42.39 | AO69: 0 | AP69: 38470 | AQ69: 85.43023547 | AR69: 409.18182 | AU69: Site 4
A70: Thin Layer | B70: 2070 | C70: Cuba Middle and East Island | D70: Iteration 2 | E70: N A | F70: N A | G70: N A | H70: 0 | I70: 0 | J70: 0 | K70: 0 | L70: 0 | M70: 0 | N70: 0 | O70: 58.3225 | P70: 0 | Q70: 1.1025 | R70: 8.645 | S70: 0 | T70: 0 | U70: 0 | V70: 0 | W70: 0 | X70: 197.6425 | Y70: 0 | Z70: 0 | AA70: 31.0575 | AB70: 0 | AC70: 0 | AD70: 0 | AE70: 0 | AF70: 0 | AG70: 0 | AH70: -9999 | AI70: 0 | AJ70: 0 | AK70: 197.6425 | AL70: 9.7475 | AM70: 58.3225 | AN70: 31.0575 | AO70: 0 | AP70: 39620 | AQ70: 84.6442273 | AR70: 406.27273 | AU70: Site 4
A71: Thin Layer | B71: 2085 | C71: Cuba Middle and East Island | D71: Iteration 2 | E71: N A | F71: N A | G71: N A | H71: 0 | I71: 0 | J71: 0 | K71: 0 | L71: 0 | M71: 0 | N71: 0 | O71: 69.415 | P71: 0 | Q71: 1.1025 | R71: 6.56 | S71: 0 | T71: 0 | U71: 0 | V71: 0 | W71: 0 | X71: 200.5925 | Y71: 0 | Z71: 0 | AA71: 19.1 | AB71: 0 | AC71: 0 | AD71: 0 | AE71: 0 | AF71: 0 | AG71: 0 | AH71: -9999 | AI71: 0 | AJ71: 0 | AK71: 200.5925 | AL71: 7.6625 | AM71: 69.415 | AN71: 19.1 | AO71: 0 | AP71: 41530 | AQ71: 83.53719718 | AR71: 402.34091 | AU71: Site 4
A72: Thin Layer | B72: 2100 | C72: Cuba Middle and East Island | D72: Iteration 2 | E72: N A | F72: N A | G72: N A | H72: 0 | I72: 0 | J72: 0 | K72: 0 | L72: 0 | M72: 0 | N72: 0 | O72: 77.3475 | P72: 0 | Q72: 1.1025 | R72: 4.555 | S72: 0 | T72: 0 | U72: 0 | V72: 0 | W72: 0 | X72: 204.1875 | Y72: 0 | Z72: 0 | AA72: 9.5775 | AB72: 0 | AC72: 0 | AD72: 0 | AE72: 0 | AF72: 0 | AG72: 0 | AH72: -9999 | AI72: 0 | AJ72: 0 | AK72: 204.1875 | AL72: 5.6575 | AM72: 77.3475 | AN72: 9.5775 | AO72: 0 | AP72: 45120 | AQ72: 81.49231043 | AR72: 395.11364 | AU72: Site 4
A73: Thin Layer | B73: 2004 | C73: Marine Nature Study Area | D73: Iteration 2 | E73: N A | F73: N A | G73: N A | H73: 1.0675 | I73: 4.5725 | J73: 0 | K73: 0 | L73: 0 | M73: 0 | N73: 0.03 | O73: 2.2425 | P73: 0 | Q73: 0 | R73: 1.8825 | S73: 0 | T73: 0 | U73: 0 | V73: 0 | W73: 0 | X73: 4.66 | Y73: 0 | Z73: 0 | AA73: 14.165 | AB73: 0 | AC73: 0 | AD73: 0 | AE73: 0 | AF73: 0 | AG73: 0 | AH73: -9999 | AI73: 5.64 | AJ73: 0 | AK73: 4.66 | AL73: 1.8825 | AM73: 2.2425 | AN73: 14.195 | AO73: 0 | AP73: 4330 | AQ73: 15.55306149 | AR73: 365.27778 | AU73: Site 5
A74: Thin Layer | B74: 2025 | C74: Marine Nature Study Area | D74: Iteration 2 | E74: N A | F74: N A | G74: N A | H74: 1.0675 | I74: 4.5725 | J74: 0 | K74: 0 | L74: 0 | M74: 0 | N74: 0.03 | O74: 2.2325 | P74: 0 | Q74: 0 | R74: 1.6125 | S74: 0 | T74: 0 | U74: 0 | V74: 0 | W74: 0 | X74: 4.94 | Y74: 0 | Z74: 0 | AA74: 14.165 | AB74: 0 | AC74: 0 | AD74: 0 | AE74: 0 | AF74: 0 | AG74: 0 | AH74: -9999 | AI74: 5.64 | AJ74: 0 | AK74: 4.94 | AL74: 1.6125 | AM74: 2.2325 | AN74: 14.195 | AO74: 0 | AP74: 4345 | AQ74: 15.54300208 | AR74: 365.05556 | AU74: Site 5
A75: Thin Layer | B75: 2040 | C75: Marine Nature Study Area | D75: Iteration 2 | E75: N A | F75: N A | G75: N A | H75: 1.0675 | I75: 4.5725 | J75: 0 | K75: 0 | L75: 0 | M75: 0 | N75: 0.0225 | O75: 2.3325 | P75: 0 | Q75: 0 | R75: 1.4625 | S75: 0 | T75: 0 | U75: 0 | V75: 0 | W75: 0 | X75: 5.125 | Y75: 0 | Z75: 0 | AA75: 14.0375 | AB75: 0 | AC75: 0 | AD75: 0 | AE75: 0 | AF75: 0 | AG75: 0 | AH75: -9999 | AI75: 5.64 | AJ75: 0 | AK75: 5.125 | AL75: 1.4625 | AM75: 2.3325 | AN75: 14.06 | AO75: 0 | AP75: 4320 | AQ75: 15.50891516 | AR75: 364.27778 | AU75: Site 5
A76: Thin Layer | B76: 2055 | C76: Marine Nature Study Area | D76: Iteration 2 | E76: N A | F76: N A | G76: N A | H76: 1.0675 | I76: 4.5725 | J76: 0 | K76: 0 | L76: 0 | M76: 0 | N76: 0.015 | O76: 2.555 | P76: 0 | Q76: 0 | R76: 1.265 | S76: 0 | T76: 0 | U76: 0 | V76: 0 | W76: 0 | X76: 5.3725 | Y76: 0 | Z76: 0 | AA76: 13.7725 | AB76: 0 | AC76: 0 | AD76: 0 | AE76: 0 | AF76: 0 | AG76: 0 | AH76: -9999 | AI76: 5.64 | AJ76: 0 | AK76: 5.3725 | AL76: 1.265 | AM76: 2.555 | AN76: 13.7875 | AO76: 0 | AP76: 4340 | AQ76: 15.45784308 | AR76: 363.16667 | AU76: Site 5
A77: Thin Layer | B77: 2070 | C77: Marine Nature Study Area | D77: Iteration 2 | E77: N A | F77: N A | G77: N A | H77: 1.0675 | I77: 4.5725 | J77: 0 | K77: 0 | L77: 0 | M77: 0 | N77: 0.01 | O77: 3.0025 | P77: 0 | Q77: 0 | R77: 0.99 | S77: 0 | T77: 0 | U77: 0 | V77: 0 | W77: 0 | X77: 5.7225 | Y77: 0 | Z77: 0 | AA77: 13.255 | AB77: 0 | AC77: 0 | AD77: 0 | AE77: 0 | AF77: 0 | AG77: 0 | AH77: -9999 | AI77: 5.64 | AJ77: 0 | AK77: 5.7225 | AL77: 0.99 | AM77: 3.0025 | AN77: 13.265 | AO77: 0 | AP77: 4450 | AQ77: 15.37008105 | AR77: 361.5 | AU77: Site 5
A78: Thin Layer | B78: 2085 | C78: Marine Nature Study Area | D78: Iteration 2 | E78: N A | F78: N A | G78: N A | H78: 1.0675 | I78: 4.5725 | J78: 0 | K78: 0 | L78: 0 | M78: 0 | N78: 0.005 | O78: 4.0175 | P78: 0 | Q78: 0 | R78: 0.5775 | S78: 0 | T78: 0 | U78: 0 | V78: 0 | W78: 0 | X78: 6.2075 | Y78: 0 | Z78: 0 | AA78: 12.1725 | AB78: 0 | AC78: 0 | AD78: 0 | AE78: 0 | AF78: 0 | AG78: 0 | AH78: -9999 | AI78: 5.64 | AJ78: 0 | AK78: 6.2075 | AL78: 0.5775 | AM78: 4.0175 | AN78: 12.1775 | AO78: 0 | AP78: 4500 | AQ78: 15.29432485 | AR78: 359.88889 | AU78: Site 5
A79: Thin Layer | B79: 2100 | C79: Marine Nature Study Area | D79: Iteration 2 | E79: N A | F79: N A | G79: N A | H79: 1.0675 | I79: 4.5725 | J79: 0 | K79: 0 | L79: 0 | M79: 0 | N79: 0 | O79: 5.9725 | P79: 0 | Q79: 0 | R79: 0.255 | S79: 0 | T79: 0 | U79: 0 | V79: 0 | W79: 0 | X79: 6.695 | Y79: 0 | Z79: 0 | AA79: 10.0575 | AB79: 0 | AC79: 0 | AD79: 0 | AE79: 0 | AF79: 0 | AG79: 0 | AH79: -9999 | AI79: 5.64 | AJ79: 0 | AK79: 6.695 | AL79: 0.255 | AM79: 5.9725 | AN79: 10.0575 | AO79: 0 | AP79: 4820 | AQ79: 15.09076654 | AR79: 356.22222 | AU79: Site 5
A80: Thin Layer | B80: 2004 | C80: Seamans Neck Park | D80: Iteration 2 | E80: N A | F80: N A | G80: N A | H80: 7.4475 | I80: 14.7975 | J80: 0.0975 | K80: 0 | L80: 0 | M80: 0 | N80: 0.8625 | O80: 4.985 | P80: 0 | Q80: 0 | R80: 0.0725 | S80: 0 | T80: 0 | U80: 0 | V80: 1.1375 | W80: 0 | X80: 8.455 | Y80: 0 | Z80: 0 | AA80: 4.0125 | AB80: 0 | AC80: 0 | AD80: 0 | AE80: 0 | AF80: 0.0275 | AG80: 0 | AH80: -9999 | AI80: 22.2725 | AJ80: 0.0975 | AK80: 9.5925 | AL80: 0.0725 | AM80: 4.985 | AN80: 4.875 | AO80: 0 | AP80: 3575 | AQ80: 8.950721401 | AR80: 219.11111 | AU80: Site 6
A81: Thin Layer | B81: 2025 | C81: Seamans Neck Park | D81: Iteration 2 | E81: N A | F81: N A | G81: N A | H81: 7.4475 | I81: 14.7975 | J81: 0.0475 | K81: 0 | L81: 0 | M81: 0 | N81: 0.9125 | O81: 4.8725 | P81: 0 | Q81: 0 | R81: 0.075 | S81: 0 | T81: 0 | U81: 0 | V81: 0 | W81: 0 | X81: 9.7025 | Y81: 0 | Z81: 0 | AA81: 4.0125 | AB81: 0 | AC81: 0 | AD81: 0 | AE81: 0 | AF81: 0.0275 | AG81: 0 | AH81: -9999 | AI81: 22.2725 | AJ81: 0.0475 | AK81: 9.7025 | AL81: 0.075 | AM81: 4.8725 | AN81: 4.925 | AO81: 0 | AP81: 3515 | AQ81: 8.904943015 | AR81: 217.72222 | AU81: Site 6
A82: Thin Layer | B82: 2040 | C82: Seamans Neck Park | D82: Iteration 2 | E82: N A | F82: N A | G82: N A | H82: 7.4475 | I82: 14.7975 | J82: 0.0425 | K82: 0 | L82: 0 | M82: 0 | N82: 0.78 | O82: 5.525 | P82: 0 | Q82: 0 | R82: 0.0325 | S82: 0 | T82: 0 | U82: 0 | V82: 0 | W82: 0 | X82: 9.7725 | Y82: 0 | Z82: 0 | AA82: 3.47 | AB82: 0 | AC82: 0 | AD82: 0 | AE82: 0 | AF82: 0.0275 | AG82: 0 | AH82: -9999 | AI82: 22.2725 | AJ82: 0.0425 | AK82: 9.7725 | AL82: 0.0325 | AM82: 5.525 | AN82: 4.25 | AO82: 0 | AP82: 3680 | AQ82: 8.871065795 | AR82: 217.22222 | AU82: Site 6
A83: Thin Layer | B83: 2055 | C83: Seamans Neck Park | D83: Iteration 2 | E83: N A | F83: N A | G83: N A | H83: 7.4475 | I83: 14.7975 | J83: 0.035 | K83: 0 | L83: 0 | M83: 0 | N83: 0.6875 | O83: 6.33 | P83: 0 | Q83: 0 | R83: 0.04 | S83: 0 | T83: 0 | U83: 0 | V83: 0 | W83: 0 | X83: 9.865 | Y83: 0 | Z83: 0 | AA83: 2.665 | AB83: 0 | AC83: 0 | AD83: 0 | AE83: 0 | AF83: 0.0275 | AG83: 0 | AH83: -9999 | AI83: 22.2725 | AJ83: 0.035 | AK83: 9.865 | AL83: 0.04 | AM83: 6.33 | AN83: 3.3525 | AO83: 0 | AP83: 3680 | AQ83: 8.809561316 | AR83: 215.16667 | AU83: Site 6
A84: Thin Layer | B84: 2070 | C84: Seamans Neck Park | D84: Iteration 2 | E84: N A | F84: N A | G84: N A | H84: 7.4475 | I84: 14.7975 | J84: 0.025 | K84: 0 | L84: 0 | M84: 0 | N84: 0.5675 | O84: 7.3 | P84: 0 | Q84: 0 | R84: 0.075 | S84: 0 | T84: 0 | U84: 0 | V84: 0 | W84: 0 | X84: 9.9475 | Y84: 0 | Z84: 0 | AA84: 1.7075 | AB84: 0 | AC84: 0 | AD84: 0 | AE84: 0 | AF84: 0.0275 | AG84: 0 | AH84: -9999 | AI84: 22.2725 | AJ84: 0.025 | AK84: 9.9475 | AL84: 0.075 | AM84: 7.3 | AN84: 2.275 | AO84: 0 | AP84: 3790 | AQ84: 8.7232841 | AR84: 212.77778 | AU84: Site 6
A85: Thin Layer | B85: 2085 | C85: Seamans Neck Park | D85: Iteration 2 | E85: N A | F85: N A | G85: N A | H85: 7.4475 | I85: 14.7975 | J85: 0.0225 | K85: 0 | L85: 0 | M85: 0 | N85: 0.46 | O85: 7.9125 | P85: 0 | Q85: 0 | R85: 0.135 | S85: 0 | T85: 0 | U85: 0 | V85: 0 | W85: 0 | X85: 10.085 | Y85: 0 | Z85: 0 | AA85: 1.0075 | AB85: 0 | AC85: 0 | AD85: 0 | AE85: 0 | AF85: 0.0275 | AG85: 0 | AH85: -9999 | AI85: 22.2725 | AJ85: 0.0225 | AK85: 10.085 | AL85: 0.135 | AM85: 7.9125 | AN85: 1.4675 | AO85: 0 | AP85: 4215 | AQ85: 8.490709354 | AR85: 208.44444 | AU85: Site 6
A86: Thin Layer | B86: 2100 | C86: Seamans Neck Park | D86: Iteration 2 | E86: N A | F86: N A | G86: N A | H86: 7.4475 | I86: 14.7975 | J86: 0.0125 | K86: 0 | L86: 0 | M86: 0 | N86: 0.355 | O86: 8.2175 | P86: 0 | Q86: 0 | R86: 0.2225 | S86: 0 | T86: 0 | U86: 0 | V86: 0 | W86: 0 | X86: 10.27 | Y86: 0 | Z86: 0 | AA86: 0.545 | AB86: 0 | AC86: 0 | AD86: 0 | AE86: 0 | AF86: 0.0275 | AG86: 0 | AH86: -9999 | AI86: 22.2725 | AJ86: 0.0125 | AK86: 10.27 | AL86: 0.2225 | AM86: 8.2175 | AN86: 0.9 | AO86: 0 | AP86: 4865 | AQ86: 8.176161055 | AR86: 202.61111 | AU86: Site 6
A87: Thin Layer | B87: 2004 | C87: Dosoris Pond/West Pond | D87: Iteration 3 | E87: N A | F87: N A | G87: N A | H87: 28.3125 | I87: 122.8975 | J87: 1.6475 | K87: 0 | L87: 0.6175 | M87: 0 | N87: 1.2575 | O87: 13.2925 | P87: 0 | Q87: 14.9925 | R87: 0.0175 | S87: 0 | T87: 0 | U87: 0 | V87: 1.1175 | W87: 0 | X87: 76.8025 | Y87: 0 | Z87: 0 | AA87: 0.3675 | AB87: 0 | AC87: 0.2075 | AD87: 0.165 | AE87: 0 | AF87: 0.0525 | AG87: 0 | AH87: -9999 | AI87: 151.2625 | AJ87: 2.4725 | AK87: 77.92 | AL87: 15.01 | AM87: 13.2925 | AN87: 1.625 | AO87: 0.165 | AP87: 4860 | AQ87: 13.45839016 | AR87: 54.245455 | AU87: Site 1
A88: Thin Layer | B88: 2025 | C88: Dosoris Pond/West Pond | D88: Iteration 3 | E88: N A | F88: N A | G88: N A | H88: 28.3125 | I88: 122.8975 | J88: 1.6475 | K88: 0 | L88: 0.6175 | M88: 0 | N88: 1.1575 | O88: 13.2675 | P88: 0 | Q88: 14.715 | R88: 0.1425 | S88: 0 | T88: 0 | U88: 0 | V88: 1.1175 | W88: 0 | X88: 77.085 | Y88: 0 | Z88: 0 | AA88: 0.3775 | AB88: 0 | AC88: 0.2075 | AD88: 0.15 | AE88: 0 | AF88: 0.0525 | AG88: 0 | AH88: -9999 | AI88: 151.2625 | AJ88: 2.4725 | AK88: 78.2025 | AL88: 14.8575 | AM88: 13.2675 | AN88: 1.535 | AO88: 0.15 | AP88: 5020 | AQ88: 13.32053482 | AR88: 53.827273 | AU88: Site 1
A89: Thin Layer | B89: 2040 | C89: Dosoris Pond/West Pond | D89: Iteration 3 | E89: N A | F89: N A | G89: N A | H89: 28.3125 | I89: 122.8975 | J89: 1.6475 | K89: 0 | L89: 0.6175 | M89: 0 | N89: 0.865 | O89: 13.4525 | P89: 0 | Q89: 14.4175 | R89: 0.245 | S89: 0 | T89: 0 | U89: 0 | V89: 1.115 | W89: 0 | X89: 77.4 | Y89: 0 | Z89: 0 | AA89: 0.3725 | AB89: 0 | AC89: 0.2075 | AD89: 0.145 | AE89: 0 | AF89: 0.0525 | AG89: 0 | AH89: -9999 | AI89: 151.2625 | AJ89: 2.4725 | AK89: 78.515 | AL89: 14.6625 | AM89: 13.4525 | AN89: 1.2375 | AO89: 0.145 | AP89: 5245 | AQ89: 13.19423324 | AR89: 53.418182 | AU89: Site 1
A90: Thin Layer | B90: 2055 | C90: Dosoris Pond/West Pond | D90: Iteration 3 | E90: N A | F90: N A | G90: N A | H90: 28.3125 | I90: 122.8975 | J90: 1.6475 | K90: 0 | L90: 0.085 | M90: 0 | N90: 1.075 | O90: 13.6125 | P90: 0 | Q90: 14.1275 | R90: 0.395 | S90: 0 | T90: 0 | U90: 0 | V90: 1.1125 | W90: 0 | X90: 77.72 | Y90: 0 | Z90: 0 | AA90: 0.3625 | AB90: 0 | AC90: 0.2075 | AD90: 0.14 | AE90: 0 | AF90: 0.0525 | AG90: 0 | AH90: -9999 | AI90: 151.2625 | AJ90: 1.94 | AK90: 78.8325 | AL90: 14.5225 | AM90: 13.6125 | AN90: 1.4375 | AO90: 0.14 | AP90: 5420 | AQ90: 13.46456308 | AR90: 54.727273 | AU90: Site 1
A91: Thin Layer | B91: 2070 | C91: Dosoris Pond/West Pond | D91: Iteration 3 | E91: N A | F91: N A | G91: N A | H91: 28.3125 | I91: 122.8975 | J91: 1.6475 | K91: 0 | L91: 0.0575 | M91: 0 | N91: 0.2475 | O91: 14.0825 | P91: 0 | Q91: 13.28 | R91: 0.68 | S91: 0 | T91: 0 | U91: 0 | V91: 1.1125 | W91: 0 | X91: 78.695 | Y91: 0 | Z91: 0 | AA91: 0.355 | AB91: 0 | AC91: 0.2075 | AD91: 0.12 | AE91: 0 | AF91: 0.0525 | AG91: 0 | AH91: -9999 | AI91: 151.2625 | AJ91: 1.9125 | AK91: 79.8075 | AL91: 13.96 | AM91: 14.0825 | AN91: 0.6025 | AO91: 0.12 | AP91: 6155 | AQ91: 12.99937138 | AR91: 53.4 | AU91: Site 1
A92: Thin Layer | B92: 2085 | C92: Dosoris Pond/West Pond | D92: Iteration 3 | E92: N A | F92: N A | G92: N A | H92: 28.3125 | I92: 122.8975 | J92: 1.6475 | K92: 0 | L92: 0.045 | M92: 0 | N92: 0.07 | O92: 13.5425 | P92: 0 | Q92: 10.5575 | R92: 1.22 | S92: 0 | T92: 0 | U92: 0 | V92: 1.0175 | W92: 0 | X92: 81.7275 | Y92: 0 | Z92: 0 | AA92: 0.345 | AB92: 0 | AC92: 0.2075 | AD92: 0.105 | AE92: 0 | AF92: 0.0525 | AG92: 0 | AH92: -9999 | AI92: 151.2625 | AJ92: 1.9 | AK92: 82.745 | AL92: 11.7775 | AM92: 13.5425 | AN92: 0.415 | AO92: 0.105 | AP92: 7235 | AQ92: 12.15566536 | AR92: 50.754545 | AU92: Site 1
A93: Thin Layer | B93: 2100 | C93: Dosoris Pond/West Pond | D93: Iteration 3 | E93: N A | F93: N A | G93: N A | H93: 28.3125 | I93: 122.8975 | J93: 1.6175 | K93: 0 | L93: 0.0275 | M93: 0 | N93: 0.0625 | O93: 12.22 | P93: 0 | Q93: 7.8875 | R93: 2.35 | S93: 0 | T93: 0 | U93: 0 | V93: 0.7625 | W93: 0 | X93: 84.965 | Y93: 0 | Z93: 0 | AA93: 0.2825 | AB93: 0 | AC93: 0.2075 | AD93: 0.1025 | AE93: 0 | AF93: 0.0525 | AG93: 0 | AH93: -9999 | AI93: 151.2625 | AJ93: 1.8525 | AK93: 85.7275 | AL93: 10.2375 | AM93: 12.22 | AN93: 0.345 | AO93: 0.1025 | AP93: 9620 | AQ93: 10.45199681 | AR93: 45.690909 | AU93: Site 1
A94: Thin Layer | B94: 2004 | C94: Lattingtown | D94: Iteration 3 | E94: N A | F94: N A | G94: N A | H94: 7.905 | I94: 101.735 | J94: 2.85 | K94: 0 | L94: 0.23 | M94: 0 | N94: 2.8725 | O94: 0.4725 | P94: 0 | Q94: 7.3775 | R94: 7.57 | S94: 0 | T94: 0 | U94: 0 | V94: 1.5525 | W94: 0 | X94: 21.84 | Y94: 0 | Z94: 0 | AA94: 14.925 | AB94: 0 | AC94: 0 | AD94: 0 | AE94: 0 | AF94: 0.04 | AG94: 0 | AH94: -9999 | AI94: 109.68 | AJ94: 3.08 | AK94: 23.3925 | AL94: 14.9475 | AM94: 0.4725 | AN94: 17.7975 | AO94: 0 | AP94: 13870 | AQ94: 15.54934875 | AR94: 83.045455 | AU94: Site 2
A95: Thin Layer | B95: 2025 | C95: Lattingtown | D95: Iteration 3 | E95: N A | F95: N A | G95: N A | H95: 7.905 | I95: 101.735 | J95: 2.85 | K95: 0 | L95: 0.22 | M95: 0 | N95: 2.8275 | O95: 0.5425 | P95: 0 | Q95: 6.9 | R95: 7.565 | S95: 0 | T95: 0 | U95: 0 | V95: 1.5925 | W95: 0 | X95: 22.2925 | Y95: 0 | Z95: 0 | AA95: 14.9 | AB95: 0 | AC95: 0 | AD95: 0 | AE95: 0 | AF95: 0.04 | AG95: 0 | AH95: -9999 | AI95: 109.68 | AJ95: 3.07 | AK95: 23.885 | AL95: 14.465 | AM95: 0.5425 | AN95: 17.7275 | AO95: 0 | AP95: 13965 | AQ95: 15.52346427 | AR95: 83.045455 | AU95: Site 2
A96: Thin Layer | B96: 2040 | C96: Lattingtown | D96: Iteration 3 | E96: N A | F96: N A | G96: N A | H96: 7.905 | I96: 101.735 | J96: 2.85 | K96: 0 | L96: 0.2075 | M96: 0 | N96: 2.72 | O96: 0.72 | P96: 0 | Q96: 6.47 | R96: 7.49 | S96: 0 | T96: 0 | U96: 0 | V96: 1.6 | W96: 0 | X96: 22.79 | Y96: 0 | Z96: 0 | AA96: 14.8425 | AB96: 0 | AC96: 0 | AD96: 0 | AE96: 0 | AF96: 0.04 | AG96: 0 | AH96: -9999 | AI96: 109.68 | AJ96: 3.0575 | AK96: 24.39 | AL96: 13.96 | AM96: 0.72 | AN96: 17.5625 | AO96: 0 | AP96: 14115 | AQ96: 15.48102219 | AR96: 83.102273 | AU96: Site 2
A97: Thin Layer | B97: 2055 | C97: Lattingtown | D97: Iteration 3 | E97: N A | F97: N A | G97: N A | H97: 7.905 | I97: 101.735 | J97: 2.8425 | K97: 0 | L97: 0.205 | M97: 0 | N97: 2.4875 | O97: 1.0825 | P97: 0 | Q97: 6.045 | R97: 7.235 | S97: 0 | T97: 0 | U97: 0 | V97: 1.5775 | W97: 0 | X97: 23.5 | Y97: 0 | Z97: 0 | AA97: 14.715 | AB97: 0 | AC97: 0 | AD97: 0 | AE97: 0 | AF97: 0.04 | AG97: 0 | AH97: -9999 | AI97: 109.68 | AJ97: 3.0475 | AK97: 25.0775 | AL97: 13.28 | AM97: 1.0825 | AN97: 17.2025 | AO97: 0 | AP97: 14360 | AQ97: 15.41508406 | AR97: 83.113636 | AU97: Site 2
A98: Thin Layer | B98: 2070 | C98: Lattingtown | D98: Iteration 3 | E98: N A | F98: N A | G98: N A | H98: 7.905 | I98: 101.735 | J98: 2.83 | K98: 0 | L98: 0.2025 | M98: 0 | N98: 2.2425 | O98: 1.7075 | P98: 0 | Q98: 5.645 | R98: 6.7275 | S98: 0 | T98: 0 | U98: 0 | V98: 1.5725 | W98: 0 | X98: 24.44 | Y98: 0 | Z98: 0 | AA98: 14.3225 | AB98: 0 | AC98: 0 | AD98: 0 | AE98: 0 | AF98: 0.04 | AG98: 0 | AH98: -9999 | AI98: 109.68 | AJ98: 3.0325 | AK98: 26.0125 | AL98: 12.3725 | AM98: 1.7075 | AN98: 16.565 | AO98: 0 | AP98: 14680 | AQ98: 15.40289994 | AR98: 83.056818 | AU98: Site 2
A99: Thin Layer | B99: 2085 | C99: Lattingtown | D99: Iteration 3 | E99: N A | F99: N A | G99: N A | H99: 7.905 | I99: 101.735 | J99: 2.7025 | K99: 0 | L99: 0.2 | M99: 0 | N99: 2.2125 | O99: 2.6225 | P99: 0 | Q99: 5.26 | R99: 5.6725 | S99: 0 | T99: 0 | U99: 0 | V99: 1.595 | W99: 0 | X99: 25.935 | Y99: 0 | Z99: 0 | AA99: 13.49 | AB99: 0 | AC99: 0 | AD99: 0 | AE99: 0 | AF99: 0.04 | AG99: 0 | AH99: -9999 | AI99: 109.68 | AJ99: 2.9025 | AK99: 27.53 | AL99: 10.9325 | AM99: 2.6225 | AN99: 15.7025 | AO99: 0 | AP99: 14920 | AQ99: 15.38937889 | AR99: 83.295455 | AU99: Site 2
A100: Thin Layer | B100: 2100 | C100: Lattingtown | D100: Iteration 3 | E100: N A | F100: N A | G100: N A | H100: 7.905 | I100: 101.735 | J100: 2.5425 | K100: 0 | L100: 0.1975 | M100: 0 | N100: 2.205 | O100: 4.085 | P100: 0 | Q100: 4.94 | R100: 4.095 | S100: 0 | T100: 0 | U100: 0 | V100: 1.595 | W100: 0 | X100: 28.0475 | Y100: 0 | Z100: 0 | AA100: 11.9825 | AB100: 0 | AC100: 0 | AD100: 0 | AE100: 0 | AF100: 0.04 | AG100: 0 | AH100: -9999 | AI100: 109.68 | AJ100: 2.74 | AK100: 29.6425 | AL100: 9.035 | AM100: 4.085 | AN100: 14.1875 | AO100: 0 | AP100: 14925 | AQ100: 15.28076517 | AR100: 83.056818 | AU100: Site 2
A101: Thin Layer | B101: 2004 | C101: Hempstead Harbor | D101: Iteration 3 | E101: N A | F101: N A | G101: N A | H101: 9.515 | I101: 14.2075 | J101: 0.175 | K101: 0 | L101: 0 | M101: 0 | N101: 0.645 | O101: 0.3125 | P101: 0 | Q101: 0.55 | R101: 0 | S101: 0 | T101: 0 | U101: 0 | V101: 0.03 | W101: 0 | X101: 41.5525 | Y101: 0 | Z101: 0 | AA101: 2.845 | AB101: 0 | AC101: 0 | AD101: 0 | AE101: 0 | AF101: 0.1375 | AG101: 0 | AH101: -9999 | AI101: 23.86 | AJ101: 0.175 | AK101: 41.5825 | AL101: 0.55 | AM101: 0.3125 | AN101: 3.49 | AO101: 0 | AP101: 1355 | AQ101: 3.422650815 | AR101: 71.074766 | AU101: Site 3
A102: Thin Layer | B102: 2025 | C102: Hempstead Harbor | D102: Iteration 3 | E102: N A | F102: N A | G102: N A | H102: 9.515 | I102: 14.2075 | J102: 0.175 | K102: 0 | L102: 0 | M102: 0 | N102: 0.59 | O102: 0.3575 | P102: 0 | Q102: 0.55 | R102: 0.01 | S102: 0 | T102: 0 | U102: 0 | V102: 0.03 | W102: 0 | X102: 41.5525 | Y102: 0 | Z102: 0 | AA102: 2.845 | AB102: 0 | AC102: 0 | AD102: 0 | AE102: 0 | AF102: 0.1375 | AG102: 0 | AH102: -9999 | AI102: 23.86 | AJ102: 0.175 | AK102: 41.5825 | AL102: 0.56 | AM102: 0.3575 | AN102: 3.435 | AO102: 0 | AP102: 1420 | AQ102: 3.383962983 | AR102: 70.88785 | AU102: Site 3
A103: Thin Layer | B103: 2040 | C103: Hempstead Harbor | D103: Iteration 3 | E103: N A | F103: N A | G103: N A | H103: 9.515 | I103: 14.2075 | J103: 0.175 | K103: 0 | L103: 0 | M103: 0 | N103: 0.485 | O103: 0.4625 | P103: 0 | Q103: 0.55 | R103: 0 | S103: 0 | T103: 0 | U103: 0 | V103: 0.03 | W103: 0 | X103: 41.5625 | Y103: 0 | Z103: 0 | AA103: 2.845 | AB103: 0 | AC103: 0 | AD103: 0 | AE103: 0 | AF103: 0.1375 | AG103: 0 | AH103: -9999 | AI103: 23.86 | AJ103: 0.175 | AK103: 41.5925 | AL103: 0.55 | AM103: 0.4625 | AN103: 3.33 | AO103: 0 | AP103: 1535 | AQ103: 3.341068956 | AR103: 70.88785 | AU103: Site 3
A104: Thin Layer | B104: 2055 | C104: Hempstead Harbor | D104: Iteration 3 | E104: N A | F104: N A | G104: N A | H104: 9.515 | I104: 14.2075 | J104: 0.175 | K104: 0 | L104: 0 | M104: 0 | N104: 0.335 | O104: 0.6025 | P104: 0 | Q104: 0.55 | R104: 0.01 | S104: 0 | T104: 0 | U104: 0 | V104: 0.03 | W104: 0 | X104: 41.5625 | Y104: 0 | Z104: 0 | AA104: 2.845 | AB104: 0 | AC104: 0 | AD104: 0 | AE104: 0 | AF104: 0.1375 | AG104: 0 | AH104: -9999 | AI104: 23.86 | AJ104: 0.175 | AK104: 41.5925 | AL104: 0.56 | AM104: 0.6025 | AN104: 3.18 | AO104: 0 | AP104: 1685 | AQ104: 3.302295476 | AR104: 70.700935 | AU104: Site 3
A105: Thin Layer | B105: 2070 | C105: Hempstead Harbor | D105: Iteration 3 | E105: N A | F105: N A | G105: N A | H105: 9.515 | I105: 14.2075 | J105: 0.175 | K105: 0 | L105: 0 | M105: 0 | N105: 0.2 | O105: 0.7425 | P105: 0 | Q105: 0.55 | R105: 0 | S105: 0 | T105: 0 | U105: 0 | V105: 0.03 | W105: 0 | X105: 41.5725 | Y105: 0 | Z105: 0 | AA105: 2.84 | AB105: 0 | AC105: 0 | AD105: 0 | AE105: 0 | AF105: 0.1375 | AG105: 0 | AH105: -9999 | AI105: 23.86 | AJ105: 0.175 | AK105: 41.6025 | AL105: 0.55 | AM105: 0.7425 | AN105: 3.04 | AO105: 0 | AP105: 1825 | AQ105: 3.280496579 | AR105: 70.700935 | AU105: Site 3
A106: Thin Layer | B106: 2085 | C106: Hempstead Harbor | D106: Iteration 3 | E106: N A | F106: N A | G106: N A | H106: 9.515 | I106: 14.2075 | J106: 0.175 | K106: 0 | L106: 0 | M106: 0 | N106: 0.125 | O106: 0.9025 | P106: 0 | Q106: 0.55 | R106: 0.0025 | S106: 0 | T106: 0 | U106: 0 | V106: 0.03 | W106: 0 | X106: 41.5725 | Y106: 0 | Z106: 0 | AA106: 2.7525 | AB106: 0 | AC106: 0 | AD106: 0 | AE106: 0 | AF106: 0.1375 | AG106: 0 | AH106: -9999 | AI106: 23.86 | AJ106: 0.175 | AK106: 41.6025 | AL106: 0.5525 | AM106: 0.9025 | AN106: 2.8775 | AO106: 0 | AP106: 1895 | AQ106: 3.277485435 | AR106: 70.654206 | AU106: Site 3
A107: Thin Layer | B107: 2100 | C107: Hempstead Harbor | D107: Iteration 3 | E107: N A | F107: N A | G107: N A | H107: 9.515 | I107: 14.2075 | J107: 0.175 | K107: 0 | L107: 0 | M107: 0 | N107: 0.0825 | O107: 1.1525 | P107: 0 | Q107: 0.55 | R107: 0 | S107: 0 | T107: 0 | U107: 0 | V107: 0.03 | W107: 0 | X107: 41.575 | Y107: 0 | Z107: 0 | AA107: 2.545 | AB107: 0 | AC107: 0 | AD107: 0 | AE107: 0 | AF107: 0.1375 | AG107: 0 | AH107: -9999 | AI107: 23.86 | AJ107: 0.175 | AK107: 41.605 | AL107: 0.55 | AM107: 1.1525 | AN107: 2.6275 | AO107: 0 | AP107: 1905 | AQ107: 3.277736334 | AR107: 70.654206 | AU107: Site 3
A108: Thin Layer | B108: 2004 | C108: Cuba Middle and East Island | D108: Iteration 3 | E108: N A | F108: N A | G108: N A | H108: 0 | I108: 0 | J108: 0 | K108: 0 | L108: 0 | M108: 0 | N108: 0 | O108: 30.16 | P108: 0 | Q108: 1.1025 | R108: 12.8925 | S108: 0 | T108: 0 | U108: 0 | V108: 0 | W108: 0 | X108: 192.315 | Y108: 0 | Z108: 0 | AA108: 60.3 | AB108: 0 | AC108: 0 | AD108: 0 | AE108: 0 | AF108: 0 | AG108: 0 | AH108: -9999 | AI108: 0 | AJ108: 0 | AK108: 192.315 | AL108: 13.995 | AM108: 30.16 | AN108: 60.3 | AO108: 0 | AP108: 37810 | AQ108: 85.9542051 | AR108: 411.18182 | AU108: Site 4
A109: Thin Layer | B109: 2025 | C109: Cuba Middle and East Island | D109: Iteration 3 | E109: N A | F109: N A | G109: N A | H109: 0 | I109: 0 | J109: 0 | K109: 0 | L109: 0 | M109: 0 | N109: 0 | O109: 31.6475 | P109: 0 | Q109: 1.1025 | R109: 8.6675 | S109: 0 | T109: 0 | U109: 0 | V109: 0 | W109: 0 | X109: 196.74 | Y109: 0 | Z109: 0 | AA109: 58.6125 | AB109: 0 | AC109: 0 | AD109: 0 | AE109: 0 | AF109: 0 | AG109: 0 | AH109: -9999 | AI109: 0 | AJ109: 0 | AK109: 196.74 | AL109: 9.77 | AM109: 31.6475 | AN109: 58.6125 | AO109: 0 | AP109: 38400 | AQ109: 85.67961773 | AR109: 410.27273 | AU109: Site 4
A110: Thin Layer | B110: 2040 | C110: Cuba Middle and East Island | D110: Iteration 3 | E110: N A | F110: N A | G110: N A | H110: 0 | I110: 0 | J110: 0 | K110: 0 | L110: 0 | M110: 0 | N110: 0 | O110: 37.4575 | P110: 0 | Q110: 1.1025 | R110: 6.515 | S110: 0 | T110: 0 | U110: 0 | V110: 0 | W110: 0 | X110: 199.525 | Y110: 0 | Z110: 0 | AA110: 52.17 | AB110: 0 | AC110: 0 | AD110: 0 | AE110: 0 | AF110: 0 | AG110: 0 | AH110: -9999 | AI110: 0 | AJ110: 0 | AK110: 199.525 | AL110: 7.6175 | AM110: 37.4575 | AN110: 52.17 | AO110: 0 | AP110: 39710 | AQ110: 84.88103757 | AR110: 407.39773 | AU110: Site 4
A111: Thin Layer | B111: 2055 | C111: Cuba Middle and East Island | D111: Iteration 3 | E111: N A | F111: N A | G111: N A | H111: 0 | I111: 0 | J111: 0 | K111: 0 | L111: 0 | M111: 0 | N111: 0 | O111: 47.52 | P111: 0 | Q111: 1.1025 | R111: 4.2225 | S111: 0 | T111: 0 | U111: 0 | V111: 0 | W111: 0 | X111: 203.1025 | Y111: 0 | Z111: 0 | AA111: 40.8225 | AB111: 0 | AC111: 0 | AD111: 0 | AE111: 0 | AF111: 0 | AG111: 0 | AH111: -9999 | AI111: 0 | AJ111: 0 | AK111: 203.1025 | AL111: 5.325 | AM111: 47.52 | AN111: 40.8225 | AO111: 0 | AP111: 42040 | AQ111: 83.30021385 | AR111: 401.55682 | AU111: Site 4
A112: Thin Layer | B112: 2070 | C112: Cuba Middle and East Island | D112: Iteration 3 | E112: N A | F112: N A | G112: N A | H112: 0 | I112: 0 | J112: 0 | K112: 0 | L112: 0 | M112: 0 | N112: 0 | O112: 62.69 | P112: 0 | Q112: 1.1025 | R112: 3.6625 | S112: 0 | T112: 0 | U112: 0 | V112: 0 | W112: 0 | X112: 207.375 | Y112: 0 | Z112: 0 | AA112: 21.94 | AB112: 0 | AC112: 0 | AD112: 0 | AE112: 0 | AF112: 0 | AG112: 0 | AH112: -9999 | AI112: 0 | AJ112: 0 | AK112: 207.375 | AL112: 4.765 | AM112: 62.69 | AN112: 21.94 | AO112: 0 | AP112: 49440 | AQ112: 78.64883055 | AR112: 384.68182 | AU112: Site 4
A113: Thin Layer | B113: 2085 | C113: Cuba Middle and East Island | D113: Iteration 3 | E113: N A | F113: N A | G113: N A | H113: 0 | I113: 0 | J113: 0 | K113: 0 | L113: 0 | M113: 0 | N113: 0 | O113: 67.4075 | P113: 0 | Q113: 1.095 | R113: 8.1125 | S113: 0 | T113: 0 | U113: 0 | V113: 0 | W113: 0 | X113: 213.56 | Y113: 0 | Z113: 0 | AA113: 6.595 | AB113: 0 | AC113: 0 | AD113: 0 | AE113: 0 | AF113: 0 | AG113: 0 | AH113: -9999 | AI113: 0 | AJ113: 0 | AK113: 213.56 | AL113: 9.2075 | AM113: 67.4075 | AN113: 6.595 | AO113: 0 | AP113: 73075 | AQ113: 65.02871263 | AR113: 336.375 | AU113: Site 4
A114: Thin Layer | B114: 2100 | C114: Cuba Middle and East Island | D114: Iteration 3 | E114: N A | F114: N A | G114: N A | H114: 0 | I114: 0 | J114: 0 | K114: 0 | L114: 0 | M114: 0 | N114: 0 | O114: 51.3075 | P114: 0 | Q114: 0.8475 | R114: 15.4025 | S114: 0 | T114: 0 | U114: 0 | V114: 0 | W114: 0 | X114: 228.335 | Y114: 0 | Z114: 0 | AA114: 0.8775 | AB114: 0 | AC114: 0 | AD114: 0 | AE114: 0 | AF114: 0 | AG114: 0 | AH114: -9999 | AI114: 0 | AJ114: 0 | AK114: 228.335 | AL114: 16.25 | AM114: 51.3075 | AN114: 0.8775 | AO114: 0 | AP114: 86840 | AQ114: 41.44044471 | AR114: 237.20455 | AU114: Site 4
A115: Thin Layer | B115: 2004 | C115: Marine Nature Study Area | D115: Iteration 3 | E115: N A | F115: N A | G115: N A | H115: 1.0675 | I115: 4.5725 | J115: 0 | K115: 0 | L115: 0 | M115: 0 | N115: 0.095 | O115: 2.1325 | P115: 0 | Q115: 0 | R115: 1.63 | S115: 0 | T115: 0 | U115: 0 | V115: 0 | W115: 0 | X115: 4.9225 | Y115: 0 | Z115: 0 | AA115: 14.2 | AB115: 0 | AC115: 0 | AD115: 0 | AE115: 0 | AF115: 0 | AG115: 0 | AH115: -9999 | AI115: 5.64 | AJ115: 0 | AK115: 4.9225 | AL115: 1.63 | AM115: 2.1325 | AN115: 14.295 | AO115: 0 | AP115: 4350 | AQ115: 15.53748813 | AR115: 365.05556 | AU115: Site 5
A116: Thin Layer | B116: 2025 | C116: Marine Nature Study Area | D116: Iteration 3 | E116: N A | F116: N A | G116: N A | H116: 1.0675 | I116: 4.5725 | J116: 0 | K116: 0 | L116: 0 | M116: 0 | N116: 0.0875 | O116: 2.1925 | P116: 0 | Q116: 0 | R116: 0.9175 | S116: 0 | T116: 0 | U116: 0 | V116: 0 | W116: 0 | X116: 5.6825 | Y116: 0 | Z116: 0 | AA116: 14.1 | AB116: 0 | AC116: 0 | AD116: 0 | AE116: 0 | AF116: 0 | AG116: 0 | AH116: -9999 | AI116: 5.64 | AJ116: 0 | AK116: 5.6825 | AL116: 0.9175 | AM116: 2.1925 | AN116: 14.1875 | AO116: 0 | AP116: 4400 | AQ116: 15.48891576 | AR116: 364 | AU116: Site 5
A117: Thin Layer | B117: 2040 | C117: Marine Nature Study Area | D117: Iteration 3 | E117: N A | F117: N A | G117: N A | H117: 1.0675 | I117: 4.5725 | J117: 0 | K117: 0 | L117: 0 | M117: 0 | N117: 0.055 | O117: 2.565 | P117: 0 | Q117: 0 | R117: 0.4425 | S117: 0 | T117: 0 | U117: 0 | V117: 0 | W117: 0 | X117: 6.26 | Y117: 0 | Z117: 0 | AA117: 13.6575 | AB117: 0 | AC117: 0 | AD117: 0 | AE117: 0 | AF117: 0 | AG117: 0 | AH117: -9999 | AI117: 5.64 | AJ117: 0 | AK117: 6.26 | AL117: 0.4425 | AM117: 2.565 | AN117: 13.7125 | AO117: 0 | AP117: 4615 | AQ117: 15.3517861 | AR117: 361.72222 | AU117: Site 5
A118: Thin Layer | B118: 2055 | C118: Marine Nature Study Area | D118: Iteration 3 | E118: N A | F118: N A | G118: N A | H118: 1.0675 | I118: 4.5725 | J118: 0 | K118: 0 | L118: 0 | M118: 0 | N118: 0.0325 | O118: 3.445 | P118: 0 | Q118: 0 | R118: 0.18 | S118: 0 | T118: 0 | U118: 0 | V118: 0 | W118: 0 | X118: 6.685 | Y118: 0 | Z118: 0 | AA118: 12.6375 | AB118: 0 | AC118: 0 | AD118: 0 | AE118: 0 | AF118: 0 | AG118: 0 | AH118: -9999 | AI118: 5.64 | AJ118: 0 | AK118: 6.685 | AL118: 0.18 | AM118: 3.445 | AN118: 12.67 | AO118: 0 | AP118: 4925 | AQ118: 15.15247818 | AR118: 358.11111 | AU118: Site 5
A119: Thin Layer | B119: 2070 | C119: Marine Nature Study Area | D119: Iteration 3 | E119: N A | F119: N A | G119: N A | H119: 1.0675 | I119: 4.5725 | J119: 0 | K119: 0 | L119: 0 | M119: 0 | N119: 0.01 | O119: 5.3775 | P119: 0 | Q119: 0 | R119: 0.095 | S119: 0 | T119: 0 | U119: 0 | V119: 0 | W119: 0 | X119: 7.07 | Y119: 0 | Z119: 0 | AA119: 10.4275 | AB119: 0 | AC119: 0 | AD119: 0 | AE119: 0 | AF119: 0 | AG119: 0 | AH119: -9999 | AI119: 5.64 | AJ119: 0 | AK119: 7.07 | AL119: 0.095 | AM119: 5.3775 | AN119: 10.4375 | AO119: 0 | AP119: 5575 | AQ119: 14.77511928 | AR119: 351.44444 | AU119: Site 5
A120: Thin Layer | B120: 2085 | C120: Marine Nature Study Area | D120: Iteration 3 | E120: N A | F120: N A | G120: N A | H120: 1.0675 | I120: 4.5725 | J120: 0 | K120: 0 | L120: 0 | M120: 0 | N120: 0.005 | O120: 8.36 | P120: 0 | Q120: 0 | R120: 0.1775 | S120: 0 | T120: 0 | U120: 0 | V120: 0 | W120: 0 | X120: 7.405 | Y120: 0 | Z120: 0 | AA120: 7.0325 | AB120: 0 | AC120: 0 | AD120: 0 | AE120: 0 | AF120: 0 | AG120: 0 | AH120: -9999 | AI120: 5.64 | AJ120: 0 | AK120: 7.405 | AL120: 0.1775 | AM120: 8.36 | AN120: 7.0375 | AO120: 0 | AP120: 6560 | AQ120: 14.2353227 | AR120: 342.16667 | AU120: Site 5
A121: Thin Layer | B121: 2100 | C121: Marine Nature Study Area | D121: Iteration 3 | E121: N A | F121: N A | G121: N A | H121: 1.0675 | I121: 4.5725 | J121: 0 | K121: 0 | L121: 0 | M121: 0 | N121: 0 | O121: 10.1725 | P121: 0 | Q121: 0 | R121: 0.775 | S121: 0 | T121: 0 | U121: 0 | V121: 0 | W121: 0 | X121: 8.055 | Y121: 0 | Z121: 0 | AA121: 3.9775 | AB121: 0 | AC121: 0 | AD121: 0 | AE121: 0 | AF121: 0 | AG121: 0 | AH121: -9999 | AI121: 5.64 | AJ121: 0 | AK121: 8.055 | AL121: 0.775 | AM121: 10.1725 | AN121: 3.9775 | AO121: 0 | AP121: 9625 | AQ121: 12.6085255 | AR121: 314.44444 | AU121: Site 5
A122: Thin Layer | B122: 2004 | C122: Seamans Neck Park | D122: Iteration 3 | E122: N A | F122: N A | G122: N A | H122: 7.4475 | I122: 14.7975 | J122: 0.0975 | K122: 0 | L122: 0 | M122: 0 | N122: 1.625 | O122: 2.4275 | P122: 0 | Q122: 0 | R122: 0.1025 | S122: 0 | T122: 0 | U122: 0 | V122: 1.1375 | W122: 0 | X122: 8.455 | Y122: 0 | Z122: 0 | AA122: 5.7775 | AB122: 0 | AC122: 0 | AD122: 0 | AE122: 0 | AF122: 0.0275 | AG122: 0 | AH122: -9999 | AI122: 22.2725 | AJ122: 0.0975 | AK122: 9.5925 | AL122: 0.1025 | AM122: 2.4275 | AN122: 7.4025 | AO122: 0 | AP122: 3420 | AQ122: 8.875698822 | AR122: 218.44444 | AU122: Site 6
A123: Thin Layer | B123: 2025 | C123: Seamans Neck Park | D123: Iteration 3 | E123: N A | F123: N A | G123: N A | H123: 7.4475 | I123: 14.7975 | J123: 0.0975 | K123: 0 | L123: 0 | M123: 0 | N123: 1.55 | O123: 2.55 | P123: 0 | Q123: 0 | R123: 0.105 | S123: 0 | T123: 0 | U123: 0 | V123: 1.1375 | W123: 0 | X123: 8.6025 | Y123: 0 | Z123: 0 | AA123: 5.58 | AB123: 0 | AC123: 0 | AD123: 0 | AE123: 0 | AF123: 0.0275 | AG123: 0 | AH123: -9999 | AI123: 22.2725 | AJ123: 0.0975 | AK123: 9.74 | AL123: 0.105 | AM123: 2.55 | AN123: 7.13 | AO123: 0 | AP123: 3295 | AQ123: 8.762983803 | AR123: 215.11111 | AU123: Site 6
A124: Thin Layer | B124: 2040 | C124: Seamans Neck Park | D124: Iteration 3 | E124: N A | F124: N A | G124: N A | H124: 7.4475 | I124: 14.7975 | J124: 0.0975 | K124: 0 | L124: 0 | M124: 0 | N124: 1.3425 | O124: 3.5925 | P124: 0 | Q124: 0 | R124: 0.0725 | S124: 0 | T124: 0 | U124: 0 | V124: 1.1375 | W124: 0 | X124: 8.76 | Y124: 0 | Z124: 0 | AA124: 4.62 | AB124: 0 | AC124: 0 | AD124: 0 | AE124: 0 | AF124: 0.0275 | AG124: 0 | AH124: -9999 | AI124: 22.2725 | AJ124: 0.0975 | AK124: 9.8975 | AL124: 0.0725 | AM124: 3.5925 | AN124: 5.9625 | AO124: 0 | AP124: 3475 | AQ124: 8.616856511 | AR124: 212.33333 | AU124: Site 6
A125: Thin Layer | B125: 2055 | C125: Seamans Neck Park | D125: Iteration 3 | E125: N A | F125: N A | G125: N A | H125: 7.4475 | I125: 14.7975 | J125: 0.0975 | K125: 0 | L125: 0 | M125: 0 | N125: 1.005 | O125: 5.1125 | P125: 0 | Q125: 0 | R125: 0.0675 | S125: 0 | T125: 0 | U125: 0 | V125: 1.1375 | W125: 0 | X125: 8.92 | Y125: 0 | Z125: 0 | AA125: 3.2825 | AB125: 0 | AC125: 0 | AD125: 0 | AE125: 0 | AF125: 0.0275 | AG125: 0 | AH125: -9999 | AI125: 22.2725 | AJ125: 0.0975 | AK125: 10.0575 | AL125: 0.0675 | AM125: 5.1125 | AN125: 4.2875 | AO125: 0 | AP125: 3855 | AQ125: 8.440058441 | AR125: 208.88889 | AU125: Site 6
A126: Thin Layer | B126: 2070 | C126: Seamans Neck Park | D126: Iteration 3 | E126: N A | F126: N A | G126: N A | H126: 7.4475 | I126: 14.7975 | J126: 0.0375 | K126: 0 | L126: 0 | M126: 0 | N126: 0.745 | O126: 6.65 | P126: 0 | Q126: 0 | R126: 0.185 | S126: 0 | T126: 0 | U126: 0 | V126: 0 | W126: 0 | X126: 10.3175 | Y126: 0 | Z126: 0 | AA126: 1.6875 | AB126: 0 | AC126: 0 | AD126: 0 | AE126: 0 | AF126: 0.0275 | AG126: 0 | AH126: -9999 | AI126: 22.2725 | AJ126: 0.0375 | AK126: 10.3175 | AL126: 0.185 | AM126: 6.65 | AN126: 2.4325 | AO126: 0 | AP126: 4585 | AQ126: 8.123479475 | AR126: 201.83333 | AU126: Site 6
A127: Thin Layer | B127: 2085 | C127: Seamans Neck Park | D127: Iteration 3 | E127: N A | F127: N A | G127: N A | H127: 7.4475 | I127: 14.7975 | J127: 0.0125 | K127: 0 | L127: 0 | M127: 0 | N127: 0.535 | O127: 6.555 | P127: 0 | Q127: 0 | R127: 1.065 | S127: 0 | T127: 0 | U127: 0 | V127: 0 | W127: 0 | X127: 10.7875 | Y127: 0 | Z127: 0 | AA127: 0.6675 | AB127: 0 | AC127: 0 | AD127: 0 | AE127: 0 | AF127: 0.0275 | AG127: 0 | AH127: -9999 | AI127: 22.2725 | AJ127: 0.0125 | AK127: 10.7875 | AL127: 1.065 | AM127: 6.555 | AN127: 1.2025 | AO127: 0 | AP127: 8230 | AQ127: 6.335798775 | AR127: 172.38889 | AU127: Site 6
A128: Thin Layer | B128: 2100 | C128: Seamans Neck Park | D128: Iteration 3 | E128: N A | F128: N A | G128: N A | H128: 7.4475 | I128: 14.7975 | J128: 0.0075 | K128: 0 | L128: 0 | M128: 0 | N128: 0.3775 | O128: 4.8075 | P128: 0 | Q128: 0 | R128: 1.6725 | S128: 0 | T128: 0 | U128: 0 | V128: 0 | W128: 0 | X128: 12.4675 | Y128: 0 | Z128: 0 | AA128: 0.29 | AB128: 0 | AC128: 0 | AD128: 0 | AE128: 0 | AF128: 0.0275 | AG128: 0 | AH128: -9999 | AI128: 22.2725 | AJ128: 0.0075 | AK128: 12.4675 | AL128: 1.6725 | AM128: 4.8075 | AN128: 0.6675 | AO128: 0 | AP128: 8870 | AQ128: 3.993240978 | AR128: 121.66667 | AU128: Site 6
A129: Thin Layer | B129: 2004 | C129: Dosoris Pond/West Pond | D129: Iteration 4 | E129: N A | F129: N A | G129: N A | H129: 28.3125 | I129: 122.8975 | J129: 1.6475 | K129: 0 | L129: 0.6175 | M129: 0 | N129: 1.4675 | O129: 13.07 | P129: 0 | Q129: 14.9925 | R129: 0.025 | S129: 0 | T129: 0 | U129: 0 | V129: 1.12 | W129: 0 | X129: 76.8 | Y129: 0 | Z129: 0 | AA129: 0.365 | AB129: 0 | AC129: 0.2075 | AD129: 0.1725 | AE129: 0 | AF129: 0.0525 | AG129: 0 | AH129: -9999 | AI129: 151.2625 | AJ129: 2.4725 | AK129: 77.92 | AL129: 15.0175 | AM129: 13.07 | AN129: 1.8325 | AO129: 0.1725 | AP129: 4840 | AQ129: 13.44287502 | AR129: 54.190909 | AU129: Site 1
A130: Thin Layer | B130: 2025 | C130: Dosoris Pond/West Pond | D130: Iteration 4 | E130: N A | F130: N A | G130: N A | H130: 28.3125 | I130: 122.8975 | J130: 1.6475 | K130: 0 | L130: 0.6175 | M130: 0 | N130: 1.4675 | O130: 12.925 | P130: 0 | Q130: 14.7275 | R130: 0.17 | S130: 0 | T130: 0 | U130: 0 | V130: 1.12 | W130: 0 | X130: 77.065 | Y130: 0 | Z130: 0 | AA130: 0.365 | AB130: 0 | AC130: 0.2075 | AD130: 0.1725 | AE130: 0 | AF130: 0.0525 | AG130: 0 | AH130: -9999 | AI130: 151.2625 | AJ130: 2.4725 | AK130: 78.185 | AL130: 14.8975 | AM130: 12.925 | AN130: 1.8325 | AO130: 0.1725 | AP130: 5045 | AQ130: 13.26851352 | AR130: 53.663636 | AU130: Site 1
A131: Thin Layer | B131: 2040 | C131: Dosoris Pond/West Pond | D131: Iteration 4 | E131: N A | F131: N A | G131: N A | H131: 28.3125 | I131: 122.8975 | J131: 1.6475 | K131: 0 | L131: 0.6175 | M131: 0 | N131: 1.4675 | O131: 12.9125 | P131: 0 | Q131: 14.465 | R131: 0.1775 | S131: 0 | T131: 0 | U131: 0 | V131: 1.1175 | W131: 0 | X131: 77.335 | Y131: 0 | Z131: 0 | AA131: 0.365 | AB131: 0 | AC131: 0.2075 | AD131: 0.1725 | AE131: 0 | AF131: 0.0525 | AG131: 0 | AH131: -9999 | AI131: 151.2625 | AJ131: 2.4725 | AK131: 78.4525 | AL131: 14.6425 | AM131: 12.9125 | AN131: 1.8325 | AO131: 0.1725 | AP131: 5045 | AQ131: 13.25718204 | AR131: 53.618182 | AU131: Site 1
A132: Thin Layer | B132: 2055 | C132: Dosoris Pond/West Pond | D132: Iteration 4 | E132: N A | F132: N A | G132: N A | H132: 28.3125 | I132: 122.8975 | J132: 1.6475 | K132: 0 | L132: 0.6175 | M132: 0 | N132: 1.4175 | O132: 12.9425 | P132: 0 | Q132: 14.1925 | R132: 0.195 | S132: 0 | T132: 0 | U132: 0 | V132: 1.115 | W132: 0 | X132: 77.615 | Y132: 0 | Z132: 0 | AA132: 0.3625 | AB132: 0 | AC132: 0.2075 | AD132: 0.1725 | AE132: 0 | AF132: 0.0525 | AG132: 0 | AH132: -9999 | AI132: 151.2625 | AJ132: 2.4725 | AK132: 78.73 | AL132: 14.3875 | AM132: 12.9425 | AN132: 1.78 | AO132: 0.1725 | AP132: 5110 | AQ132: 13.22370415 | AR132: 53.536364 | AU132: Site 1
A133: Thin Layer | B133: 2070 | C133: Dosoris Pond/West Pond | D133: Iteration 4 | E133: N A | F133: N A | G133: N A | H133: 28.3125 | I133: 122.8975 | J133: 1.6475 | K133: 0 | L133: 0.6175 | M133: 0 | N133: 1.2825 | O133: 13.02 | P133: 0 | Q133: 13.9275 | R133: 0.2525 | S133: 0 | T133: 0 | U133: 0 | V133: 1.115 | W133: 0 | X133: 77.88 | Y133: 0 | Z133: 0 | AA133: 0.365 | AB133: 0 | AC133: 0.2075 | AD133: 0.17 | AE133: 0 | AF133: 0.0525 | AG133: 0 | AH133: -9999 | AI133: 151.2625 | AJ133: 2.4725 | AK133: 78.995 | AL133: 14.18 | AM133: 13.02 | AN133: 1.6475 | AO133: 0.17 | AP133: 5190 | AQ133: 13.160982 | AR133: 53.336364 | AU133: Site 1
A134: Thin Layer | B134: 2085 | C134: Dosoris Pond/West Pond | D134: Iteration 4 | E134: N A | F134: N A | G134: N A | H134: 28.3125 | I134: 122.8975 | J134: 1.6475 | K134: 0 | L134: 0.6175 | M134: 0 | N134: 1.1725 | O134: 13.0325 | P134: 0 | Q134: 13.6625 | R134: 0.345 | S134: 0 | T134: 0 | U134: 0 | V134: 1.1125 | W134: 0 | X134: 78.155 | Y134: 0 | Z134: 0 | AA134: 0.3725 | AB134: 0 | AC134: 0.2075 | AD134: 0.16 | AE134: 0 | AF134: 0.0525 | AG134: 0 | AH134: -9999 | AI134: 151.2625 | AJ134: 2.4725 | AK134: 79.2675 | AL134: 14.0075 | AM134: 13.0325 | AN134: 1.545 | AO134: 0.16 | AP134: 5400 | AQ134: 13.04330298 | AR134: 53.009091 | AU134: Site 1
A135: Thin Layer | B135: 2100 | C135: Dosoris Pond/West Pond | D135: Iteration 4 | E135: N A | F135: N A | G135: N A | H135: 28.3125 | I135: 122.8975 | J135: 1.6425 | K135: 0 | L135: 0.1325 | M135: 0 | N135: 1.495 | O135: 13.09 | P135: 0 | Q135: 13.395 | R135: 0.4225 | S135: 0 | T135: 0 | U135: 0 | V135: 1.1125 | W135: 0 | X135: 78.4575 | Y135: 0 | Z135: 0 | AA135: 0.37 | AB135: 0 | AC135: 0.2075 | AD135: 0.16 | AE135: 0 | AF135: 0.0525 | AG135: 0 | AH135: -9999 | AI135: 151.2625 | AJ135: 1.9825 | AK135: 79.57 | AL135: 13.8175 | AM135: 13.09 | AN135: 1.865 | AO135: 0.16 | AP135: 5630 | AQ135: 13.33424307 | AR135: 54.381818 | AU135: Site 1
A136: Thin Layer | B136: 2004 | C136: Lattingtown | D136: Iteration 4 | E136: N A | F136: N A | G136: N A | H136: 7.905 | I136: 101.735 | J136: 2.7525 | K136: 0 | L136: 0.225 | M136: 0 | N136: 2.945 | O136: 0.49 | P136: 0 | Q136: 7.3775 | R136: 7.57 | S136: 0 | T136: 0 | U136: 0 | V136: 1.505 | W136: 0 | X136: 21.8875 | Y136: 0 | Z136: 0 | AA136: 14.9375 | AB136: 0 | AC136: 0 | AD136: 0 | AE136: 0 | AF136: 0.04 | AG136: 0 | AH136: -9999 | AI136: 109.68 | AJ136: 2.9775 | AK136: 23.3925 | AL136: 14.9475 | AM136: 0.49 | AN136: 17.8825 | AO136: 0 | AP136: 14010 | AQ136: 15.61775528 | AR136: 83.511364 | AU136: Site 2
A137: Thin Layer | B137: 2025 | C137: Lattingtown | D137: Iteration 4 | E137: N A | F137: N A | G137: N A | H137: 7.905 | I137: 101.735 | J137: 2.7225 | K137: 0 | L137: 0.2225 | M137: 0 | N137: 2.98 | O137: 0.4875 | P137: 0 | Q137: 6.9 | R137: 7.5675 | S137: 0 | T137: 0 | U137: 0 | V137: 1.5875 | W137: 0 | X137: 22.285 | Y137: 0 | Z137: 0 | AA137: 14.9375 | AB137: 0 | AC137: 0 | AD137: 0 | AE137: 0 | AF137: 0.04 | AG137: 0 | AH137: -9999 | AI137: 109.68 | AJ137: 2.945 | AK137: 23.8725 | AL137: 14.4675 | AM137: 0.4875 | AN137: 17.9175 | AO137: 0 | AP137: 14000 | AQ137: 15.64777364 | AR137: 83.659091 | AU137: Site 2
A138: Thin Layer | B138: 2040 | C138: Lattingtown | D138: Iteration 4 | E138: N A | F138: N A | G138: N A | H138: 7.905 | I138: 101.735 | J138: 2.6775 | K138: 0 | L138: 0.2125 | M138: 0 | N138: 3.035 | O138: 0.4875 | P138: 0 | Q138: 6.5125 | R138: 7.5675 | S138: 0 | T138: 0 | U138: 0 | V138: 1.6925 | W138: 0 | X138: 22.5675 | Y138: 0 | Z138: 0 | AA138: 14.9375 | AB138: 0 | AC138: 0 | AD138: 0 | AE138: 0 | AF138: 0.04 | AG138: 0 | AH138: -9999 | AI138: 109.68 | AJ138: 2.89 | AK138: 24.26 | AL138: 14.08 | AM138: 0.4875 | AN138: 17.9725 | AO138: 0 | AP138: 14000 | AQ138: 15.69428998 | AR138: 83.909091 | AU138: Site 2
A139: Thin Layer | B139: 2055 | C139: Lattingtown | D139: Iteration 4 | E139: N A | F139: N A | G139: N A | H139: 7.905 | I139: 101.735 | J139: 2.6375 | K139: 0 | L139: 0.2075 | M139: 0 | N139: 3.0475 | O139: 0.53 | P139: 0 | Q139: 6.2325 | R139: 7.54 | S139: 0 | T139: 0 | U139: 0 | V139: 1.8275 | W139: 0 | X139: 22.74 | Y139: 0 | Z139: 0 | AA139: 14.9275 | AB139: 0 | AC139: 0 | AD139: 0 | AE139: 0 | AF139: 0.04 | AG139: 0 | AH139: -9999 | AI139: 109.68 | AJ139: 2.845 | AK139: 24.5675 | AL139: 13.7725 | AM139: 0.53 | AN139: 17.975 | AO139: 0 | AP139: 14065 | AQ139: 15.71892694 | AR139: 84.113636 | AU139: Site 2
A140: Thin Layer | B140: 2070 | C140: Lattingtown | D140: Iteration 4 | E140: N A | F140: N A | G140: N A | H140: 7.905 | I140: 101.735 | J140: 2.605 | K140: 0 | L140: 0.2075 | M140: 0 | N140: 3.0225 | O140: 0.6025 | P140: 0 | Q140: 6.08 | R140: 7.4425 | S140: 0 | T140: 0 | U140: 0 | V140: 1.805 | W140: 0 | X140: 23.0125 | Y140: 0 | Z140: 0 | AA140: 14.9125 | AB140: 0 | AC140: 0 | AD140: 0 | AE140: 0 | AF140: 0.04 | AG140: 0 | AH140: -9999 | AI140: 109.68 | AJ140: 2.8125 | AK140: 24.8175 | AL140: 13.5225 | AM140: 0.6025 | AN140: 17.935 | AO140: 0 | AP140: 14115 | AQ140: 15.73783082 | AR140: 84.261364 | AU140: Site 2
A141: Thin Layer | B141: 2085 | C141: Lattingtown | D141: Iteration 4 | E141: N A | F141: N A | G141: N A | H141: 7.905 | I141: 101.735 | J141: 2.545 | K141: 0 | L141: 0.205 | M141: 0 | N141: 3.0325 | O141: 0.6825 | P141: 0 | Q141: 5.925 | R141: 7.235 | S141: 0 | T141: 0 | U141: 0 | V141: 1.7925 | W141: 0 | X141: 23.3925 | Y141: 0 | Z141: 0 | AA141: 14.88 | AB141: 0 | AC141: 0 | AD141: 0 | AE141: 0 | AF141: 0.04 | AG141: 0 | AH141: -9999 | AI141: 109.68 | AJ141: 2.75 | AK141: 25.185 | AL141: 13.16 | AM141: 0.6825 | AN141: 17.9125 | AO141: 0 | AP141: 14175 | AQ141: 15.76386397 | AR141: 84.522727 | AU141: Site 2
A142: Thin Layer | B142: 2100 | C142: Lattingtown | D142: Iteration 4 | E142: N A | F142: N A | G142: N A | H142: 7.905 | I142: 101.735 | J142: 2.395 | K142: 0 | L142: 0.2025 | M142: 0 | N142: 3.13 | O142: 0.7725 | P142: 0 | Q142: 5.755 | R142: 6.9375 | S142: 0 | T142: 0 | U142: 0 | V142: 1.8175 | W142: 0 | X142: 23.835 | Y142: 0 | Z142: 0 | AA142: 14.845 | AB142: 0 | AC142: 0 | AD142: 0 | AE142: 0 | AF142: 0.04 | AG142: 0 | AH142: -9999 | AI142: 109.68 | AJ142: 2.5975 | AK142: 25.6525 | AL142: 12.6925 | AM142: 0.7725 | AN142: 17.975 | AO142: 0 | AP142: 14260 | AQ142: 15.87137327 | AR142: 85.215909 | AU142: Site 2
A143: Thin Layer | B143: 2004 | C143: Hempstead Harbor | D143: Iteration 4 | E143: N A | F143: N A | G143: N A | H143: 9.515 | I143: 14.2075 | J143: 0.175 | K143: 0 | L143: 0 | M143: 0 | N143: 0.6775 | O143: 0.28 | P143: 0 | Q143: 0.55 | R143: 0 | S143: 0 | T143: 0 | U143: 0 | V143: 0.03 | W143: 0 | X143: 41.5525 | Y143: 0 | Z143: 0 | AA143: 2.845 | AB143: 0 | AC143: 0 | AD143: 0 | AE143: 0 | AF143: 0.1375 | AG143: 0 | AH143: -9999 | AI143: 23.86 | AJ143: 0.175 | AK143: 41.5825 | AL143: 0.55 | AM143: 0.28 | AN143: 3.5225 | AO143: 0 | AP143: 1375 | AQ143: 3.466028219 | AR143: 71.074766 | AU143: Site 3
A144: Thin Layer | B144: 2025 | C144: Hempstead Harbor | D144: Iteration 4 | E144: N A | F144: N A | G144: N A | H144: 9.515 | I144: 14.2075 | J144: 0.175 | K144: 0 | L144: 0 | M144: 0 | N144: 0.675 | O144: 0.2725 | P144: 0 | Q144: 0.55 | R144: 0.01 | S144: 0 | T144: 0 | U144: 0 | V144: 0.03 | W144: 0 | X144: 41.5525 | Y144: 0 | Z144: 0 | AA144: 2.845 | AB144: 0 | AC144: 0 | AD144: 0 | AE144: 0 | AF144: 0.1375 | AG144: 0 | AH144: -9999 | AI144: 23.86 | AJ144: 0.175 | AK144: 41.5825 | AL144: 0.56 | AM144: 0.2725 | AN144: 3.52 | AO144: 0 | AP144: 1375 | AQ144: 3.45599947 | AR144: 70.88785 | AU144: Site 3
A145: Thin Layer | B145: 2040 | C145: Hempstead Harbor | D145: Iteration 4 | E145: N A | F145: N A | G145: N A | H145: 9.515 | I145: 14.2075 | J145: 0.175 | K145: 0 | L145: 0 | M145: 0 | N145: 0.675 | O145: 0.2725 | P145: 0 | Q145: 0.55 | R145: 0 | S145: 0 | T145: 0 | U145: 0 | V145: 0.0325 | W145: 0 | X145: 41.56 | Y145: 0 | Z145: 0 | AA145: 2.845 | AB145: 0 | AC145: 0 | AD145: 0 | AE145: 0 | AF145: 0.1375 | AG145: 0 | AH145: -9999 | AI145: 23.86 | AJ145: 0.175 | AK145: 41.5925 | AL145: 0.55 | AM145: 0.2725 | AN145: 3.52 | AO145: 0 | AP145: 1375 | AQ145: 3.45599947 | AR145: 70.88785 | AU145: Site 3
A146: Thin Layer | B146: 2055 | C146: Hempstead Harbor | D146: Iteration 4 | E146: N A | F146: N A | G146: N A | H146: 9.515 | I146: 14.2075 | J146: 0.175 | K146: 0 | L146: 0 | M146: 0 | N146: 0.6675 | O146: 0.2725 | P146: 0 | Q146: 0.55 | R146: 0.0075 | S146: 0 | T146: 0 | U146: 0 | V146: 0.0325 | W146: 0 | X146: 41.56 | Y146: 0 | Z146: 0 | AA146: 2.845 | AB146: 0 | AC146: 0 | AD146: 0 | AE146: 0 | AF146: 0.1375 | AG146: 0 | AH146: -9999 | AI146: 23.86 | AJ146: 0.175 | AK146: 41.5925 | AL146: 0.5575 | AM146: 0.2725 | AN146: 3.5125 | AO146: 0 | AP146: 1355 | AQ146: 3.450797467 | AR146: 70.747664 | AU146: Site 3
A147: Thin Layer | B147: 2070 | C147: Hempstead Harbor | D147: Iteration 4 | E147: N A | F147: N A | G147: N A | H147: 9.515 | I147: 14.2075 | J147: 0.175 | K147: 0 | L147: 0 | M147: 0 | N147: 0.645 | O147: 0.295 | P147: 0 | Q147: 0.55 | R147: 0 | S147: 0 | T147: 0 | U147: 0 | V147: 0.03 | W147: 0 | X147: 41.57 | Y147: 0 | Z147: 0 | AA147: 2.845 | AB147: 0 | AC147: 0 | AD147: 0 | AE147: 0 | AF147: 0.1375 | AG147: 0 | AH147: -9999 | AI147: 23.86 | AJ147: 0.175 | AK147: 41.6 | AL147: 0.55 | AM147: 0.295 | AN147: 3.49 | AO147: 0 | AP147: 1410 | AQ147: 3.436863616 | AR147: 70.747664 | AU147: Site 3
A148: Thin Layer | B148: 2085 | C148: Hempstead Harbor | D148: Iteration 4 | E148: N A | F148: N A | G148: N A | H148: 9.515 | I148: 14.2075 | J148: 0.175 | K148: 0 | L148: 0 | M148: 0 | N148: 0.5875 | O148: 0.35 | P148: 0 | Q148: 0.55 | R148: 0.0025 | S148: 0 | T148: 0 | U148: 0 | V148: 0.03 | W148: 0 | X148: 41.57 | Y148: 0 | Z148: 0 | AA148: 2.845 | AB148: 0 | AC148: 0 | AD148: 0 | AE148: 0 | AF148: 0.1375 | AG148: 0 | AH148: -9999 | AI148: 23.86 | AJ148: 0.175 | AK148: 41.6 | AL148: 0.5525 | AM148: 0.35 | AN148: 3.4325 | AO148: 0 | AP148: 1520 | AQ148: 3.399724764 | AR148: 70.700935 | AU148: Site 3
A149: Thin Layer | B149: 2100 | C149: Hempstead Harbor | D149: Iteration 4 | E149: N A | F149: N A | G149: N A | H149: 9.515 | I149: 14.2075 | J149: 0.175 | K149: 0 | L149: 0 | M149: 0 | N149: 0.5375 | O149: 0.4 | P149: 0 | Q149: 0.55 | R149: 0 | S149: 0 | T149: 0 | U149: 0 | V149: 0.03 | W149: 0 | X149: 41.5725 | Y149: 0 | Z149: 0 | AA149: 2.845 | AB149: 0 | AC149: 0 | AD149: 0 | AE149: 0 | AF149: 0.1375 | AG149: 0 | AH149: -9999 | AI149: 23.86 | AJ149: 0.175 | AK149: 41.6025 | AL149: 0.55 | AM149: 0.4 | AN149: 3.3825 | AO149: 0 | AP149: 1555 | AQ149: 3.372688065 | AR149: 70.700935 | AU149: Site 3
A150: Thin Layer | B150: 2004 | C150: Cuba Middle and East Island | D150: Iteration 4 | E150: N A | F150: N A | G150: N A | H150: 0 | I150: 0 | J150: 0 | K150: 0 | L150: 0 | M150: 0 | N150: 0 | O150: 29.3625 | P150: 0 | Q150: 1.1025 | R150: 12.4925 | S150: 0 | T150: 0 | U150: 0 | V150: 0 | W150: 0 | X150: 193.2675 | Y150: 0 | Z150: 0 | AA150: 60.545 | AB150: 0 | AC150: 0 | AD150: 0 | AE150: 0 | AF150: 0 | AG150: 0 | AH150: -9999 | AI150: 0 | AJ150: 0 | AK150: 193.2675 | AL150: 13.595 | AM150: 29.3625 | AN150: 60.545 | AO150: 0 | AP150: 39350 | AQ150: 85.20694151 | AR150: 408.67045 | AU150: Site 4
A151: Thin Layer | B151: 2025 | C151: Cuba Middle and East Island | D151: Iteration 4 | E151: N A | F151: N A | G151: N A | H151: 0 | I151: 0 | J151: 0 | K151: 0 | L151: 0 | M151: 0 | N151: 0 | O151: 29.375 | P151: 0 | Q151: 1.1025 | R151: 10.055 | S151: 0 | T151: 0 | U151: 0 | V151: 0 | W151: 0 | X151: 195.6925 | Y151: 0 | Z151: 0 | AA151: 60.545 | AB151: 0 | AC151: 0 | AD151: 0 | AE151: 0 | AF151: 0 | AG151: 0 | AH151: -9999 | AI151: 0 | AJ151: 0 | AK151: 195.6925 | AL151: 11.1575 | AM151: 29.375 | AN151: 60.545 | AO151: 0 | AP151: 39350 | AQ151: 85.21947241 | AR151: 408.72727 | AU151: Site 4
A152: Thin Layer | B152: 2040 | C152: Cuba Middle and East Island | D152: Iteration 4 | E152: N A | F152: N A | G152: N A | H152: 0 | I152: 0 | J152: 0 | K152: 0 | L152: 0 | M152: 0 | N152: 0 | O152: 29.39 | P152: 0 | Q152: 1.1025 | R152: 8.14 | S152: 0 | T152: 0 | U152: 0 | V152: 0 | W152: 0 | X152: 197.5925 | Y152: 0 | Z152: 0 | AA152: 60.545 | AB152: 0 | AC152: 0 | AD152: 0 | AE152: 0 | AF152: 0 | AG152: 0 | AH152: -9999 | AI152: 0 | AJ152: 0 | AK152: 197.5925 | AL152: 9.2425 | AM152: 29.39 | AN152: 60.545 | AO152: 0 | AP152: 39360 | AQ152: 85.23325351 | AR152: 408.79545 | AU152: Site 4
A153: Thin Layer | B153: 2055 | C153: Cuba Middle and East Island | D153: Iteration 4 | E153: N A | F153: N A | G153: N A | H153: 0 | I153: 0 | J153: 0 | K153: 0 | L153: 0 | M153: 0 | N153: 0 | O153: 29.9475 | P153: 0 | Q153: 1.1025 | R153: 6.0125 | S153: 0 | T153: 0 | U153: 0 | V153: 0 | W153: 0 | X153: 199.77 | Y153: 0 | Z153: 0 | AA153: 59.9375 | AB153: 0 | AC153: 0 | AD153: 0 | AE153: 0 | AF153: 0 | AG153: 0 | AH153: -9999 | AI153: 0 | AJ153: 0 | AK153: 199.77 | AL153: 7.115 | AM153: 29.9475 | AN153: 59.9375 | AO153: 0 | AP153: 39410 | AQ153: 85.17685067 | AR153: 408.56818 | AU153: Site 4
A154: Thin Layer | B154: 2070 | C154: Cuba Middle and East Island | D154: Iteration 4 | E154: N A | F154: N A | G154: N A | H154: 0 | I154: 0 | J154: 0 | K154: 0 | L154: 0 | M154: 0 | N154: 0 | O154: 32.065 | P154: 0 | Q154: 1.1025 | R154: 3.99 | S154: 0 | T154: 0 | U154: 0 | V154: 0 | W154: 0 | X154: 202.1125 | Y154: 0 | Z154: 0 | AA154: 57.5 | AB154: 0 | AC154: 0 | AD154: 0 | AE154: 0 | AF154: 0 | AG154: 0 | AH154: -9999 | AI154: 0 | AJ154: 0 | AK154: 202.1125 | AL154: 5.0925 | AM154: 32.065 | AN154: 57.5 | AO154: 0 | AP154: 40100 | AQ154: 84.76940351 | AR154: 407.11364 | AU154: Site 4
A155: Thin Layer | B155: 2085 | C155: Cuba Middle and East Island | D155: Iteration 4 | E155: N A | F155: N A | G155: N A | H155: 0 | I155: 0 | J155: 0 | K155: 0 | L155: 0 | M155: 0 | N155: 0 | O155: 34.5975 | P155: 0 | Q155: 1.1 | R155: 2.5175 | S155: 0 | T155: 0 | U155: 0 | V155: 0 | W155: 0 | X155: 204.0675 | Y155: 0 | Z155: 0 | AA155: 54.4875 | AB155: 0 | AC155: 0 | AD155: 0 | AE155: 0 | AF155: 0 | AG155: 0 | AH155: -9999 | AI155: 0 | AJ155: 0 | AK155: 204.0675 | AL155: 3.6175 | AM155: 34.5975 | AN155: 54.4875 | AO155: 0 | AP155: 41420 | AQ155: 84.122434 | AR155: 404.93182 | AU155: Site 4
A156: Thin Layer | B156: 2100 | C156: Cuba Middle and East Island | D156: Iteration 4 | E156: N A | F156: N A | G156: N A | H156: 0 | I156: 0 | J156: 0 | K156: 0 | L156: 0 | M156: 0 | N156: 0 | O156: 38.07 | P156: 0 | Q156: 1.0875 | R156: 1.6025 | S156: 0 | T156: 0 | U156: 0 | V156: 0 | W156: 0 | X156: 205.6675 | Y156: 0 | Z156: 0 | AA156: 50.3425 | AB156: 0 | AC156: 0 | AD156: 0 | AE156: 0 | AF156: 0 | AG156: 0 | AH156: -9999 | AI156: 0 | AJ156: 0 | AK156: 205.6675 | AL156: 2.69 | AM156: 38.07 | AN156: 50.3425 | AO156: 0 | AP156: 43110 | AQ156: 83.23600582 | AR156: 401.875 | AU156: Site 4
A157: Thin Layer | B157: 2004 | C157: Marine Nature Study Area | D157: Iteration 4 | E157: N A | F157: N A | G157: N A | H157: 1.0675 | I157: 4.5725 | J157: 0 | K157: 0 | L157: 0 | M157: 0 | N157: 0.055 | O157: 2.0775 | P157: 0 | Q157: 0 | R157: 1.7325 | S157: 0 | T157: 0 | U157: 0 | V157: 0 | W157: 0 | X157: 4.8775 | Y157: 0 | Z157: 0 | AA157: 14.2375 | AB157: 0 | AC157: 0 | AD157: 0 | AE157: 0 | AF157: 0 | AG157: 0 | AH157: -9999 | AI157: 5.64 | AJ157: 0 | AK157: 4.8775 | AL157: 1.7325 | AM157: 2.0775 | AN157: 14.2925 | AO157: 0 | AP157: 4355 | AQ157: 15.48289232 | AR157: 363.77778 | AU157: Site 5
A158: Thin Layer | B158: 2025 | C158: Marine Nature Study Area | D158: Iteration 4 | E158: N A | F158: N A | G158: N A | H158: 1.0675 | I158: 4.5725 | J158: 0 | K158: 0 | L158: 0 | M158: 0 | N158: 0.055 | O158: 2.0725 | P158: 0 | Q158: 0 | R158: 1.3625 | S158: 0 | T158: 0 | U158: 0 | V158: 0 | W158: 0 | X158: 5.2525 | Y158: 0 | Z158: 0 | AA158: 14.2375 | AB158: 0 | AC158: 0 | AD158: 0 | AE158: 0 | AF158: 0 | AG158: 0 | AH158: -9999 | AI158: 5.64 | AJ158: 0 | AK158: 5.2525 | AL158: 1.3625 | AM158: 2.0725 | AN158: 14.2925 | AO158: 0 | AP158: 4330 | AQ158: 15.48293444 | AR158: 363.66667 | AU158: Site 5
A159: Thin Layer | B159: 2040 | C159: Marine Nature Study Area | D159: Iteration 4 | E159: N A | F159: N A | G159: N A | H159: 1.0675 | I159: 4.5725 | J159: 0 | K159: 0 | L159: 0 | M159: 0 | N159: 0.0525 | O159: 2.0825 | P159: 0 | Q159: 0 | R159: 1.1375 | S159: 0 | T159: 0 | U159: 0 | V159: 0 | W159: 0 | X159: 5.47 | Y159: 0 | Z159: 0 | AA159: 14.2375 | AB159: 0 | AC159: 0 | AD159: 0 | AE159: 0 | AF159: 0 | AG159: 0 | AH159: -9999 | AI159: 5.64 | AJ159: 0 | AK159: 5.47 | AL159: 1.1375 | AM159: 2.0825 | AN159: 14.29 | AO159: 0 | AP159: 4320 | AQ159: 15.49064274 | AR159: 363.83333 | AU159: Site 5
A160: Thin Layer | B160: 2055 | C160: Marine Nature Study Area | D160: Iteration 4 | E160: N A | F160: N A | G160: N A | H160: 1.0675 | I160: 4.5725 | J160: 0 | K160: 0 | L160: 0 | M160: 0 | N160: 0.05 | O160: 2.09 | P160: 0 | Q160: 0 | R160: 0.88 | S160: 0 | T160: 0 | U160: 0 | V160: 0 | W160: 0 | X160: 5.7425 | Y160: 0 | Z160: 0 | AA160: 14.2175 | AB160: 0 | AC160: 0 | AD160: 0 | AE160: 0 | AF160: 0 | AG160: 0 | AH160: -9999 | AI160: 5.64 | AJ160: 0 | AK160: 5.7425 | AL160: 0.88 | AM160: 2.09 | AN160: 14.2675 | AO160: 0 | AP160: 4315 | AQ160: 15.47444732 | AR160: 363.5 | AU160: Site 5
A161: Thin Layer | B161: 2070 | C161: Marine Nature Study Area | D161: Iteration 4 | E161: N A | F161: N A | G161: N A | H161: 1.0675 | I161: 4.5725 | J161: 0 | K161: 0 | L161: 0 | M161: 0 | N161: 0.0425 | O161: 2.1525 | P161: 0 | Q161: 0 | R161: 0.5625 | S161: 0 | T161: 0 | U161: 0 | V161: 0 | W161: 0 | X161: 6.12 | Y161: 0 | Z161: 0 | AA161: 14.1025 | AB161: 0 | AC161: 0 | AD161: 0 | AE161: 0 | AF161: 0 | AG161: 0 | AH161: -9999 | AI161: 5.64 | AJ161: 0 | AK161: 6.12 | AL161: 0.5625 | AM161: 2.1525 | AN161: 14.145 | AO161: 0 | AP161: 4385 | AQ161: 15.40443832 | AR161: 362.16667 | AU161: Site 5
A162: Thin Layer | B162: 2085 | C162: Marine Nature Study Area | D162: Iteration 4 | E162: N A | F162: N A | G162: N A | H162: 1.0675 | I162: 4.5725 | J162: 0 | K162: 0 | L162: 0 | M162: 0 | N162: 0.0375 | O162: 2.325 | P162: 0 | Q162: 0 | R162: 0.25 | S162: 0 | T162: 0 | U162: 0 | V162: 0 | W162: 0 | X162: 6.465 | Y162: 0 | Z162: 0 | AA162: 13.9025 | AB162: 0 | AC162: 0 | AD162: 0 | AE162: 0 | AF162: 0 | AG162: 0 | AH162: -9999 | AI162: 5.64 | AJ162: 0 | AK162: 6.465 | AL162: 0.25 | AM162: 2.325 | AN162: 13.94 | AO162: 0 | AP162: 4485 | AQ162: 15.36067203 | AR162: 361.44444 | AU162: Site 5
A163: Thin Layer | B163: 2100 | C163: Marine Nature Study Area | D163: Iteration 4 | E163: N A | F163: N A | G163: N A | H163: 1.0675 | I163: 4.5725 | J163: 0 | K163: 0 | L163: 0 | M163: 0 | N163: 0.0325 | O163: 2.5575 | P163: 0 | Q163: 0 | R163: 0.0875 | S163: 0 | T163: 0 | U163: 0 | V163: 0 | W163: 0 | X163: 6.73 | Y163: 0 | Z163: 0 | AA163: 13.5725 | AB163: 0 | AC163: 0 | AD163: 0 | AE163: 0 | AF163: 0 | AG163: 0 | AH163: -9999 | AI163: 5.64 | AJ163: 0 | AK163: 6.73 | AL163: 0.0875 | AM163: 2.5575 | AN163: 13.605 | AO163: 0 | AP163: 4645 | AQ163: 15.2401597 | AR163: 359.16667 | AU163: Site 5
A164: Thin Layer | B164: 2004 | C164: Seamans Neck Park | D164: Iteration 4 | E164: N A | F164: N A | G164: N A | H164: 7.4475 | I164: 14.7975 | J164: 0.0975 | K164: 0 | L164: 0 | M164: 0 | N164: 1.79 | O164: 2.3825 | P164: 0 | Q164: 0 | R164: 0.165 | S164: 0 | T164: 0 | U164: 0 | V164: 1.1375 | W164: 0 | X164: 8.455 | Y164: 0 | Z164: 0 | AA164: 5.595 | AB164: 0 | AC164: 0 | AD164: 0 | AE164: 0 | AF164: 0.0275 | AG164: 0 | AH164: -9999 | AI164: 22.2725 | AJ164: 0.0975 | AK164: 9.5925 | AL164: 0.165 | AM164: 2.3825 | AN164: 7.385 | AO164: 0 | AP164: 3185 | AQ164: 8.870916047 | AR164: 217.05556 | AU164: Site 6
A165: Thin Layer | B165: 2025 | C165: Seamans Neck Park | D165: Iteration 4 | E165: N A | F165: N A | G165: N A | H165: 7.4475 | I165: 14.7975 | J165: 0.0975 | K165: 0 | L165: 0 | M165: 0 | N165: 1.795 | O165: 2.27 | P165: 0 | Q165: 0 | R165: 0.125 | S165: 0 | T165: 0 | U165: 0 | V165: 1.1375 | W165: 0 | X165: 8.6025 | Y165: 0 | Z165: 0 | AA165: 5.595 | AB165: 0 | AC165: 0 | AD165: 0 | AE165: 0 | AF165: 0.0275 | AG165: 0 | AH165: -9999 | AI165: 22.2725 | AJ165: 0.0975 | AK165: 9.74 | AL165: 0.125 | AM165: 2.27 | AN165: 7.39 | AO165: 0 | AP165: 3005 | AQ165: 8.815381587 | AR165: 214.66667 | AU165: Site 6
A166: Thin Layer | B166: 2040 | C166: Seamans Neck Park | D166: Iteration 4 | E166: N A | F166: N A | G166: N A | H166: 7.4475 | I166: 14.7975 | J166: 0.0975 | K166: 0 | L166: 0 | M166: 0 | N166: 1.795 | O166: 2.265 | P166: 0 | Q166: 0 | R166: 0.03 | S166: 0 | T166: 0 | U166: 0 | V166: 1.1375 | W166: 0 | X166: 8.7025 | Y166: 0 | Z166: 0 | AA166: 5.595 | AB166: 0 | AC166: 0 | AD166: 0 | AE166: 0 | AF166: 0.0275 | AG166: 0 | AH166: -9999 | AI166: 22.2725 | AJ166: 0.0975 | AK166: 9.84 | AL166: 0.03 | AM166: 2.265 | AN166: 7.39 | AO166: 0 | AP166: 2995 | AQ166: 8.813341266 | AR166: 214.55556 | AU166: Site 6
A167: Thin Layer | B167: 2055 | C167: Seamans Neck Park | D167: Iteration 4 | E167: N A | F167: N A | G167: N A | H167: 7.4475 | I167: 14.7975 | J167: 0.0975 | K167: 0 | L167: 0 | M167: 0 | N167: 1.765 | O167: 2.4025 | P167: 0 | Q167: 0 | R167: 0.0125 | S167: 0 | T167: 0 | U167: 0 | V167: 1.1375 | W167: 0 | X167: 8.7575 | Y167: 0 | Z167: 0 | AA167: 5.45 | AB167: 0 | AC167: 0 | AD167: 0 | AE167: 0 | AF167: 0.0275 | AG167: 0 | AH167: -9999 | AI167: 22.2725 | AJ167: 0.0975 | AK167: 9.895 | AL167: 0.0125 | AM167: 2.4025 | AN167: 7.215 | AO167: 0 | AP167: 2985 | AQ167: 8.775317671 | AR167: 213.72222 | AU167: Site 6
A168: Thin Layer | B168: 2070 | C168: Seamans Neck Park | D168: Iteration 4 | E168: N A | F168: N A | G168: N A | H168: 7.4475 | I168: 14.7975 | J168: 0.0975 | K168: 0 | L168: 0 | M168: 0 | N168: 1.675 | O168: 2.8675 | P168: 0 | Q168: 0 | R168: 0.01 | S168: 0 | T168: 0 | U168: 0 | V168: 1.1375 | W168: 0 | X168: 8.8175 | Y168: 0 | Z168: 0 | AA168: 5.0175 | AB168: 0 | AC168: 0 | AD168: 0 | AE168: 0 | AF168: 0.0275 | AG168: 0 | AH168: -9999 | AI168: 22.2725 | AJ168: 0.0975 | AK168: 9.955 | AL168: 0.01 | AM168: 2.8675 | AN168: 6.6925 | AO168: 0 | AP168: 3110 | AQ168: 8.701115666 | AR168: 212.44444 | AU168: Site 6
A169: Thin Layer | B169: 2085 | C169: Seamans Neck Park | D169: Iteration 4 | E169: N A | F169: N A | G169: N A | H169: 7.4475 | I169: 14.7975 | J169: 0.0975 | K169: 0 | L169: 0 | M169: 0 | N169: 1.5825 | O169: 3.43 | P169: 0 | Q169: 0 | R169: 0.0225 | S169: 0 | T169: 0 | U169: 0 | V169: 1.1375 | W169: 0 | X169: 8.87 | Y169: 0 | Z169: 0 | AA169: 4.4825 | AB169: 0 | AC169: 0 | AD169: 0 | AE169: 0 | AF169: 0.0275 | AG169: 0 | AH169: -9999 | AI169: 22.2725 | AJ169: 0.0975 | AK169: 10.0075 | AL169: 0.0225 | AM169: 3.43 | AN169: 6.065 | AO169: 0 | AP169: 3240 | AQ169: 8.630610631 | AR169: 211 | AU169: Site 6
A170: Thin Layer | B170: 2100 | C170: Seamans Neck Park | D170: Iteration 4 | E170: N A | F170: N A | G170: N A | H170: 7.4475 | I170: 14.7975 | J170: 0.0975 | K170: 0 | L170: 0 | M170: 0 | N170: 1.48 | O170: 4.0725 | P170: 0 | Q170: 0 | R170: 0.0175 | S170: 0 | T170: 0 | U170: 0 | V170: 1.1375 | W170: 0 | X170: 8.965 | Y170: 0 | Z170: 0 | AA170: 3.8525 | AB170: 0 | AC170: 0 | AD170: 0 | AE170: 0 | AF170: 0.0275 | AG170: 0 | AH170: -9999 | AI170: 22.2725 | AJ170: 0.0975 | AK170: 10.1025 | AL170: 0.0175 | AM170: 4.0725 | AN170: 5.3325 | AO170: 0 | AP170: 3440 | AQ170: 8.513336644 | AR170: 209 | AU170: Site 6
A171: Thin Layer | B171: 2004 | C171: Dosoris Pond/West Pond | D171: Iteration 5 | E171: N A | F171: N A | G171: N A | H171: 28.3125 | I171: 122.8975 | J171: 1.6475 | K171: 0 | L171: 0.6175 | M171: 0 | N171: 1.305 | O171: 13.245 | P171: 0 | Q171: 14.9375 | R171: 0.05 | S171: 0 | T171: 0 | U171: 0 | V171: 1.1175 | W171: 0 | X171: 76.83 | Y171: 0 | Z171: 0 | AA171: 0.36 | AB171: 0 | AC171: 0.2075 | AD171: 0.1675 | AE171: 0 | AF171: 0.0525 | AG171: 0 | AH171: -9999 | AI171: 151.2625 | AJ171: 2.4725 | AK171: 77.9475 | AL171: 14.9875 | AM171: 13.245 | AN171: 1.665 | AO171: 0.1675 | AP171: 5005 | AQ171: 13.40903686 | AR171: 54.218182 | AU171: Site 1
A172: Thin Layer | B172: 2025 | C172: Dosoris Pond/West Pond | D172: Iteration 5 | E172: N A | F172: N A | G172: N A | H172: 28.3125 | I172: 122.8975 | J172: 1.6475 | K172: 0 | L172: 0.1325 | M172: 0 | N172: 1.565 | O172: 13.06 | P172: 0 | Q172: 14.6575 | R172: 0.44 | S172: 0 | T172: 0 | U172: 0 | V172: 1.1175 | W172: 0 | X172: 77.1475 | Y172: 0 | Z172: 0 | AA172: 0.3625 | AB172: 0 | AC172: 0.2075 | AD172: 0.1475 | AE172: 0 | AF172: 0.0525 | AG172: 0 | AH172: -9999 | AI172: 151.2625 | AJ172: 1.9875 | AK172: 78.265 | AL172: 15.0975 | AM172: 13.06 | AN172: 1.9275 | AO172: 0.1475 | AP172: 5300 | AQ172: 13.40744627 | AR172: 54.5 | AU172: Site 1
A173: Thin Layer | B173: 2040 | C173: Dosoris Pond/West Pond | D173: Iteration 5 | E173: N A | F173: N A | G173: N A | H173: 28.3125 | I173: 122.8975 | J173: 1.6475 | K173: 0 | L173: 0.075 | M173: 0 | N173: 0.7325 | O173: 13.72 | P173: 0 | Q173: 14.585 | R173: 0.6625 | S173: 0 | T173: 0 | U173: 0 | V173: 1.1175 | W173: 0 | X173: 77.2475 | Y173: 0 | Z173: 0 | AA173: 0.3475 | AB173: 0 | AC173: 0.2075 | AD173: 0.1425 | AE173: 0 | AF173: 0.0525 | AG173: 0 | AH173: -9999 | AI173: 151.2625 | AJ173: 1.93 | AK173: 78.365 | AL173: 15.2475 | AM173: 13.72 | AN173: 1.08 | AO173: 0.1425 | AP173: 5480 | AQ173: 13.17506904 | AR173: 53.818182 | AU173: Site 1
A174: Thin Layer | B174: 2055 | C174: Dosoris Pond/West Pond | D174: Iteration 5 | E174: N A | F174: N A | G174: N A | H174: 28.3125 | I174: 122.8975 | J174: 1.6475 | K174: 0 | L174: 0.04 | M174: 0 | N174: 0.315 | O174: 13.6325 | P174: 0 | Q174: 13.7825 | R174: 0.9975 | S174: 0 | T174: 0 | U174: 0 | V174: 1.115 | W174: 0 | X174: 78.3025 | Y174: 0 | Z174: 0 | AA174: 0.3275 | AB174: 0 | AC174: 0.2075 | AD174: 0.1175 | AE174: 0 | AF174: 0.0525 | AG174: 0 | AH174: -9999 | AI174: 151.2625 | AJ174: 1.895 | AK174: 79.4175 | AL174: 14.78 | AM174: 13.6325 | AN174: 0.6425 | AO174: 0.1175 | AP174: 6560 | AQ174: 12.52762426 | AR174: 51.909091 | AU174: Site 1
A175: Thin Layer | B175: 2070 | C175: Dosoris Pond/West Pond | D175: Iteration 5 | E175: N A | F175: N A | G175: N A | H175: 28.3125 | I175: 122.8975 | J175: 1.6175 | K175: 0 | L175: 0.015 | M175: 0 | N175: 0.0825 | O175: 12.4025 | P175: 0 | Q175: 10.9 | R175: 2.1975 | S175: 0 | T175: 0 | U175: 0 | V175: 1.1125 | W175: 0 | X175: 81.5775 | Y175: 0 | Z175: 0 | AA175: 0.265 | AB175: 0 | AC175: 0.2075 | AD175: 0.1075 | AE175: 0 | AF175: 0.0525 | AG175: 0 | AH175: -9999 | AI175: 151.2625 | AJ175: 1.84 | AK175: 82.69 | AL175: 13.0975 | AM175: 12.4025 | AN175: 0.3475 | AO175: 0.1075 | AP175: 8805 | AQ175: 10.72411281 | AR175: 46.363636 | AU175: Site 1
A176: Thin Layer | B176: 2085 | C176: Dosoris Pond/West Pond | D176: Iteration 5 | E176: N A | F176: N A | G176: N A | H176: 28.3125 | I176: 122.8975 | J176: 1.5025 | K176: 0 | L176: 0.01 | M176: 0 | N176: 0.12 | O176: 9.87 | P176: 0 | Q176: 7.3775 | R176: 4.1575 | S176: 0 | T176: 0 | U176: 0 | V176: 1.0675 | W176: 0 | X176: 85.88 | Y176: 0 | Z176: 0 | AA176: 0.2 | AB176: 0 | AC176: 0.2075 | AD176: 0.0925 | AE176: 0 | AF176: 0.0525 | AG176: 0 | AH176: -9999 | AI176: 151.2625 | AJ176: 1.72 | AK176: 86.9475 | AL176: 11.535 | AM176: 9.87 | AN176: 0.32 | AO176: 0.0925 | AP176: 10235 | AQ176: 7.942485808 | AR176: 37.054545 | AU176: Site 1
A177: Thin Layer | B177: 2100 | C177: Dosoris Pond/West Pond | D177: Iteration 5 | E177: N A | F177: N A | G177: N A | H177: 28.3125 | I177: 122.8975 | J177: 1.3125 | K177: 0 | L177: 0.0075 | M177: 0 | N177: 0.1925 | O177: 7.4575 | P177: 0 | Q177: 5.9275 | R177: 4.98 | S177: 0 | T177: 0 | U177: 0 | V177: 0.7625 | W177: 0 | X177: 89.4 | Y177: 0 | Z177: 0 | AA177: 0.1775 | AB177: 0 | AC177: 0.2075 | AD177: 0.06 | AE177: 0 | AF177: 0.0525 | AG177: 0 | AH177: -9999 | AI177: 151.2625 | AJ177: 1.5275 | AK177: 90.1625 | AL177: 10.9075 | AM177: 7.4575 | AN177: 0.37 | AO177: 0.06 | AP177: 8995 | AQ177: 5.655191772 | AR177: 28.463636 | AU177: Site 1
A178: Thin Layer | B178: 2004 | C178: Lattingtown | D178: Iteration 5 | E178: N A | F178: N A | G178: N A | H178: 7.905 | I178: 101.735 | J178: 2.85 | K178: 0 | L178: 0.2725 | M178: 0 | N178: 2.71 | O178: 0.6175 | P178: 0 | Q178: 7.3775 | R178: 7.57 | S178: 0 | T178: 0 | U178: 0 | V178: 1.5525 | W178: 0 | X178: 21.84 | Y178: 0 | Z178: 0 | AA178: 14.9 | AB178: 0 | AC178: 0 | AD178: 0 | AE178: 0 | AF178: 0.04 | AG178: 0 | AH178: -9999 | AI178: 109.68 | AJ178: 3.1225 | AK178: 23.3925 | AL178: 14.9475 | AM178: 0.6175 | AN178: 17.61 | AO178: 0 | AP178: 14000 | AQ178: 15.49429071 | AR178: 82.852273 | AU178: Site 2
A179: Thin Layer | B179: 2025 | C179: Lattingtown | D179: Iteration 5 | E179: N A | F179: N A | G179: N A | H179: 7.905 | I179: 101.735 | J179: 2.85 | K179: 0 | L179: 0.2525 | M179: 0 | N179: 2.5925 | O179: 0.7725 | P179: 0 | Q179: 6.9 | R179: 7.575 | S179: 0 | T179: 0 | U179: 0 | V179: 1.58 | W179: 0 | X179: 22.3125 | Y179: 0 | Z179: 0 | AA179: 14.855 | AB179: 0 | AC179: 0 | AD179: 0 | AE179: 0 | AF179: 0.04 | AG179: 0 | AH179: -9999 | AI179: 109.68 | AJ179: 3.1025 | AK179: 23.8925 | AL179: 14.475 | AM179: 0.7725 | AN179: 17.4475 | AO179: 0 | AP179: 14230 | AQ179: 15.43341914 | AR179: 82.818182 | AU179: Site 2
A180: Thin Layer | B180: 2040 | C180: Lattingtown | D180: Iteration 5 | E180: N A | F180: N A | G180: N A | H180: 7.905 | I180: 101.735 | J180: 2.85 | K180: 0 | L180: 0.2175 | M180: 0 | N180: 2.3975 | O180: 1.15 | P180: 0 | Q180: 6.9 | R180: 7.3325 | S180: 0 | T180: 0 | U180: 0 | V180: 1.5575 | W180: 0 | X180: 22.5925 | Y180: 0 | Z180: 0 | AA180: 14.6925 | AB180: 0 | AC180: 0 | AD180: 0 | AE180: 0 | AF180: 0.04 | AG180: 0 | AH180: -9999 | AI180: 109.68 | AJ180: 3.0675 | AK180: 24.15 | AL180: 14.2325 | AM180: 1.15 | AN180: 17.09 | AO180: 0 | AP180: 14525 | AQ180: 15.3729317 | AR180: 82.909091 | AU180: Site 2
A181: Thin Layer | B181: 2055 | C181: Lattingtown | D181: Iteration 5 | E181: N A | F181: N A | G181: N A | H181: 7.905 | I181: 101.735 | J181: 2.7725 | K181: 0 | L181: 0.2075 | M181: 0 | N181: 2.26 | O181: 1.735 | P181: 0 | Q181: 6.9 | R181: 6.85 | S181: 0 | T181: 0 | U181: 0 | V181: 1.5025 | W181: 0 | X181: 23.1925 | Y181: 0 | Z181: 0 | AA181: 14.27 | AB181: 0 | AC181: 0 | AD181: 0 | AE181: 0 | AF181: 0.04 | AG181: 0 | AH181: -9999 | AI181: 109.68 | AJ181: 2.98 | AK181: 24.695 | AL181: 13.75 | AM181: 1.735 | AN181: 16.53 | AO181: 0 | AP181: 14795 | AQ181: 15.34714669 | AR181: 83.022727 | AU181: Site 2
A182: Thin Layer | B182: 2070 | C182: Lattingtown | D182: Iteration 5 | E182: N A | F182: N A | G182: N A | H182: 7.905 | I182: 101.735 | J182: 2.57 | K182: 0 | L182: 0.2025 | M182: 0 | N182: 2.2 | O182: 3.1125 | P182: 0 | Q182: 6.9 | R182: 5.6325 | S182: 0 | T182: 0 | U182: 0 | V182: 1.5025 | W182: 0 | X182: 24.595 | Y182: 0 | Z182: 0 | AA182: 12.975 | AB182: 0 | AC182: 0 | AD182: 0 | AE182: 0 | AF182: 0.04 | AG182: 0 | AH182: -9999 | AI182: 109.68 | AJ182: 2.7725 | AK182: 26.0975 | AL182: 12.5325 | AM182: 3.1125 | AN182: 15.175 | AO182: 0 | AP182: 15055 | AQ182: 15.30151149 | AR182: 83.125 | AU182: Site 2
A183: Thin Layer | B183: 2085 | C183: Lattingtown | D183: Iteration 5 | E183: N A | F183: N A | G183: N A | H183: 7.905 | I183: 101.735 | J183: 2.375 | K183: 0 | L183: 0.1975 | M183: 0 | N183: 1.98 | O183: 6.1075 | P183: 0 | Q183: 6.425 | R183: 3.5075 | S183: 0 | T183: 0 | U183: 0 | V183: 1.33 | W183: 0 | X183: 27.9525 | Y183: 0 | Z183: 0 | AA183: 9.815 | AB183: 0 | AC183: 0 | AD183: 0 | AE183: 0 | AF183: 0.04 | AG183: 0 | AH183: -9999 | AI183: 109.68 | AJ183: 2.5725 | AK183: 29.2825 | AL183: 9.9325 | AM183: 6.1075 | AN183: 11.795 | AO183: 0 | AP183: 14985 | AQ183: 14.86643626 | AR183: 81.375 | AU183: Site 2
A184: Thin Layer | B184: 2100 | C184: Lattingtown | D184: Iteration 5 | E184: N A | F184: N A | G184: N A | H184: 7.905 | I184: 101.735 | J184: 2.095 | K184: 0 | L184: 0.1975 | M184: 0 | N184: 1.7225 | O184: 9.9075 | P184: 0 | Q184: 6.4225 | R184: 2.075 | S184: 0 | T184: 0 | U184: 0 | V184: 1.3275 | W184: 0 | X184: 30.765 | Y184: 0 | Z184: 0 | AA184: 5.1775 | AB184: 0 | AC184: 0 | AD184: 0 | AE184: 0 | AF184: 0.04 | AG184: 0 | AH184: -9999 | AI184: 109.68 | AJ184: 2.2925 | AK184: 32.0925 | AL184: 8.4975 | AM184: 9.9075 | AN184: 6.9 | AO184: 0 | AP184: 15005 | AQ184: 13.86408966 | AR184: 76.397727 | AU184: Site 2
A185: Thin Layer | B185: 2004 | C185: Hempstead Harbor | D185: Iteration 5 | E185: N A | F185: N A | G185: N A | H185: 9.515 | I185: 14.2075 | J185: 0.175 | K185: 0 | L185: 0 | M185: 0 | N185: 0.6475 | O185: 0.31 | P185: 0 | Q185: 0.55 | R185: 0 | S185: 0 | T185: 0 | U185: 0 | V185: 0.03 | W185: 0 | X185: 41.5525 | Y185: 0 | Z185: 0 | AA185: 2.845 | AB185: 0 | AC185: 0 | AD185: 0 | AE185: 0 | AF185: 0.1375 | AG185: 0 | AH185: -9999 | AI185: 23.86 | AJ185: 0.175 | AK185: 41.5825 | AL185: 0.55 | AM185: 0.31 | AN185: 3.4925 | AO185: 0 | AP185: 1410 | AQ185: 3.431529171 | AR185: 71.074766 | AU185: Site 3
A186: Thin Layer | B186: 2025 | C186: Hempstead Harbor | D186: Iteration 5 | E186: N A | F186: N A | G186: N A | H186: 9.515 | I186: 14.2075 | J186: 0.175 | K186: 0 | L186: 0 | M186: 0 | N186: 0.565 | O186: 0.3825 | P186: 0 | Q186: 0.55 | R186: 0.01 | S186: 0 | T186: 0 | U186: 0 | V186: 0.03 | W186: 0 | X186: 41.5525 | Y186: 0 | Z186: 0 | AA186: 2.845 | AB186: 0 | AC186: 0 | AD186: 0 | AE186: 0 | AF186: 0.1375 | AG186: 0 | AH186: -9999 | AI186: 23.86 | AJ186: 0.175 | AK186: 41.5825 | AL186: 0.56 | AM186: 0.3825 | AN186: 3.41 | AO186: 0 | AP186: 1545 | AQ186: 3.389314464 | AR186: 70.88785 | AU186: Site 3
A187: Thin Layer | B187: 2040 | C187: Hempstead Harbor | D187: Iteration 5 | E187: N A | F187: N A | G187: N A | H187: 9.515 | I187: 14.2075 | J187: 0.175 | K187: 0 | L187: 0 | M187: 0 | N187: 0.36 | O187: 0.5875 | P187: 0 | Q187: 0.55 | R187: 0.01 | S187: 0 | T187: 0 | U187: 0 | V187: 0.03 | W187: 0 | X187: 41.5525 | Y187: 0 | Z187: 0 | AA187: 2.845 | AB187: 0 | AC187: 0 | AD187: 0 | AE187: 0 | AF187: 0.1375 | AG187: 0 | AH187: -9999 | AI187: 23.86 | AJ187: 0.175 | AK187: 41.5825 | AL187: 0.56 | AM187: 0.5875 | AN187: 3.205 | AO187: 0 | AP187: 1735 | AQ187: 3.319739774 | AR187: 70.88785 | AU187: Site 3
A188: Thin Layer | B188: 2055 | C188: Hempstead Harbor | D188: Iteration 5 | E188: N A | F188: N A | G188: N A | H188: 9.515 | I188: 14.2075 | J188: 0.175 | K188: 0 | L188: 0 | M188: 0 | N188: 0.155 | O188: 0.8 | P188: 0 | Q188: 0.55 | R188: 0 | S188: 0 | T188: 0 | U188: 0 | V188: 0.03 | W188: 0 | X188: 41.5625 | Y188: 0 | Z188: 0 | AA188: 2.8375 | AB188: 0 | AC188: 0 | AD188: 0 | AE188: 0 | AF188: 0.1375 | AG188: 0 | AH188: -9999 | AI188: 23.86 | AJ188: 0.175 | AK188: 41.5925 | AL188: 0.55 | AM188: 0.8 | AN188: 2.9925 | AO188: 0 | AP188: 1885 | AQ188: 3.288013387 | AR188: 70.88785 | AU188: Site 3
A189: Thin Layer | B189: 2070 | C189: Hempstead Harbor | D189: Iteration 5 | E189: N A | F189: N A | G189: N A | H189: 9.515 | I189: 14.2075 | J189: 0.175 | K189: 0 | L189: 0 | M189: 0 | N189: 0.0775 | O189: 0.9975 | P189: 0 | Q189: 0.55 | R189: 0 | S189: 0 | T189: 0 | U189: 0 | V189: 0.03 | W189: 0 | X189: 41.5625 | Y189: 0 | Z189: 0 | AA189: 2.7175 | AB189: 0 | AC189: 0 | AD189: 0 | AE189: 0 | AF189: 0.1375 | AG189: 0 | AH189: -9999 | AI189: 23.86 | AJ189: 0.175 | AK189: 41.5925 | AL189: 0.55 | AM189: 0.9975 | AN189: 2.795 | AO189: 0 | AP189: 1960 | AQ189: 3.287321877 | AR189: 70.88785 | AU189: Site 3
A190: Thin Layer | B190: 2085 | C190: Hempstead Harbor | D190: Iteration 5 | E190: N A | F190: N A | G190: N A | H190: 9.515 | I190: 14.2075 | J190: 0.175 | K190: 0 | L190: 0 | M190: 0 | N190: 0.0575 | O190: 1.555 | P190: 0 | Q190: 0.55 | R190: 0.01 | S190: 0 | T190: 0 | U190: 0 | V190: 0.03 | W190: 0 | X190: 41.5625 | Y190: 0 | Z190: 0 | AA190: 2.17 | AB190: 0 | AC190: 0 | AD190: 0 | AE190: 0 | AF190: 0.1375 | AG190: 0 | AH190: -9999 | AI190: 23.86 | AJ190: 0.175 | AK190: 41.5925 | AL190: 0.56 | AM190: 1.555 | AN190: 2.2275 | AO190: 0 | AP190: 1930 | AQ190: 3.28034388 | AR190: 70.700935 | AU190: Site 3
A191: Thin Layer | B191: 2100 | C191: Hempstead Harbor | D191: Iteration 5 | E191: N A | F191: N A | G191: N A | H191: 9.515 | I191: 14.2075 | J191: 0.175 | K191: 0 | L191: 0 | M191: 0 | N191: 0.0325 | O191: 2.1675 | P191: 0 | Q191: 0.55 | R191: 0.01 | S191: 0 | T191: 0 | U191: 0 | V191: 0.03 | W191: 0 | X191: 41.5625 | Y191: 0 | Z191: 0 | AA191: 1.5825 | AB191: 0 | AC191: 0 | AD191: 0 | AE191: 0 | AF191: 0.1375 | AG191: 0 | AH191: -9999 | AI191: 23.86 | AJ191: 0.175 | AK191: 41.5925 | AL191: 0.56 | AM191: 2.1675 | AN191: 1.615 | AO191: 0 | AP191: 1930 | AQ191: 3.281699056 | AR191: 70.700935 | AU191: Site 3
A192: Thin Layer | B192: 2004 | C192: Cuba Middle and East Island | D192: Iteration 5 | E192: N A | F192: N A | G192: N A | H192: 0 | I192: 0 | J192: 0 | K192: 0 | L192: 0 | M192: 0 | N192: 0 | O192: 29.49 | P192: 0 | Q192: 1.1025 | R192: 11.8225 | S192: 0 | T192: 0 | U192: 0 | V192: 0 | W192: 0 | X192: 193.82 | Y192: 0 | Z192: 0 | AA192: 60.535 | AB192: 0 | AC192: 0 | AD192: 0 | AE192: 0 | AF192: 0 | AG192: 0 | AH192: -9999 | AI192: 0 | AJ192: 0 | AK192: 193.82 | AL192: 12.925 | AM192: 29.49 | AN192: 60.535 | AO192: 0 | AP192: 38340 | AQ192: 85.45157397 | AR192: 409.20455 | AU192: Site 4
A193: Thin Layer | B193: 2025 | C193: Cuba Middle and East Island | D193: Iteration 5 | E193: N A | F193: N A | G193: N A | H193: 0 | I193: 0 | J193: 0 | K193: 0 | L193: 0 | M193: 0 | N193: 0 | O193: 32.9525 | P193: 0 | Q193: 1.1025 | R193: 8.2675 | S193: 0 | T193: 0 | U193: 0 | V193: 0 | W193: 0 | X193: 197.97 | Y193: 0 | Z193: 0 | AA193: 56.4775 | AB193: 0 | AC193: 0 | AD193: 0 | AE193: 0 | AF193: 0 | AG193: 0 | AH193: -9999 | AI193: 0 | AJ193: 0 | AK193: 197.97 | AL193: 9.37 | AM193: 32.9525 | AN193: 56.4775 | AO193: 0 | AP193: 39800 | AQ193: 84.67174538 | AR193: 406.5 | AU193: Site 4
A194: Thin Layer | B194: 2040 | C194: Cuba Middle and East Island | D194: Iteration 5 | E194: N A | F194: N A | G194: N A | H194: 0 | I194: 0 | J194: 0 | K194: 0 | L194: 0 | M194: 0 | N194: 0 | O194: 43.8475 | P194: 0 | Q194: 1.0925 | R194: 5.335 | S194: 0 | T194: 0 | U194: 0 | V194: 0 | W194: 0 | X194: 203.05 | Y194: 0 | Z194: 0 | AA194: 43.445 | AB194: 0 | AC194: 0 | AD194: 0 | AE194: 0 | AF194: 0 | AG194: 0 | AH194: -9999 | AI194: 0 | AJ194: 0 | AK194: 203.05 | AL194: 6.4275 | AM194: 43.8475 | AN194: 43.445 | AO194: 0 | AP194: 45200 | AQ194: 81.85069397 | AR194: 396.78409 | AU194: Site 4
A195: Thin Layer | B195: 2055 | C195: Cuba Middle and East Island | D195: Iteration 5 | E195: N A | F195: N A | G195: N A | H195: 0 | I195: 0 | J195: 0 | K195: 0 | L195: 0 | M195: 0 | N195: 0 | O195: 58.48 | P195: 0 | Q195: 1.0175 | R195: 6.9375 | S195: 0 | T195: 0 | U195: 0 | V195: 0 | W195: 0 | X195: 208.0725 | Y195: 0 | Z195: 0 | AA195: 22.2625 | AB195: 0 | AC195: 0 | AD195: 0 | AE195: 0 | AF195: 0 | AG195: 0 | AH195: -9999 | AI195: 0 | AJ195: 0 | AK195: 208.0725 | AL195: 7.955 | AM195: 58.48 | AN195: 22.2625 | AO195: 0 | AP195: 60545 | AQ195: 73.36051477 | AR195: 367.01136 | AU195: Site 4
A196: Thin Layer | B196: 2070 | C196: Cuba Middle and East Island | D196: Iteration 5 | E196: N A | F196: N A | G196: N A | H196: 0 | I196: 0 | J196: 0 | K196: 0 | L196: 0 | M196: 0 | N196: 0 | O196: 49.865 | P196: 0 | Q196: 0.6375 | R196: 25.6375 | S196: 0 | T196: 0 | U196: 0 | V196: 0 | W196: 0 | X196: 216.8125 | Y196: 0 | Z196: 0 | AA196: 3.8175 | AB196: 0 | AC196: 0 | AD196: 0 | AE196: 0 | AF196: 0 | AG196: 0 | AH196: -9999 | AI196: 0 | AJ196: 0 | AK196: 216.8125 | AL196: 26.275 | AM196: 49.865 | AN196: 3.8175 | AO196: 0 | AP196: 86615 | AQ196: 43.0340121 | AR196: 244.01136 | AU196: Site 4
A197: Thin Layer | B197: 2085 | C197: Cuba Middle and East Island | D197: Iteration 5 | E197: N A | F197: N A | G197: N A | H197: 0 | I197: 0 | J197: 0 | K197: 0 | L197: 0 | M197: 0 | N197: 0 | O197: 18.04 | P197: 0 | Q197: 0.1625 | R197: 33.295 | S197: 0 | T197: 0 | U197: 0 | V197: 0 | W197: 0 | X197: 245.0825 | Y197: 0 | Z197: 0 | AA197: 0.19 | AB197: 0 | AC197: 0 | AD197: 0 | AE197: 0 | AF197: 0 | AG197: 0 | AH197: -9999 | AI197: 0 | AJ197: 0 | AK197: 245.0825 | AL197: 33.4575 | AM197: 18.04 | AN197: 0.19 | AO197: 0 | AP197: 58865 | AQ197: 10.97136285 | AR197: 82.863636 | AU197: Site 4
A198: Thin Layer | B198: 2100 | C198: Cuba Middle and East Island | D198: Iteration 5 | E198: N A | F198: N A | G198: N A | H198: 0 | I198: 0 | J198: 0 | K198: 0 | L198: 0 | M198: 0 | N198: 0 | O198: 2.0025 | P198: 0 | Q198: 0 | R198: 15.195 | S198: 0 | T198: 0 | U198: 0 | V198: 0 | W198: 0 | X198: 279.5725 | Y198: 0 | Z198: 0 | AA198: 0 | AB198: 0 | AC198: 0 | AD198: 0 | AE198: 0 | AF198: 0 | AG198: 0 | AH198: -9999 | AI198: 0 | AJ198: 0 | AK198: 279.5725 | AL198: 15.195 | AM198: 2.0025 | AN198: 0 | AO198: 0 | AP198: 9280 | AQ198: 0.8697342499 | AR198: 9.1022727 | AU198: Site 4
A199: Thin Layer | B199: 2004 | C199: Marine Nature Study Area | D199: Iteration 5 | E199: N A | F199: N A | G199: N A | H199: 1.0675 | I199: 4.5725 | J199: 0 | K199: 0 | L199: 0 | M199: 0 | N199: 0.065 | O199: 2.2 | P199: 0 | Q199: 0 | R199: 1.775 | S199: 0 | T199: 0 | U199: 0 | V199: 0 | W199: 0 | X199: 4.74 | Y199: 0 | Z199: 0 | AA199: 14.2 | AB199: 0 | AC199: 0 | AD199: 0 | AE199: 0 | AF199: 0 | AG199: 0 | AH199: -9999 | AI199: 5.64 | AJ199: 0 | AK199: 4.74 | AL199: 1.775 | AM199: 2.2 | AN199: 14.265 | AO199: 0 | AP199: 4250 | AQ199: 15.58923454 | AR199: 365.88889 | AU199: Site 5
A200: Thin Layer | B200: 2025 | C200: Marine Nature Study Area | D200: Iteration 5 | E200: N A | F200: N A | G200: N A | H200: 1.0675 | I200: 4.5725 | J200: 0 | K200: 0 | L200: 0 | M200: 0 | N200: 0.055 | O200: 2.39 | P200: 0 | Q200: 0 | R200: 1.4775 | S200: 0 | T200: 0 | U200: 0 | V200: 0 | W200: 0 | X200: 5.13 | Y200: 0 | Z200: 0 | AA200: 13.9275 | AB200: 0 | AC200: 0 | AD200: 0 | AE200: 0 | AF200: 0 | AG200: 0 | AH200: -9999 | AI200: 5.64 | AJ200: 0 | AK200: 5.13 | AL200: 1.4775 | AM200: 2.39 | AN200: 13.9825 | AO200: 0 | AP200: 4270 | AQ200: 15.50125871 | AR200: 363.83333 | AU200: Site 5
... 925 more rows

Sheet OutputTable
A1: Site | B1: Year | C1: Utility | D1: Value | E1: Strategy
A2: Dosoris Pond/West Pond | B2: 2016 | C2: Carbon Sequestration | D2: 1.82477706 | E2: No Migration
A3: Dosoris Pond/West Pond | B3: 2016 | C3: Nitrogen Sequestration | D3: 2.057151482 | E3: No Migration
A4: Dosoris Pond/West Pond | B4: 2016 | C4: Phosphorus Sequestration | D4: 1.806431442 | E4: No Migration
A5: Dosoris Pond/West Pond | B5: 2016 | C5: Undeveloped Dry Land Recreation | D5: 13.68524319 | E5: No Migration
A6: Dosoris Pond/West Pond | B6: 2016 | C6: Marsh Land Recreation | D6: 2.390455272 | E6: No Migration
A7: Dosoris Pond/West Pond | B7: 2016 | C7: Natural Areas for Underserved Communities | D7: 6.3604898 | E7: No Migration
A8: Dosoris Pond/West Pond | B8: 2016 | C8: Nekton Habitat | D8: 2.543380771 | E8: No Migration
A9: Dosoris Pond/West Pond | B9: 2016 | C9: Habitat connectivity / Frag | D9: 6.892548089 | E9: No Migration
A10: Dosoris Pond/West Pond | B10: 2016 | C10: Flood Vulnerability Reduction | D10: 5.148607401 | E10: No Migration
A11: Dosoris Pond/West Pond | B11: 2016 | C11: Political/Cultural/Historic value | D11: 4.20414828 | E11: No Migration
A12: Dosoris Pond/West Pond | B12: 2016 | C12: General preservation of wetlands | D12: 6.343844891 | E12: No Migration
A13: Dosoris Pond/West Pond | B13: 2017 | C13: Carbon Sequestration | D13: 1.824178057 | E13: No Migration
A14: Dosoris Pond/West Pond | B14: 2017 | C14: Nitrogen Sequestration | D14: 2.056421419 | E14: No Migration
A15: Dosoris Pond/West Pond | B15: 2017 | C15: Phosphorus Sequestration | D15: 1.805718658 | E15: No Migration
A16: Dosoris Pond/West Pond | B16: 2017 | C16: Undeveloped Dry Land Recreation | D16: 13.68524319 | E16: No Migration
A17: Dosoris Pond/West Pond | B17: 2017 | C17: Marsh Land Recreation | D17: 2.38942137 | E17: No Migration
A18: Dosoris Pond/West Pond | B18: 2017 | C18: Natural Areas for Underserved Communities | D18: 6.359093596 | E18: No Migration
A19: Dosoris Pond/West Pond | B19: 2017 | C19: Nekton Habitat | D19: 2.552333522 | E19: No Migration
A20: Dosoris Pond/West Pond | B20: 2017 | C20: Habitat connectivity / Frag | D20: 6.889057292 | E20: No Migration
A21: Dosoris Pond/West Pond | B21: 2017 | C21: Flood Vulnerability Reduction | D21: 5.14747722 | E21: No Migration
A22: Dosoris Pond/West Pond | B22: 2017 | C22: Political/Cultural/Historic value | D22: 4.20322542 | E22: No Migration
A23: Dosoris Pond/West Pond | B23: 2017 | C23: General preservation of wetlands | D23: 6.342452342 | E23: No Migration
A24: Dosoris Pond/West Pond | B24: 2018 | C24: Carbon Sequestration | D24: 1.823579053 | E24: No Migration
A25: Dosoris Pond/West Pond | B25: 2018 | C25: Nitrogen Sequestration | D25: 2.055691355 | E25: No Migration
A26: Dosoris Pond/West Pond | B26: 2018 | C26: Phosphorus Sequestration | D26: 1.805005874 | E26: No Migration
A27: Dosoris Pond/West Pond | B27: 2018 | C27: Undeveloped Dry Land Recreation | D27: 13.68524319 | E27: No Migration
A28: Dosoris Pond/West Pond | B28: 2018 | C28: Marsh Land Recreation | D28: 2.388387468 | E28: No Migration
A29: Dosoris Pond/West Pond | B29: 2018 | C29: Natural Areas for Underserved Communities | D29: 6.357697393 | E29: No Migration
A30: Dosoris Pond/West Pond | B30: 2018 | C30: Nekton Habitat | D30: 2.561286274 | E30: No Migration
A31: Dosoris Pond/West Pond | B31: 2018 | C31: Habitat connectivity / Frag | D31: 6.885566495 | E31: No Migration
A32: Dosoris Pond/West Pond | B32: 2018 | C32: Flood Vulnerability Reduction | D32: 5.146347039 | E32: No Migration
A33: Dosoris Pond/West Pond | B33: 2018 | C33: Political/Cultural/Historic value | D33: 4.202302559 | E33: No Migration
A34: Dosoris Pond/West Pond | B34: 2018 | C34: General preservation of wetlands | D34: 6.341059792 | E34: No Migration
A35: Dosoris Pond/West Pond | B35: 2019 | C35: Carbon Sequestration | D35: 1.82298005 | E35: No Migration
A36: Dosoris Pond/West Pond | B36: 2019 | C36: Nitrogen Sequestration | D36: 2.054961292 | E36: No Migration
A37: Dosoris Pond/West Pond | B37: 2019 | C37: Phosphorus Sequestration | D37: 1.804293091 | E37: No Migration
A38: Dosoris Pond/West Pond | B38: 2019 | C38: Undeveloped Dry Land Recreation | D38: 13.68524319 | E38: No Migration
A39: Dosoris Pond/West Pond | B39: 2019 | C39: Marsh Land Recreation | D39: 2.387353565 | E39: No Migration
A40: Dosoris Pond/West Pond | B40: 2019 | C40: Natural Areas for Underserved Communities | D40: 6.35630119 | E40: No Migration
A41: Dosoris Pond/West Pond | B41: 2019 | C41: Nekton Habitat | D41: 2.570239025 | E41: No Migration
A42: Dosoris Pond/West Pond | B42: 2019 | C42: Habitat connectivity / Frag | D42: 6.882075697 | E42: No Migration
A43: Dosoris Pond/West Pond | B43: 2019 | C43: Flood Vulnerability Reduction | D43: 5.145216858 | E43: No Migration
A44: Dosoris Pond/West Pond | B44: 2019 | C44: Political/Cultural/Historic value | D44: 4.201379698 | E44: No Migration
A45: Dosoris Pond/West Pond | B45: 2019 | C45: General preservation of wetlands | D45: 6.339667242 | E45: No Migration
A46: Dosoris Pond/West Pond | B46: 2020 | C46: Carbon Sequestration | D46: 1.822381047 | E46: No Migration
A47: Dosoris Pond/West Pond | B47: 2020 | C47: Nitrogen Sequestration | D47: 2.054231229 | E47: No Migration
A48: Dosoris Pond/West Pond | B48: 2020 | C48: Phosphorus Sequestration | D48: 1.803580307 | E48: No Migration
A49: Dosoris Pond/West Pond | B49: 2020 | C49: Undeveloped Dry Land Recreation | D49: 13.68524319 | E49: No Migration
A50: Dosoris Pond/West Pond | B50: 2020 | C50: Marsh Land Recreation | D50: 2.386319663 | E50: No Migration
A51: Dosoris Pond/West Pond | B51: 2020 | C51: Natural Areas for Underserved Communities | D51: 6.354904986 | E51: No Migration
A52: Dosoris Pond/West Pond | B52: 2020 | C52: Nekton Habitat | D52: 2.579191777 | E52: No Migration
A53: Dosoris Pond/West Pond | B53: 2020 | C53: Habitat connectivity / Frag | D53: 6.8785849 | E53: No Migration
A54: Dosoris Pond/West Pond | B54: 2020 | C54: Flood Vulnerability Reduction | D54: 5.144086677 | E54: No Migration
A55: Dosoris Pond/West Pond | B55: 2020 | C55: Political/Cultural/Historic value | D55: 4.200456838 | E55: No Migration
A56: Dosoris Pond/West Pond | B56: 2020 | C56: General preservation of wetlands | D56: 6.338274693 | E56: No Migration
A57: Dosoris Pond/West Pond | B57: 2021 | C57: Carbon Sequestration | D57: 1.821782044 | E57: No Migration
A58: Dosoris Pond/West Pond | B58: 2021 | C58: Nitrogen Sequestration | D58: 2.053501166 | E58: No Migration
A59: Dosoris Pond/West Pond | B59: 2021 | C59: Phosphorus Sequestration | D59: 1.802867523 | E59: No Migration
A60: Dosoris Pond/West Pond | B60: 2021 | C60: Undeveloped Dry Land Recreation | D60: 13.68524319 | E60: No Migration
A61: Dosoris Pond/West Pond | B61: 2021 | C61: Marsh Land Recreation | D61: 2.385285761 | E61: No Migration
A62: Dosoris Pond/West Pond | B62: 2021 | C62: Natural Areas for Underserved Communities | D62: 6.353508783 | E62: No Migration
A63: Dosoris Pond/West Pond | B63: 2021 | C63: Nekton Habitat | D63: 2.588144528 | E63: No Migration
A64: Dosoris Pond/West Pond | B64: 2021 | C64: Habitat connectivity / Frag | D64: 6.875094103 | E64: No Migration
A65: Dosoris Pond/West Pond | B65: 2021 | C65: Flood Vulnerability Reduction | D65: 5.142956496 | E65: No Migration
A66: Dosoris Pond/West Pond | B66: 2021 | C66: Political/Cultural/Historic value | D66: 4.199533977 | E66: No Migration
A67: Dosoris Pond/West Pond | B67: 2021 | C67: General preservation of wetlands | D67: 6.336882143 | E67: No Migration
A68: Dosoris Pond/West Pond | B68: 2022 | C68: Carbon Sequestration | D68: 1.821183041 | E68: No Migration
A69: Dosoris Pond/West Pond | B69: 2022 | C69: Nitrogen Sequestration | D69: 2.052771102 | E69: No Migration
A70: Dosoris Pond/West Pond | B70: 2022 | C70: Phosphorus Sequestration | D70: 1.802154739 | E70: No Migration
A71: Dosoris Pond/West Pond | B71: 2022 | C71: Undeveloped Dry Land Recreation | D71: 13.68524319 | E71: No Migration
A72: Dosoris Pond/West Pond | B72: 2022 | C72: Marsh Land Recreation | D72: 2.384251858 | E72: No Migration
A73: Dosoris Pond/West Pond | B73: 2022 | C73: Natural Areas for Underserved Communities | D73: 6.352112579 | E73: No Migration
A74: Dosoris Pond/West Pond | B74: 2022 | C74: Nekton Habitat | D74: 2.59709728 | E74: No Migration
A75: Dosoris Pond/West Pond | B75: 2022 | C75: Habitat connectivity / Frag | D75: 6.871603306 | E75: No Migration
A76: Dosoris Pond/West Pond | B76: 2022 | C76: Flood Vulnerability Reduction | D76: 5.141826314 | E76: No Migration
A77: Dosoris Pond/West Pond | B77: 2022 | C77: Political/Cultural/Historic value | D77: 4.198611116 | E77: No Migration
A78: Dosoris Pond/West Pond | B78: 2022 | C78: General preservation of wetlands | D78: 6.335489594 | E78: No Migration
A79: Dosoris Pond/West Pond | B79: 2023 | C79: Carbon Sequestration | D79: 1.820584038 | E79: No Migration
A80: Dosoris Pond/West Pond | B80: 2023 | C80: Nitrogen Sequestration | D80: 2.052041039 | E80: No Migration
A81: Dosoris Pond/West Pond | B81: 2023 | C81: Phosphorus Sequestration | D81: 1.801441955 | E81: No Migration
A82: Dosoris Pond/West Pond | B82: 2023 | C82: Undeveloped Dry Land Recreation | D82: 13.68524319 | E82: No Migration
A83: Dosoris Pond/West Pond | B83: 2023 | C83: Marsh Land Recreation | D83: 2.383217956 | E83: No Migration
A84: Dosoris Pond/West Pond | B84: 2023 | C84: Natural Areas for Underserved Communities | D84: 6.350716376 | E84: No Migration
A85: Dosoris Pond/West Pond | B85: 2023 | C85: Nekton Habitat | D85: 2.606050031 | E85: No Migration
A86: Dosoris Pond/West Pond | B86: 2023 | C86: Habitat connectivity / Frag | D86: 6.868112509 | E86: No Migration
A87: Dosoris Pond/West Pond | B87: 2023 | C87: Flood Vulnerability Reduction | D87: 5.140696133 | E87: No Migration
A88: Dosoris Pond/West Pond | B88: 2023 | C88: Political/Cultural/Historic value | D88: 4.197688256 | E88: No Migration
A89: Dosoris Pond/West Pond | B89: 2023 | C89: General preservation of wetlands | D89: 6.334097044 | E89: No Migration
A90: Dosoris Pond/West Pond | B90: 2024 | C90: Carbon Sequestration | D90: 1.819985035 | E90: No Migration
A91: Dosoris Pond/West Pond | B91: 2024 | C91: Nitrogen Sequestration | D91: 2.051310976 | E91: No Migration
A92: Dosoris Pond/West Pond | B92: 2024 | C92: Phosphorus Sequestration | D92: 1.800729172 | E92: No Migration
A93: Dosoris Pond/West Pond | B93: 2024 | C93: Undeveloped Dry Land Recreation | D93: 13.68524319 | E93: No Migration
A94: Dosoris Pond/West Pond | B94: 2024 | C94: Marsh Land Recreation | D94: 2.382184053 | E94: No Migration
A95: Dosoris Pond/West Pond | B95: 2024 | C95: Natural Areas for Underserved Communities | D95: 6.349320173 | E95: No Migration
A96: Dosoris Pond/West Pond | B96: 2024 | C96: Nekton Habitat | D96: 2.615002783 | E96: No Migration
A97: Dosoris Pond/West Pond | B97: 2024 | C97: Habitat connectivity / Frag | D97: 6.864621712 | E97: No Migration
A98: Dosoris Pond/West Pond | B98: 2024 | C98: Flood Vulnerability Reduction | D98: 5.139565952 | E98: No Migration
A99: Dosoris Pond/West Pond | B99: 2024 | C99: Political/Cultural/Historic value | D99: 4.196765395 | E99: No Migration
A100: Dosoris Pond/West Pond | B100: 2024 | C100: General preservation of wetlands | D100: 6.332704494 | E100: No Migration
A101: Dosoris Pond/West Pond | B101: 2025 | C101: Carbon Sequestration | D101: 1.819386032 | E101: No Migration
A102: Dosoris Pond/West Pond | B102: 2025 | C102: Nitrogen Sequestration | D102: 2.050580912 | E102: No Migration
A103: Dosoris Pond/West Pond | B103: 2025 | C103: Phosphorus Sequestration | D103: 1.800016388 | E103: No Migration
A104: Dosoris Pond/West Pond | B104: 2025 | C104: Undeveloped Dry Land Recreation | D104: 13.68524319 | E104: No Migration
A105: Dosoris Pond/West Pond | B105: 2025 | C105: Marsh Land Recreation | D105: 2.381150151 | E105: No Migration
A106: Dosoris Pond/West Pond | B106: 2025 | C106: Natural Areas for Underserved Communities | D106: 6.347923969 | E106: No Migration
A107: Dosoris Pond/West Pond | B107: 2025 | C107: Nekton Habitat | D107: 2.623955534 | E107: No Migration
A108: Dosoris Pond/West Pond | B108: 2025 | C108: Habitat connectivity / Frag | D108: 6.861130915 | E108: No Migration
A109: Dosoris Pond/West Pond | B109: 2025 | C109: Flood Vulnerability Reduction | D109: 5.138435771 | E109: No Migration
A110: Dosoris Pond/West Pond | B110: 2025 | C110: Political/Cultural/Historic value | D110: 4.195842534 | E110: No Migration
A111: Dosoris Pond/West Pond | B111: 2025 | C111: General preservation of wetlands | D111: 6.331311945 | E111: No Migration
A112: Dosoris Pond/West Pond | B112: 2026 | C112: Carbon Sequestration | D112: 1.815089406 | E112: No Migration
A113: Dosoris Pond/West Pond | B113: 2026 | C113: Nitrogen Sequestration | D113: 2.045009711 | E113: No Migration
A114: Dosoris Pond/West Pond | B114: 2026 | C114: Phosphorus Sequestration | D114: 1.794172116 | E114: No Migration
A115: Dosoris Pond/West Pond | B115: 2026 | C115: Undeveloped Dry Land Recreation | D115: 13.68524319 | E115: No Migration
A116: Dosoris Pond/West Pond | B116: 2026 | C116: Marsh Land Recreation | D116: 2.372212369 | E116: No Migration
A117: Dosoris Pond/West Pond | B117: 2026 | C117: Natural Areas for Underserved Communities | D117: 6.342132469 | E117: No Migration
A118: Dosoris Pond/West Pond | B118: 2026 | C118: Nekton Habitat | D118: 2.643673969 | E118: No Migration
A119: Dosoris Pond/West Pond | B119: 2026 | C119: Habitat connectivity / Frag | D119: 6.849734131 | E119: No Migration
A120: Dosoris Pond/West Pond | B120: 2026 | C120: Flood Vulnerability Reduction | D120: 5.133747742 | E120: No Migration
A121: Dosoris Pond/West Pond | B121: 2026 | C121: Political/Cultural/Historic value | D121: 4.192014476 | E121: No Migration
A122: Dosoris Pond/West Pond | B122: 2026 | C122: General preservation of wetlands | D122: 6.3255356 | E122: No Migration
A123: Dosoris Pond/West Pond | B123: 2027 | C123: Carbon Sequestration | D123: 1.810792781 | E123: No Migration
A124: Dosoris Pond/West Pond | B124: 2027 | C124: Nitrogen Sequestration | D124: 2.03943851 | E124: No Migration
A125: Dosoris Pond/West Pond | B125: 2027 | C125: Phosphorus Sequestration | D125: 1.788327844 | E125: No Migration
A126: Dosoris Pond/West Pond | B126: 2027 | C126: Undeveloped Dry Land Recreation | D126: 13.68524319 | E126: No Migration
A127: Dosoris Pond/West Pond | B127: 2027 | C127: Marsh Land Recreation | D127: 2.363274587 | E127: No Migration
A128: Dosoris Pond/West Pond | B128: 2027 | C128: Natural Areas for Underserved Communities | D128: 6.336340969 | E128: No Migration
A129: Dosoris Pond/West Pond | B129: 2027 | C129: Nekton Habitat | D129: 2.663392404 | E129: No Migration
A130: Dosoris Pond/West Pond | B130: 2027 | C130: Habitat connectivity / Frag | D130: 6.838337347 | E130: No Migration
A131: Dosoris Pond/West Pond | B131: 2027 | C131: Flood Vulnerability Reduction | D131: 5.129059713 | E131: No Migration
A132: Dosoris Pond/West Pond | B132: 2027 | C132: Political/Cultural/Historic value | D132: 4.188186418 | E132: No Migration
A133: Dosoris Pond/West Pond | B133: 2027 | C133: General preservation of wetlands | D133: 6.319759256 | E133: No Migration
A134: Dosoris Pond/West Pond | B134: 2028 | C134: Carbon Sequestration | D134: 1.806496155 | E134: No Migration
A135: Dosoris Pond/West Pond | B135: 2028 | C135: Nitrogen Sequestration | D135: 2.03386731 | E135: No Migration
A136: Dosoris Pond/West Pond | B136: 2028 | C136: Phosphorus Sequestration | D136: 1.782483571 | E136: No Migration
A137: Dosoris Pond/West Pond | B137: 2028 | C137: Undeveloped Dry Land Recreation | D137: 13.68524319 | E137: No Migration
A138: Dosoris Pond/West Pond | B138: 2028 | C138: Marsh Land Recreation | D138: 2.354336805 | E138: No Migration
A139: Dosoris Pond/West Pond | B139: 2028 | C139: Natural Areas for Underserved Communities | D139: 6.330549468 | E139: No Migration
A140: Dosoris Pond/West Pond | B140: 2028 | C140: Nekton Habitat | D140: 2.683110839 | E140: No Migration
A141: Dosoris Pond/West Pond | B141: 2028 | C141: Habitat connectivity / Frag | D141: 6.826940564 | E141: No Migration
A142: Dosoris Pond/West Pond | B142: 2028 | C142: Flood Vulnerability Reduction | D142: 5.124371684 | E142: No Migration
A143: Dosoris Pond/West Pond | B143: 2028 | C143: Political/Cultural/Historic value | D143: 4.184358359 | E143: No Migration
A144: Dosoris Pond/West Pond | B144: 2028 | C144: General preservation of wetlands | D144: 6.313982911 | E144: No Migration
A145: Dosoris Pond/West Pond | B145: 2029 | C145: Carbon Sequestration | D145: 1.802199529 | E145: No Migration
A146: Dosoris Pond/West Pond | B146: 2029 | C146: Nitrogen Sequestration | D146: 2.028296109 | E146: No Migration
A147: Dosoris Pond/West Pond | B147: 2029 | C147: Phosphorus Sequestration | D147: 1.776639299 | E147: No Migration
A148: Dosoris Pond/West Pond | B148: 2029 | C148: Undeveloped Dry Land Recreation | D148: 13.68524319 | E148: No Migration
A149: Dosoris Pond/West Pond | B149: 2029 | C149: Marsh Land Recreation | D149: 2.345399023 | E149: No Migration
A150: Dosoris Pond/West Pond | B150: 2029 | C150: Natural Areas for Underserved Communities | D150: 6.324757968 | E150: No Migration
A151: Dosoris Pond/West Pond | B151: 2029 | C151: Nekton Habitat | D151: 2.702829274 | E151: No Migration
A152: Dosoris Pond/West Pond | B152: 2029 | C152: Habitat connectivity / Frag | D152: 6.81554378 | E152: No Migration
A153: Dosoris Pond/West Pond | B153: 2029 | C153: Flood Vulnerability Reduction | D153: 5.119683655 | E153: No Migration
A154: Dosoris Pond/West Pond | B154: 2029 | C154: Political/Cultural/Historic value | D154: 4.180530301 | E154: No Migration
A155: Dosoris Pond/West Pond | B155: 2029 | C155: General preservation of wetlands | D155: 6.308206567 | E155: No Migration
A156: Dosoris Pond/West Pond | B156: 2030 | C156: Carbon Sequestration | D156: 1.797902903 | E156: No Migration
A157: Dosoris Pond/West Pond | B157: 2030 | C157: Nitrogen Sequestration | D157: 2.022724908 | E157: No Migration
A158: Dosoris Pond/West Pond | B158: 2030 | C158: Phosphorus Sequestration | D158: 1.770795027 | E158: No Migration
A159: Dosoris Pond/West Pond | B159: 2030 | C159: Undeveloped Dry Land Recreation | D159: 13.68524319 | E159: No Migration
A160: Dosoris Pond/West Pond | B160: 2030 | C160: Marsh Land Recreation | D160: 2.336461241 | E160: No Migration
A161: Dosoris Pond/West Pond | B161: 2030 | C161: Natural Areas for Underserved Communities | D161: 6.318966468 | E161: No Migration
A162: Dosoris Pond/West Pond | B162: 2030 | C162: Nekton Habitat | D162: 2.72254771 | E162: No Migration
A163: Dosoris Pond/West Pond | B163: 2030 | C163: Habitat connectivity / Frag | D163: 6.804146996 | E163: No Migration
A164: Dosoris Pond/West Pond | B164: 2030 | C164: Flood Vulnerability Reduction | D164: 5.114995626 | E164: No Migration
A165: Dosoris Pond/West Pond | B165: 2030 | C165: Political/Cultural/Historic value | D165: 4.176702242 | E165: No Migration
A166: Dosoris Pond/West Pond | B166: 2030 | C166: General preservation of wetlands | D166: 6.302430223 | E166: No Migration
A167: Dosoris Pond/West Pond | B167: 2031 | C167: Carbon Sequestration | D167: 1.793606277 | E167: No Migration
A168: Dosoris Pond/West Pond | B168: 2031 | C168: Nitrogen Sequestration | D168: 2.017153707 | E168: No Migration
A169: Dosoris Pond/West Pond | B169: 2031 | C169: Phosphorus Sequestration | D169: 1.764950755 | E169: No Migration
A170: Dosoris Pond/West Pond | B170: 2031 | C170: Undeveloped Dry Land Recreation | D170: 13.68524319 | E170: No Migration
A171: Dosoris Pond/West Pond | B171: 2031 | C171: Marsh Land Recreation | D171: 2.327523459 | E171: No Migration
A172: Dosoris Pond/West Pond | B172: 2031 | C172: Natural Areas for Underserved Communities | D172: 6.313174967 | E172: No Migration
A173: Dosoris Pond/West Pond | B173: 2031 | C173: Nekton Habitat | D173: 2.742266145 | E173: No Migration
A174: Dosoris Pond/West Pond | B174: 2031 | C174: Habitat connectivity / Frag | D174: 6.792750212 | E174: No Migration
A175: Dosoris Pond/West Pond | B175: 2031 | C175: Flood Vulnerability Reduction | D175: 5.110307598 | E175: No Migration
A176: Dosoris Pond/West Pond | B176: 2031 | C176: Political/Cultural/Historic value | D176: 4.172874184 | E176: No Migration
A177: Dosoris Pond/West Pond | B177: 2031 | C177: General preservation of wetlands | D177: 6.296653878 | E177: No Migration
A178: Dosoris Pond/West Pond | B178: 2032 | C178: Carbon Sequestration | D178: 1.789309651 | E178: No Migration
A179: Dosoris Pond/West Pond | B179: 2032 | C179: Nitrogen Sequestration | D179: 2.011582506 | E179: No Migration
A180: Dosoris Pond/West Pond | B180: 2032 | C180: Phosphorus Sequestration | D180: 1.759106483 | E180: No Migration
A181: Dosoris Pond/West Pond | B181: 2032 | C181: Undeveloped Dry Land Recreation | D181: 13.68524319 | E181: No Migration
A182: Dosoris Pond/West Pond | B182: 2032 | C182: Marsh Land Recreation | D182: 2.318585677 | E182: No Migration
A183: Dosoris Pond/West Pond | B183: 2032 | C183: Natural Areas for Underserved Communities | D183: 6.307383467 | E183: No Migration
A184: Dosoris Pond/West Pond | B184: 2032 | C184: Nekton Habitat | D184: 2.76198458 | E184: No Migration
A185: Dosoris Pond/West Pond | B185: 2032 | C185: Habitat connectivity / Frag | D185: 6.781353428 | E185: No Migration
A186: Dosoris Pond/West Pond | B186: 2032 | C186: Flood Vulnerability Reduction | D186: 5.105619569 | E186: No Migration
A187: Dosoris Pond/West Pond | B187: 2032 | C187: Political/Cultural/Historic value | D187: 4.169046126 | E187: No Migration
A188: Dosoris Pond/West Pond | B188: 2032 | C188: General preservation of wetlands | D188: 6.290877534 | E188: No Migration
A189: Dosoris Pond/West Pond | B189: 2033 | C189: Carbon Sequestration | D189: 1.785013025 | E189: No Migration
A190: Dosoris Pond/West Pond | B190: 2033 | C190: Nitrogen Sequestration | D190: 2.006011305 | E190: No Migration
A191: Dosoris Pond/West Pond | B191: 2033 | C191: Phosphorus Sequestration | D191: 1.753262211 | E191: No Migration
A192: Dosoris Pond/West Pond | B192: 2033 | C192: Undeveloped Dry Land Recreation | D192: 13.68524319 | E192: No Migration
A193: Dosoris Pond/West Pond | B193: 2033 | C193: Marsh Land Recreation | D193: 2.309647895 | E193: No Migration
A194: Dosoris Pond/West Pond | B194: 2033 | C194: Natural Areas for Underserved Communities | D194: 6.301591967 | E194: No Migration
A195: Dosoris Pond/West Pond | B195: 2033 | C195: Nekton Habitat | D195: 2.781703015 | E195: No Migration
A196: Dosoris Pond/West Pond | B196: 2033 | C196: Habitat connectivity / Frag | D196: 6.769956645 | E196: No Migration
A197: Dosoris Pond/West Pond | B197: 2033 | C197: Flood Vulnerability Reduction | D197: 5.10093154 | E197: No Migration
A198: Dosoris Pond/West Pond | B198: 2033 | C198: Political/Cultural/Historic value | D198: 4.165218067 | E198: No Migration
A199: Dosoris Pond/West Pond | B199: 2033 | C199: General preservation of wetlands | D199: 6.285101189 | E199: No Migration
A200: Dosoris Pond/West Pond | B200: 2034 | C200: Carbon Sequestration | D200: 1.780716399 | E200: No Migration
... 4300 more rows

Sheet CatSummary
A1: Site | B1: Year | C1: LandCover | D1: Value | E1: Strategy
A2: Dosoris Pond/West Pond | B2: 2016 | C2: Non Tidal | D2: 373.771023 | E2: No Migration
A3: Dosoris Pond/West Pond | B3: 2016 | C3: Freshwater Non-Tidal | D3: 5.694234669 | E3: No Migration
A4: Dosoris Pond/West Pond | B4: 2016 | C4: Open Water | D4: 192.9440848 | E4: No Migration
A5: Dosoris Pond/West Pond | B5: 2016 | C5: Low Tidal | D5: 37.16900459 | E5: No Migration
A6: Dosoris Pond/West Pond | B6: 2016 | C6: Saltmarsh | D6: 32.9145272 | E6: No Migration
A7: Dosoris Pond/West Pond | B7: 2016 | C7: Transitional | D7: 3.912007507 | E7: No Migration
A8: Dosoris Pond/West Pond | B8: 2016 | C8: Freshwater Tidal | D8: 0.3862780661 | E8: No Migration
A9: Dosoris Pond/West Pond | B9: 2017 | C9: Non Tidal | D9: 373.771023 | E9: No Migration
A10: Dosoris Pond/West Pond | B10: 2017 | C10: Freshwater Non-Tidal | D10: 5.672618865 | E10: No Migration
A11: Dosoris Pond/West Pond | B11: 2017 | C11: Open Water | D11: 192.9764497 | E11: No Migration
A12: Dosoris Pond/West Pond | B12: 2017 | C12: Low Tidal | D12: 37.1672925 | E12: No Migration
A13: Dosoris Pond/West Pond | B13: 2017 | C13: Saltmarsh | D13: 32.91075003 | E13: No Migration
A14: Dosoris Pond/West Pond | B14: 2017 | C14: Transitional | D14: 3.90770082 | E14: No Migration
A15: Dosoris Pond/West Pond | B15: 2017 | C15: Freshwater Tidal | D15: 0.3853249468 | E15: No Migration
A16: Dosoris Pond/West Pond | B16: 2018 | C16: Non Tidal | D16: 373.771023 | E16: No Migration
A17: Dosoris Pond/West Pond | B17: 2018 | C17: Freshwater Non-Tidal | D17: 5.651003061 | E17: No Migration
A18: Dosoris Pond/West Pond | B18: 2018 | C18: Open Water | D18: 193.0088146 | E18: No Migration
A19: Dosoris Pond/West Pond | B19: 2018 | C19: Low Tidal | D19: 37.16558042 | E19: No Migration
A20: Dosoris Pond/West Pond | B20: 2018 | C20: Saltmarsh | D20: 32.90697285 | E20: No Migration
A21: Dosoris Pond/West Pond | B21: 2018 | C21: Transitional | D21: 3.903394132 | E21: No Migration
A22: Dosoris Pond/West Pond | B22: 2018 | C22: Freshwater Tidal | D22: 0.3843718275 | E22: No Migration
A23: Dosoris Pond/West Pond | B23: 2019 | C23: Non Tidal | D23: 373.771023 | E23: No Migration
A24: Dosoris Pond/West Pond | B24: 2019 | C24: Freshwater Non-Tidal | D24: 5.629387257 | E24: No Migration
A25: Dosoris Pond/West Pond | B25: 2019 | C25: Open Water | D25: 193.0411795 | E25: No Migration
A26: Dosoris Pond/West Pond | B26: 2019 | C26: Low Tidal | D26: 37.16386834 | E26: No Migration
A27: Dosoris Pond/West Pond | B27: 2019 | C27: Saltmarsh | D27: 32.90319567 | E27: No Migration
A28: Dosoris Pond/West Pond | B28: 2019 | C28: Transitional | D28: 3.899087445 | E28: No Migration
A29: Dosoris Pond/West Pond | B29: 2019 | C29: Freshwater Tidal | D29: 0.3834187082 | E29: No Migration
A30: Dosoris Pond/West Pond | B30: 2020 | C30: Non Tidal | D30: 373.771023 | E30: No Migration
A31: Dosoris Pond/West Pond | B31: 2020 | C31: Freshwater Non-Tidal | D31: 5.607771453 | E31: No Migration
A32: Dosoris Pond/West Pond | B32: 2020 | C32: Open Water | D32: 193.0735443 | E32: No Migration
A33: Dosoris Pond/West Pond | B33: 2020 | C33: Low Tidal | D33: 37.16215625 | E33: No Migration
A34: Dosoris Pond/West Pond | B34: 2020 | C34: Saltmarsh | D34: 32.8994185 | E34: No Migration
A35: Dosoris Pond/West Pond | B35: 2020 | C35: Transitional | D35: 3.894780758 | E35: No Migration
A36: Dosoris Pond/West Pond | B36: 2020 | C36: Freshwater Tidal | D36: 0.3824655889 | E36: No Migration
A37: Dosoris Pond/West Pond | B37: 2021 | C37: Non Tidal | D37: 373.771023 | E37: No Migration
A38: Dosoris Pond/West Pond | B38: 2021 | C38: Freshwater Non-Tidal | D38: 5.586155649 | E38: No Migration
A39: Dosoris Pond/West Pond | B39: 2021 | C39: Open Water | D39: 193.1059092 | E39: No Migration
A40: Dosoris Pond/West Pond | B40: 2021 | C40: Low Tidal | D40: 37.16044417 | E40: No Migration
A41: Dosoris Pond/West Pond | B41: 2021 | C41: Saltmarsh | D41: 32.89564132 | E41: No Migration
A42: Dosoris Pond/West Pond | B42: 2021 | C42: Transitional | D42: 3.890474071 | E42: No Migration
A43: Dosoris Pond/West Pond | B43: 2021 | C43: Freshwater Tidal | D43: 0.3815124696 | E43: No Migration
A44: Dosoris Pond/West Pond | B44: 2022 | C44: Non Tidal | D44: 373.771023 | E44: No Migration
A45: Dosoris Pond/West Pond | B45: 2022 | C45: Freshwater Non-Tidal | D45: 5.564539845 | E45: No Migration
A46: Dosoris Pond/West Pond | B46: 2022 | C46: Open Water | D46: 193.1382741 | E46: No Migration
A47: Dosoris Pond/West Pond | B47: 2022 | C47: Low Tidal | D47: 37.15873208 | E47: No Migration
A48: Dosoris Pond/West Pond | B48: 2022 | C48: Saltmarsh | D48: 32.89186414 | E48: No Migration
A49: Dosoris Pond/West Pond | B49: 2022 | C49: Transitional | D49: 3.886167384 | E49: No Migration
A50: Dosoris Pond/West Pond | B50: 2022 | C50: Freshwater Tidal | D50: 0.3805593504 | E50: No Migration
A51: Dosoris Pond/West Pond | B51: 2023 | C51: Non Tidal | D51: 373.771023 | E51: No Migration
A52: Dosoris Pond/West Pond | B52: 2023 | C52: Freshwater Non-Tidal | D52: 5.542924041 | E52: No Migration
A53: Dosoris Pond/West Pond | B53: 2023 | C53: Open Water | D53: 193.1706389 | E53: No Migration
A54: Dosoris Pond/West Pond | B54: 2023 | C54: Low Tidal | D54: 37.15702 | E54: No Migration
A55: Dosoris Pond/West Pond | B55: 2023 | C55: Saltmarsh | D55: 32.88808697 | E55: No Migration
A56: Dosoris Pond/West Pond | B56: 2023 | C56: Transitional | D56: 3.881860697 | E56: No Migration
A57: Dosoris Pond/West Pond | B57: 2023 | C57: Freshwater Tidal | D57: 0.3796062311 | E57: No Migration
A58: Dosoris Pond/West Pond | B58: 2024 | C58: Non Tidal | D58: 373.771023 | E58: No Migration
A59: Dosoris Pond/West Pond | B59: 2024 | C59: Freshwater Non-Tidal | D59: 5.521308237 | E59: No Migration
A60: Dosoris Pond/West Pond | B60: 2024 | C60: Open Water | D60: 193.2030038 | E60: No Migration
A61: Dosoris Pond/West Pond | B61: 2024 | C61: Low Tidal | D61: 37.15530791 | E61: No Migration
A62: Dosoris Pond/West Pond | B62: 2024 | C62: Saltmarsh | D62: 32.88430979 | E62: No Migration
A63: Dosoris Pond/West Pond | B63: 2024 | C63: Transitional | D63: 3.87755401 | E63: No Migration
A64: Dosoris Pond/West Pond | B64: 2024 | C64: Freshwater Tidal | D64: 0.3786531118 | E64: No Migration
A65: Dosoris Pond/West Pond | B65: 2025 | C65: Non Tidal | D65: 373.771023 | E65: No Migration
A66: Dosoris Pond/West Pond | B66: 2025 | C66: Freshwater Non-Tidal | D66: 5.499692432 | E66: No Migration
A67: Dosoris Pond/West Pond | B67: 2025 | C67: Open Water | D67: 193.2353687 | E67: No Migration
A68: Dosoris Pond/West Pond | B68: 2025 | C68: Low Tidal | D68: 37.15359583 | E68: No Migration
A69: Dosoris Pond/West Pond | B69: 2025 | C69: Saltmarsh | D69: 32.88053261 | E69: No Migration
A70: Dosoris Pond/West Pond | B70: 2025 | C70: Transitional | D70: 3.873247323 | E70: No Migration
A71: Dosoris Pond/West Pond | B71: 2025 | C71: Freshwater Tidal | D71: 0.3776999925 | E71: No Migration
A72: Dosoris Pond/West Pond | B72: 2026 | C72: Non Tidal | D72: 373.771023 | E72: No Migration
A73: Dosoris Pond/West Pond | B73: 2026 | C73: Freshwater Non-Tidal | D73: 5.47171191 | E73: No Migration
A74: Dosoris Pond/West Pond | B74: 2026 | C74: Open Water | D74: 193.2925405 | E74: No Migration
A75: Dosoris Pond/West Pond | B75: 2026 | C75: Low Tidal | D75: 37.16015235 | E75: No Migration
A76: Dosoris Pond/West Pond | B76: 2026 | C76: Saltmarsh | D76: 32.89634734 | E76: No Migration
A77: Dosoris Pond/West Pond | B77: 2026 | C77: Transitional | D77: 3.823900454 | E77: No Migration
A78: Dosoris Pond/West Pond | B78: 2026 | C78: Freshwater Tidal | D78: 0.3754842843 | E78: No Migration
A79: Dosoris Pond/West Pond | B79: 2027 | C79: Non Tidal | D79: 373.771023 | E79: No Migration
A80: Dosoris Pond/West Pond | B80: 2027 | C80: Freshwater Non-Tidal | D80: 5.443731387 | E80: No Migration
A81: Dosoris Pond/West Pond | B81: 2027 | C81: Open Water | D81: 193.3497124 | E81: No Migration
A82: Dosoris Pond/West Pond | B82: 2027 | C82: Low Tidal | D82: 37.16670887 | E82: No Migration
A83: Dosoris Pond/West Pond | B83: 2027 | C83: Saltmarsh | D83: 32.91216205 | E83: No Migration
A84: Dosoris Pond/West Pond | B84: 2027 | C84: Transitional | D84: 3.774553585 | E84: No Migration
A85: Dosoris Pond/West Pond | B85: 2027 | C85: Freshwater Tidal | D85: 0.3732685762 | E85: No Migration
A86: Dosoris Pond/West Pond | B86: 2028 | C86: Non Tidal | D86: 373.771023 | E86: No Migration
A87: Dosoris Pond/West Pond | B87: 2028 | C87: Freshwater Non-Tidal | D87: 5.415750864 | E87: No Migration
A88: Dosoris Pond/West Pond | B88: 2028 | C88: Open Water | D88: 193.4068843 | E88: No Migration
A89: Dosoris Pond/West Pond | B89: 2028 | C89: Low Tidal | D89: 37.17326539 | E89: No Migration
A90: Dosoris Pond/West Pond | B90: 2028 | C90: Saltmarsh | D90: 32.92797678 | E90: No Migration
A91: Dosoris Pond/West Pond | B91: 2028 | C91: Transitional | D91: 3.725206717 | E91: No Migration
A92: Dosoris Pond/West Pond | B92: 2028 | C92: Freshwater Tidal | D92: 0.371052868 | E92: No Migration
A93: Dosoris Pond/West Pond | B93: 2029 | C93: Non Tidal | D93: 373.771023 | E93: No Migration
A94: Dosoris Pond/West Pond | B94: 2029 | C94: Freshwater Non-Tidal | D94: 5.387770341 | E94: No Migration
A95: Dosoris Pond/West Pond | B95: 2029 | C95: Open Water | D95: 193.4640561 | E95: No Migration
A96: Dosoris Pond/West Pond | B96: 2029 | C96: Low Tidal | D96: 37.1798219 | E96: No Migration
A97: Dosoris Pond/West Pond | B97: 2029 | C97: Saltmarsh | D97: 32.9437915 | E97: No Migration
A98: Dosoris Pond/West Pond | B98: 2029 | C98: Transitional | D98: 3.675859849 | E98: No Migration
A99: Dosoris Pond/West Pond | B99: 2029 | C99: Freshwater Tidal | D99: 0.3688371598 | E99: No Migration
A100: Dosoris Pond/West Pond | B100: 2030 | C100: Non Tidal | D100: 373.771023 | E100: No Migration
A101: Dosoris Pond/West Pond | B101: 2030 | C101: Freshwater Non-Tidal | D101: 5.359789818 | E101: No Migration
A102: Dosoris Pond/West Pond | B102: 2030 | C102: Open Water | D102: 193.521228 | E102: No Migration
A103: Dosoris Pond/West Pond | B103: 2030 | C103: Low Tidal | D103: 37.18637842 | E103: No Migration
A104: Dosoris Pond/West Pond | B104: 2030 | C104: Saltmarsh | D104: 32.95960622 | E104: No Migration
A105: Dosoris Pond/West Pond | B105: 2030 | C105: Transitional | D105: 3.62651298 | E105: No Migration
A106: Dosoris Pond/West Pond | B106: 2030 | C106: Freshwater Tidal | D106: 0.3666214517 | E106: No Migration
A107: Dosoris Pond/West Pond | B107: 2031 | C107: Non Tidal | D107: 373.771023 | E107: No Migration
A108: Dosoris Pond/West Pond | B108: 2031 | C108: Freshwater Non-Tidal | D108: 5.331809295 | E108: No Migration
A109: Dosoris Pond/West Pond | B109: 2031 | C109: Open Water | D109: 193.5783998 | E109: No Migration
A110: Dosoris Pond/West Pond | B110: 2031 | C110: Low Tidal | D110: 37.19293494 | E110: No Migration
A111: Dosoris Pond/West Pond | B111: 2031 | C111: Saltmarsh | D111: 32.97542094 | E111: No Migration
A112: Dosoris Pond/West Pond | B112: 2031 | C112: Transitional | D112: 3.577166111 | E112: No Migration
A113: Dosoris Pond/West Pond | B113: 2031 | C113: Freshwater Tidal | D113: 0.3644057435 | E113: No Migration
A114: Dosoris Pond/West Pond | B114: 2032 | C114: Non Tidal | D114: 373.771023 | E114: No Migration
A115: Dosoris Pond/West Pond | B115: 2032 | C115: Freshwater Non-Tidal | D115: 5.303828773 | E115: No Migration
A116: Dosoris Pond/West Pond | B116: 2032 | C116: Open Water | D116: 193.6355717 | E116: No Migration
A117: Dosoris Pond/West Pond | B117: 2032 | C117: Low Tidal | D117: 37.19949146 | E117: No Migration
A118: Dosoris Pond/West Pond | B118: 2032 | C118: Saltmarsh | D118: 32.99123566 | E118: No Migration
A119: Dosoris Pond/West Pond | B119: 2032 | C119: Transitional | D119: 3.527819243 | E119: No Migration
A120: Dosoris Pond/West Pond | B120: 2032 | C120: Freshwater Tidal | D120: 0.3621900353 | E120: No Migration
A121: Dosoris Pond/West Pond | B121: 2033 | C121: Non Tidal | D121: 373.771023 | E121: No Migration
A122: Dosoris Pond/West Pond | B122: 2033 | C122: Freshwater Non-Tidal | D122: 5.27584825 | E122: No Migration
A123: Dosoris Pond/West Pond | B123: 2033 | C123: Open Water | D123: 193.6927436 | E123: No Migration
A124: Dosoris Pond/West Pond | B124: 2033 | C124: Low Tidal | D124: 37.20604798 | E124: No Migration
A125: Dosoris Pond/West Pond | B125: 2033 | C125: Saltmarsh | D125: 33.00705037 | E125: No Migration
A126: Dosoris Pond/West Pond | B126: 2033 | C126: Transitional | D126: 3.478472374 | E126: No Migration
A127: Dosoris Pond/West Pond | B127: 2033 | C127: Freshwater Tidal | D127: 0.3599743272 | E127: No Migration
A128: Dosoris Pond/West Pond | B128: 2034 | C128: Non Tidal | D128: 373.771023 | E128: No Migration
A129: Dosoris Pond/West Pond | B129: 2034 | C129: Freshwater Non-Tidal | D129: 5.247867727 | E129: No Migration
A130: Dosoris Pond/West Pond | B130: 2034 | C130: Open Water | D130: 193.7499154 | E130: No Migration
A131: Dosoris Pond/West Pond | B131: 2034 | C131: Low Tidal | D131: 37.2126045 | E131: No Migration
A132: Dosoris Pond/West Pond | B132: 2034 | C132: Saltmarsh | D132: 33.0228651 | E132: No Migration
A133: Dosoris Pond/West Pond | B133: 2034 | C133: Transitional | D133: 3.429125506 | E133: No Migration
A134: Dosoris Pond/West Pond | B134: 2034 | C134: Freshwater Tidal | D134: 0.357758619 | E134: No Migration
A135: Dosoris Pond/West Pond | B135: 2035 | C135: Non Tidal | D135: 373.771023 | E135: No Migration
A136: Dosoris Pond/West Pond | B136: 2035 | C136: Freshwater Non-Tidal | D136: 5.219887204 | E136: No Migration
A137: Dosoris Pond/West Pond | B137: 2035 | C137: Open Water | D137: 193.8070873 | E137: No Migration
A138: Dosoris Pond/West Pond | B138: 2035 | C138: Low Tidal | D138: 37.21916102 | E138: No Migration
A139: Dosoris Pond/West Pond | B139: 2035 | C139: Saltmarsh | D139: 33.03867982 | E139: No Migration
A140: Dosoris Pond/West Pond | B140: 2035 | C140: Transitional | D140: 3.379778637 | E140: No Migration
A141: Dosoris Pond/West Pond | B141: 2035 | C141: Freshwater Tidal | D141: 0.3555429108 | E141: No Migration
A142: Dosoris Pond/West Pond | B142: 2036 | C142: Non Tidal | D142: 373.771023 | E142: No Migration
A143: Dosoris Pond/West Pond | B143: 2036 | C143: Freshwater Non-Tidal | D143: 5.191906681 | E143: No Migration
A144: Dosoris Pond/West Pond | B144: 2036 | C144: Open Water | D144: 193.8642591 | E144: No Migration
A145: Dosoris Pond/West Pond | B145: 2036 | C145: Low Tidal | D145: 37.22571754 | E145: No Migration
A146: Dosoris Pond/West Pond | B146: 2036 | C146: Saltmarsh | D146: 33.05449454 | E146: No Migration
A147: Dosoris Pond/West Pond | B147: 2036 | C147: Transitional | D147: 3.330431769 | E147: No Migration
A148: Dosoris Pond/West Pond | B148: 2036 | C148: Freshwater Tidal | D148: 0.3533272027 | E148: No Migration
A149: Dosoris Pond/West Pond | B149: 2037 | C149: Non Tidal | D149: 373.771023 | E149: No Migration
A150: Dosoris Pond/West Pond | B150: 2037 | C150: Freshwater Non-Tidal | D150: 5.163926158 | E150: No Migration
A151: Dosoris Pond/West Pond | B151: 2037 | C151: Open Water | D151: 193.921431 | E151: No Migration
A152: Dosoris Pond/West Pond | B152: 2037 | C152: Low Tidal | D152: 37.23227406 | E152: No Migration
A153: Dosoris Pond/West Pond | B153: 2037 | C153: Saltmarsh | D153: 33.07030926 | E153: No Migration
A154: Dosoris Pond/West Pond | B154: 2037 | C154: Transitional | D154: 3.281084901 | E154: No Migration
A155: Dosoris Pond/West Pond | B155: 2037 | C155: Freshwater Tidal | D155: 0.3511114945 | E155: No Migration
A156: Dosoris Pond/West Pond | B156: 2038 | C156: Non Tidal | D156: 373.771023 | E156: No Migration
A157: Dosoris Pond/West Pond | B157: 2038 | C157: Freshwater Non-Tidal | D157: 5.135945636 | E157: No Migration
A158: Dosoris Pond/West Pond | B158: 2038 | C158: Open Water | D158: 193.9786029 | E158: No Migration
A159: Dosoris Pond/West Pond | B159: 2038 | C159: Low Tidal | D159: 37.23883058 | E159: No Migration
A160: Dosoris Pond/West Pond | B160: 2038 | C160: Saltmarsh | D160: 33.08612398 | E160: No Migration
A161: Dosoris Pond/West Pond | B161: 2038 | C161: Transitional | D161: 3.231738032 | E161: No Migration
A162: Dosoris Pond/West Pond | B162: 2038 | C162: Freshwater Tidal | D162: 0.3488957863 | E162: No Migration
A163: Dosoris Pond/West Pond | B163: 2039 | C163: Non Tidal | D163: 373.771023 | E163: No Migration
A164: Dosoris Pond/West Pond | B164: 2039 | C164: Freshwater Non-Tidal | D164: 5.107965113 | E164: No Migration
A165: Dosoris Pond/West Pond | B165: 2039 | C165: Open Water | D165: 194.0357747 | E165: No Migration
A166: Dosoris Pond/West Pond | B166: 2039 | C166: Low Tidal | D166: 37.2453871 | E166: No Migration
A167: Dosoris Pond/West Pond | B167: 2039 | C167: Saltmarsh | D167: 33.10193869 | E167: No Migration
A168: Dosoris Pond/West Pond | B168: 2039 | C168: Transitional | D168: 3.182391163 | E168: No Migration
A169: Dosoris Pond/West Pond | B169: 2039 | C169: Freshwater Tidal | D169: 0.3466800782 | E169: No Migration
A170: Dosoris Pond/West Pond | B170: 2040 | C170: Non Tidal | D170: 373.771023 | E170: No Migration
A171: Dosoris Pond/West Pond | B171: 2040 | C171: Freshwater Non-Tidal | D171: 5.07998459 | E171: No Migration
A172: Dosoris Pond/West Pond | B172: 2040 | C172: Open Water | D172: 194.0929466 | E172: No Migration
A173: Dosoris Pond/West Pond | B173: 2040 | C173: Low Tidal | D173: 37.25194362 | E173: No Migration
A174: Dosoris Pond/West Pond | B174: 2040 | C174: Saltmarsh | D174: 33.11775341 | E174: No Migration
A175: Dosoris Pond/West Pond | B175: 2040 | C175: Transitional | D175: 3.133044295 | E175: No Migration
A176: Dosoris Pond/West Pond | B176: 2040 | C176: Freshwater Tidal | D176: 0.34446437 | E176: No Migration
A177: Dosoris Pond/West Pond | B177: 2041 | C177: Non Tidal | D177: 373.771023 | E177: No Migration
A178: Dosoris Pond/West Pond | B178: 2041 | C178: Freshwater Non-Tidal | D178: 5.058099324 | E178: No Migration
A179: Dosoris Pond/West Pond | B179: 2041 | C179: Open Water | D179: 194.2566619 | E179: No Migration
A180: Dosoris Pond/West Pond | B180: 2041 | C180: Low Tidal | D180: 37.2293088 | E180: No Migration
A181: Dosoris Pond/West Pond | B181: 2041 | C181: Saltmarsh | D181: 33.05098564 | E181: No Migration
A182: Dosoris Pond/West Pond | B182: 2041 | C182: Transitional | D182: 3.082717243 | E182: No Migration
A183: Dosoris Pond/West Pond | B183: 2041 | C183: Freshwater Tidal | D183: 0.3423639775 | E183: No Migration
A184: Dosoris Pond/West Pond | B184: 2042 | C184: Non Tidal | D184: 373.771023 | E184: No Migration
A185: Dosoris Pond/West Pond | B185: 2042 | C185: Freshwater Non-Tidal | D185: 5.036214058 | E185: No Migration
A186: Dosoris Pond/West Pond | B186: 2042 | C186: Open Water | D186: 194.4203772 | E186: No Migration
A187: Dosoris Pond/West Pond | B187: 2042 | C187: Low Tidal | D187: 37.20667398 | E187: No Migration
A188: Dosoris Pond/West Pond | B188: 2042 | C188: Saltmarsh | D188: 32.98421787 | E188: No Migration
A189: Dosoris Pond/West Pond | B189: 2042 | C189: Transitional | D189: 3.032390192 | E189: No Migration
A190: Dosoris Pond/West Pond | B190: 2042 | C190: Freshwater Tidal | D190: 0.340263585 | E190: No Migration
A191: Dosoris Pond/West Pond | B191: 2043 | C191: Non Tidal | D191: 373.771023 | E191: No Migration
A192: Dosoris Pond/West Pond | B192: 2043 | C192: Freshwater Non-Tidal | D192: 5.014328791 | E192: No Migration
A193: Dosoris Pond/West Pond | B193: 2043 | C193: Open Water | D193: 194.5840925 | E193: No Migration
A194: Dosoris Pond/West Pond | B194: 2043 | C194: Low Tidal | D194: 37.18403916 | E194: No Migration
A195: Dosoris Pond/West Pond | B195: 2043 | C195: Saltmarsh | D195: 32.9174501 | E195: No Migration
A196: Dosoris Pond/West Pond | B196: 2043 | C196: Transitional | D196: 2.98206314 | E196: No Migration
A197: Dosoris Pond/West Pond | B197: 2043 | C197: Freshwater Tidal | D197: 0.3381631925 | E197: No Migration
A198: Dosoris Pond/West Pond | B198: 2044 | C198: Non Tidal | D198: 373.771023 | E198: No Migration
A199: Dosoris Pond/West Pond | B199: 2044 | C199: Freshwater Non-Tidal | D199: 4.992443525 | E199: No Migration
A200: Dosoris Pond/West Pond | B200: 2044 | C200: Open Water | D200: 194.7478078 | E200: No Migration
... 17651 more rows

Sheet Land Purchase Calculations
A1: Scenario | B1: (Multiple Items) | D1: DATA IN PIVOT TABLE IN HA
A3: Average of Developed Dry Land | B3: Column Labels
A4: Row Labels | B4: Grand Total
A5: Grand Total
A14: undeveloped acres | B14: 19.77158765 | C14: 15.92011028 | D14: 3.451760324 | E14: 10.42491516 | F14: 16.69648948 | G14: 5.004889381
A15: calculation | B15: =B5-B11 -> 0 | C15: =C5-C11 -> 0 | D15: =D5-D11 -> 0 | E15: 0 | F15: 0 | G15: 0
A16: developed | B16: =B15*$A$21 -> 0 | C16: =C15*$A$21 -> 0 | D16: 0 | E16: 0 | F16: 0 | G16: 0
A21: 2.47105

Sheet Current and Future
A1: Utility | B1: (All)
A3: Sum of Value | B3: Column Labels
B4: 2016 | H4: 2100
A5: Row Labels | B5: Dosoris Pond/West Pond | C5: Lattingtown | D5: Hempstead Harbor | E5: Cuba Middle and East Island | F5: Marine Nature Study Area | G5: Seamans Neck Park | H5: Dosoris Pond/West Pond | I5: Lattingtown | J5: Hempstead Harbor | K5: Cuba Middle and East Island | L5: Marine Nature Study Area | M5: Seamans Neck Park
A6: No Migration | B6: 53.25707768 | C6: 88.08966304 | D6: 20.44260941 | E6: 298.1603144 | F6: 82.25702155 | G6: 54.18558235 | H6: 40.68183113 | I6: 74.52971799 | J6: 19.12667793 | K6: 109.2344347 | L6: 51.43128862 | M6: 21.93306463
A7: Migr. Undeveloped | B7: 59.53102895 | C7: 90.53522708 | D7: 20.78291795 | E7: 301.1940457 | F7: 83.86556005 | G7: 55.65421167 | H7: 105.3123757 | I7: 103.238893 | J7: 28.40627777 | K7: 109.2629402 | L7: 61.72804886 | M7: 42.29459068
A8: Migr. All Dry | B8: 60.18004488 | C8: 90.69737274 | D8: 22.73325228 | E8: 301.1939722 | F8: 83.86556005 | G8: 55.80789585 | H8: 119.3084845 | I8: 106.0117556 | J8: 44.82696376 | K8: 109.26232 | L8: 62.583006 | M8: 45.96875116
A9: Restore to 1974 | B9: 61.26150313 | C9: 115.5607248 | D9: 49.31264224 | E9: 367.4383428 | F9: 89.70387281 | G9: 60.94986751 | H9: 43.67739861 | I9: 78.07204026 | J9: 29.4869401 | K9: 116.4144504 | L9: 52.58601101 | M9: 22.49627396
A10: Grand Total | B10: 234.2296546 | C10: 384.8829877 | D10: 113.2714219 | E10: 1267.986675 | F10: 339.6920145 | G10: 226.5975574 | H10: 308.9800899 | I10: 361.8524068 | J10: 121.8468596 | K10: 444.1741454 | L10: 228.3283545 | M10: 132.6926804
B15: =B5 -> Dosoris Pond/West Pond | C15: =C5 -> Lattingtown | D15: Hempstead Harbor | E15: Cuba Middle and East Island | F15: Marine Nature Study Area | G15: Seamans Neck Park
A16: Utility 2016 | B16: =B6 -> 53.25707768 | C16: =C6 -> 88.08966304 | D16: 20.44260941 | E16: 298.1603144 | F16: 82.25702155 | G16: 54.18558235
A17: Utility 2100 no adaptation | B17: =H6 -> 40.68183113 | C17: =I6 -> 74.52971799 | D17: 19.12667793 | E17: 109.2344347 | F17: 51.43128862 | G17: 21.93306463
A18: Utility 2100 Migr Undev | B18: =H7 -> 105.3123757 | C18: =I7 -> 103.238893 | D18: 28.40627777 | E18: 109.2629402 | F18: 61.72804886 | G18: 42.29459068
A19: Utility 2100 Migr All Dry | B19: =H8 -> 119.3084845 | C19: =I8 -> 106.0117556 | D19: 44.82696376 | E19: 109.26232 | F19: 62.583006 | G19: 45.96875116
A20: Utility 2100 Migr & TLD | B20: =B19+H10-H6 -> 387.6067433 | C20: =C19+I10-I6 -> 393.3344443 | D20: 147.5471454 | E20: 444.2020307 | F20: 239.4800719 | G20: 156.728367
A21: Utility 2100 All Adaptation | B21: =B20+MAX(H9-H6,0) -> 390.6023108 | C21: =C20+MAX(I9-I6,0) -> 396.8767666 | D21: 157.9074076 | E21: 451.3820465 | F21: 240.6347943 | G21: 157.2915763

Sheet LCPivot
F1: ="Expected Value: Land Cover of '"&B2&"' Over Time: '"&B3&"'" -> Expected Value: Land Cover of 'Dosoris Pond/West Pond' Over Time: 'No Migration'
A2: Site | B2: Dosoris Pond/West Pond
A3: Strategy | B3: No Migration
A5: Sum of Value | B5: Column Labels
A6: Row Labels | B6: Low Tidal | C6: Transitional | D6: Saltmarsh | E6: Freshwater Tidal | F6: Freshwater Non-Tidal
A7: 2016 | B7: 37.16900459 | C7: 3.912007507 | D7: 32.9145272 | E7: 0.3862780661 | F7: 5.694234669
A8: 2017 | B8: 37.1672925 | C8: 3.90770082 | D8: 32.91075003 | E8: 0.3853249468 | F8: 5.672618865
A9: 2018 | B9: 37.16558042 | C9: 3.903394132 | D9: 32.90697285 | E9: 0.3843718275 | F9: 5.651003061
A10: 2019 | B10: 37.16386834 | C10: 3.899087445 | D10: 32.90319567 | E10: 0.3834187082 | F10: 5.629387257
A11: 2020 | B11: 37.16215625 | C11: 3.894780758 | D11: 32.8994185 | E11: 0.3824655889 | F11: 5.607771453
A12: 2021 | B12: 37.16044417 | C12: 3.890474071 | D12: 32.89564132 | E12: 0.3815124696 | F12: 5.586155649
A13: 2022 | B13: 37.15873208 | C13: 3.886167384 | D13: 32.89186414 | E13: 0.3805593504 | F13: 5.564539845
A14: 2023 | B14: 37.15702 | C14: 3.881860697 | D14: 32.88808697 | E14: 0.3796062311 | F14: 5.542924041
A15: 2024 | B15: 37.15530791 | C15: 3.87755401 | D15: 32.88430979 | E15: 0.3786531118 | F15: 5.521308237
A16: 2025 | B16: 37.15359583 | C16: 3.873247323 | D16: 32.88053261 | E16: 0.3776999925 | F16: 5.499692432
A17: 2026 | B17: 37.16015235 | C17: 3.823900454 | D17: 32.89634734 | E17: 0.3754842843 | F17: 5.47171191
A18: 2027 | B18: 37.16670887 | C18: 3.774553585 | D18: 32.91216205 | E18: 0.3732685762 | F18: 5.443731387
A19: 2028 | B19: 37.17326539 | C19: 3.725206717 | D19: 32.92797678 | E19: 0.371052868 | F19: 5.415750864
A20: 2029 | B20: 37.1798219 | C20: 3.675859849 | D20: 32.9437915 | E20: 0.3688371598 | F20: 5.387770341
A21: 2030 | B21: 37.18637842 | C21: 3.62651298 | D21: 32.95960622 | E21: 0.3666214517 | F21: 5.359789818
A22: 2031 | B22: 37.19293494 | C22: 3.577166111 | D22: 32.97542094 | E22: 0.3644057435 | F22: 5.331809295
A23: 2032 | B23: 37.19949146 | C23: 3.527819243 | D23: 32.99123566 | E23: 0.3621900353 | F23: 5.303828773
A24: 2033 | B24: 37.20604798 | C24: 3.478472374 | D24: 33.00705037 | E24: 0.3599743272 | F24: 5.27584825
A25: 2034 | B25: 37.2126045 | C25: 3.429125506 | D25: 33.0228651 | E25: 0.357758619 | F25: 5.247867727
A26: 2035 | B26: 37.21916102 | C26: 3.379778637 | D26: 33.03867982 | E26: 0.3555429108 | F26: 5.219887204
A27: 2036 | B27: 37.22571754 | C27: 3.330431769 | D27: 33.05449454 | E27: 0.3533272027 | F27: 5.191906681
A28: 2037 | B28: 37.23227406 | C28: 3.281084901 | D28: 33.07030926 | E28: 0.3511114945 | F28: 5.163926158
A29: 2038 | B29: 37.23883058 | C29: 3.231738032 | D29: 33.08612398 | E29: 0.3488957863 | F29: 5.135945636
A30: 2039 | B30: 37.2453871 | C30: 3.182391163 | D30: 33.10193869 | E30: 0.3466800782 | F30: 5.107965113
A31: 2040 | B31: 37.25194362 | C31: 3.133044295 | D31: 33.11775341 | E31: 0.34446437 | F31: 5.07998459
A32: 2041 | B32: 37.2293088 | C32: 3.082717243 | D32: 33.05098564 | E32: 0.3423639775 | F32: 5.058099324
A33: 2042 | B33: 37.20667398 | C33: 3.032390192 | D33: 32.98421787 | E33: 0.340263585 | F33: 5.036214058
A34: 2043 | B34: 37.18403916 | C34: 2.98206314 | D34: 32.9174501 | E34: 0.3381631925 | F34: 5.014328791
A35: 2044 | B35: 37.16140435 | C35: 2.931736088 | D35: 32.85068233 | E35: 0.3360628 | F35: 4.992443525
A36: 2045 | B36: 37.13876953 | C36: 2.881409037 | D36: 32.78391456 | E36: 0.3339624075 | F36: 4.970558259
A37: 2046 | B37: 37.11613471 | C37: 2.831081985 | D37: 32.71714679 | E37: 0.331862015 | F37: 4.948672993
A38: 2047 | B38: 37.09349989 | C38: 2.780754933 | D38: 32.65037902 | E38: 0.3297616225 | F38: 4.926787727
A39: 2048 | B39: 37.07086507 | C39: 2.730427882 | D39: 32.58361125 | E39: 0.32766123 | F39: 4.904902461
A40: 2049 | B40: 37.04823026 | C40: 2.68010083 | D40: 32.51684348 | E40: 0.3255608375 | F40: 4.883017194
A41: 2050 | B41: 37.02559544 | C41: 2.629773778 | D41: 32.4500757 | E41: 0.323460445 | F41: 4.861131928
A42: 2051 | B42: 37.00296062 | C42: 2.579446727 | D42: 32.38330793 | E42: 0.3213600525 | F42: 4.839246662
A43: 2052 | B43: 36.9803258 | C43: 2.529119675 | D43: 32.31654016 | E43: 0.31925966 | F43: 4.817361396
A44: 2053 | B44: 36.95769098 | C44: 2.478792623 | D44: 32.24977239 | E44: 0.3171592675 | F44: 4.79547613
A45: 2054 | B45: 36.93505617 | C45: 2.428465572 | D45: 32.18300462 | E45: 0.315058875 | F45: 4.773590864
A46: 2055 | B46: 36.91242135 | C46: 2.37813852 | D46: 32.11623685 | E46: 0.3129584825 | F46: 4.751705597
A47: 2056 | B47: 36.79129871 | C47: 2.348551815 | D47: 31.90645294 | E47: 0.30986967 | F47: 4.723560338
A48: 2057 | B48: 36.67017608 | C48: 2.318965109 | D48: 31.69666903 | E48: 0.3067808575 | F48: 4.695415079
A49: 2058 | B49: 36.54905345 | C49: 2.289378404 | D49: 31.48688513 | E49: 0.303692045 | F49: 4.667269819
A50: 2059 | B50: 36.42793081 | C50: 2.259791699 | D50: 31.27710122 | E50: 0.3006032325 | F50: 4.639124559
A51: 2060 | B51: 36.30680818 | C51: 2.230204993 | D51: 31.06731731 | E51: 0.29751442 | F51: 4.6109793
A52: 2061 | B52: 36.18568554 | C52: 2.200618288 | D52: 30.8575334 | E52: 0.2944256075 | F52: 4.58283404
A53: 2062 | B53: 36.06456291 | C53: 2.171031583 | D53: 30.64774949 | E53: 0.291336795 | F53: 4.554688781
A54: 2063 | B54: 35.94344027 | C54: 2.141444877 | D54: 30.43796558 | E54: 0.2882479825 | F54: 4.526543522
A55: 2064 | B55: 35.82231764 | C55: 2.111858172 | D55: 30.22818168 | E55: 0.28515917 | F55: 4.498398262
A56: 2065 | B56: 35.70119501 | C56: 2.082271467 | D56: 30.01839777 | E56: 0.2820703575 | F56: 4.470253002
A57: 2066 | B57: 35.58007237 | C57: 2.052684761 | D57: 29.80861386 | E57: 0.278981545 | F57: 4.442107743
A58: 2067 | B58: 35.45894974 | C58: 2.023098056 | D58: 29.59882995 | E58: 0.2758927325 | F58: 4.413962483
A59: 2068 | B59: 35.3378271 | C59: 1.993511351 | D59: 29.38904604 | E59: 0.27280392 | F59: 4.385817224
A60: 2069 | B60: 35.21670447 | C60: 1.963924645 | D60: 29.17926214 | E60: 0.2697151075 | F60: 4.357671965
A61: 2070 | B61: 35.09558184 | C61: 1.93433794 | D61: 28.96947823 | E61: 0.266626295 | F61: 4.329526705
A62: 2071 | B62: 34.89671997 | C62: 1.921109586 | D62: 28.73048651 | E62: 0.2641140608 | F62: 4.297954923
A63: 2072 | B63: 34.6978581 | C63: 1.907881231 | D63: 28.49149479 | E63: 0.2616018267 | F63: 4.266383141
A64: 2073 | B64: 34.49899623 | C64: 1.894652877 | D64: 28.25250307 | E64: 0.2590895925 | F64: 4.234811359
A65: 2074 | B65: 34.30013437 | C65: 1.881424523 | D65: 28.01351135 | E65: 0.2565773583 | F65: 4.203239576
A66: 2075 | B66: 34.1012725 | C66: 1.868196168 | D66: 27.77451963 | E66: 0.2540651242 | F66: 4.171667794
A67: 2076 | B67: 33.90241063 | C67: 1.854967814 | D67: 27.53552791 | E67: 0.25155289 | F67: 4.140096012
A68: 2077 | B68: 33.70354876 | C68: 1.84173946 | D68: 27.29653619 | E68: 0.2490406558 | F68: 4.10852423
A69: 2078 | B69: 33.5046869 | C69: 1.828511105 | D69: 27.05754447 | E69: 0.2465284217 | F69: 4.076952448
A70: 2079 | B70: 33.30582503 | C70: 1.815282751 | D70: 26.81855276 | E70: 0.2440161875 | F70: 4.045380666
A71: 2080 | B71: 33.10696316 | C71: 1.802054397 | D71: 26.57956104 | E71: 0.2415039533 | F71: 4.013808883
A72: 2081 | B72: 32.9081013 | C72: 1.788826042 | D72: 26.34056932 | E72: 0.2389917192 | F72: 3.982237101
A73: 2082 | B73: 32.70923943 | C73: 1.775597688 | D73: 26.1015776 | E73: 0.236479485 | F73: 3.950665319
A74: 2083 | B74: 32.51037756 | C74: 1.762369334 | D74: 25.86258588 | E74: 0.2339672508 | F74: 3.919093537
A75: 2084 | B75: 32.31151569 | C75: 1.749140979 | D75: 25.62359416 | E75: 0.2314550167 | F75: 3.887521755
A76: 2085 | B76: 32.11265383 | C76: 1.735912625 | D76: 25.38460244 | E76: 0.2289427825 | F76: 3.855949973
A77: 2086 | B77: 31.86428036 | C77: 1.728260607 | D77: 25.17999126 | E77: 0.2261340223 | F77: 3.820959904
A78: 2087 | B78: 31.61590688 | C78: 1.720608589 | D78: 24.97538009 | E78: 0.2233252622 | F78: 3.785969836
A79: 2088 | B79: 31.36753341 | C79: 1.712956571 | D79: 24.77076891 | E79: 0.220516502 | F79: 3.750979768
A80: 2089 | B80: 31.11915994 | C80: 1.705304552 | D80: 24.56615773 | E80: 0.2177077418 | F80: 3.7159897
A81: 2090 | B81: 30.87078647 | C81: 1.697652534 | D81: 24.36154656 | E81: 0.2148989817 | F81: 3.680999632
A82: 2091 | B82: 30.62241299 | C82: 1.690000516 | D82: 24.15693538 | E82: 0.2120902215 | F82: 3.646009564
A83: 2092 | B83: 30.37403952 | C83: 1.682348498 | D83: 23.9523242 | E83: 0.2092814613 | F83: 3.611019497
A84: 2093 | B84: 30.12566605 | C84: 1.67469648 | D84: 23.74771303 | E84: 0.2064727012 | F84: 3.576029428
A85: 2094 | B85: 29.87729258 | C85: 1.667044461 | D85: 23.54310185 | E85: 0.203663941 | F85: 3.541039361
A86: 2095 | B86: 29.6289191 | C86: 1.659392443 | D86: 23.33849067 | E86: 0.2008551808 | F86: 3.506049292
A87: 2096 | B87: 29.38054563 | C87: 1.651740425 | D87: 23.13387949 | E87: 0.1980464207 | F87: 3.471059225
A88: 2097 | B88: 29.13217216 | C88: 1.644088407 | D88: 22.92926832 | E88: 0.1952376605 | F88: 3.436069157
A89: 2098 | B89: 28.88379869 | C89: 1.636436389 | D89: 22.72465714 | E89: 0.1924289003 | F89: 3.401079088
A90: 2099 | B90: 28.63542521 | C90: 1.628784371 | D90: 22.52004596 | E90: 0.1896201402 | F90: 3.36608902
A91: 2100 | B91: 28.38705174 | C91: 1.621132353 | D91: 22.31543479 | E91: 0.18681138 | F91: 3.331098952

Sheet PivotSiteTime (2) (hidden)
J1: =IF(C2="(All)","Utility by Strategy over Time","Utility at '"&C2&"' by Strategy over Time") -> Utility at 'Dosoris Pond/West Pond' by Strategy over Time
B2: Site | C2: Dosoris Pond/West Pond
B3: Utility | C3: (All)
B5: Sum of Value | C5: Column Labels
B6: Row Labels | C6: No Migration | D6: Migr. Undeveloped | E6: Migr. All Dry | F6: Restore to 1974 | G6: Thin Layer Depo.
B7: 2016 | C7: 53.25707768 | D7: 59.53102895 | E7: 60.18004488 | F7: 61.26150313 | G7: 53.26226542
B8: 2017 | C8: 53.25462209 | D8: 59.64011818 | E8: 60.31425542 | F8: 61.25919319 | G8: 53.26197477
B9: 2018 | C9: 53.2521665 | D9: 59.74920742 | E9: 60.44846596 | F9: 61.25688325 | G9: 53.26168413
B10: 2019 | C10: 53.2497109 | D10: 59.85829665 | E10: 60.5826765 | F10: 61.25457332 | G10: 53.26139348
B11: 2020 | C11: 53.24725531 | D11: 59.96738589 | E11: 60.71688704 | F11: 61.25226338 | G11: 53.26110283
B12: 2021 | C12: 53.24479972 | D12: 60.07647512 | E12: 60.85109758 | F12: 61.24995344 | G12: 53.26081219
B13: 2022 | C13: 53.24234412 | D13: 60.18556436 | E13: 60.98530812 | F13: 61.24764351 | G13: 53.26052154
B14: 2023 | C14: 53.23988853 | D14: 60.29465359 | E14: 61.11951866 | F14: 61.24533357 | G14: 53.26023089
B15: 2024 | C15: 53.23743294 | D15: 60.40374283 | E15: 61.2537292 | F15: 61.24302364 | G15: 53.25994025
B16: 2025 | C16: 53.23497735 | D16: 60.51283206 | E16: 61.38793974 | F16: 61.2407137 | G16: 53.2596496
B17: 2026 | C17: 53.19856518 | D17: 60.93304296 | E17: 61.8625461 | F17: 61.19306845 | G17: 53.23855582
B18: 2027 | C18: 53.16215302 | D18: 61.35325386 | E18: 62.33715245 | F18: 61.1454232 | G18: 53.21746204
B19: 2028 | C19: 53.12574086 | D19: 61.77346476 | E19: 62.81175881 | F19: 61.09777795 | G19: 53.19636827
B20: 2029 | C20: 53.0893287 | D20: 62.19367566 | E20: 63.28636516 | F20: 61.0501327 | G20: 53.17527449
B21: 2030 | C21: 53.05291654 | D21: 62.61388656 | E21: 63.76097152 | F21: 61.00248745 | G21: 53.15418071
B22: 2031 | C22: 53.01650438 | D22: 63.03409746 | E22: 64.23557787 | F22: 60.9548422 | G22: 53.13308694
B23: 2032 | C23: 52.98009221 | D23: 63.45430836 | E23: 64.71018423 | F23: 60.90719695 | G23: 53.11199316
B24: 2033 | C24: 52.94368005 | D24: 63.87451926 | E24: 65.18479058 | F24: 60.8595517 | G24: 53.09089938
B25: 2034 | C25: 52.90726789 | D25: 64.29473016 | E25: 65.65939694 | F25: 60.81190645 | G25: 53.0698056
B26: 2035 | C26: 52.87085573 | D26: 64.71494105 | E26: 66.13400329 | F26: 60.7642612 | G26: 53.04871183
B27: 2036 | C27: 52.83444357 | D27: 65.13515195 | E27: 66.60860965 | F27: 60.71661595 | G27: 53.02761805
B28: 2037 | C28: 52.79803141 | D28: 65.55536285 | E28: 67.083216 | F28: 60.6689707 | G28: 53.00652427
B29: 2038 | C29: 52.76161924 | D29: 65.97557375 | E29: 67.55782236 | F29: 60.62132545 | G29: 52.9854305
B30: 2039 | C30: 52.72520708 | D30: 66.39578465 | E30: 68.03242871 | F30: 60.5736802 | G30: 52.96433672
B31: 2040 | C31: 52.68879492 | D31: 66.81599555 | E31: 68.50703507 | F31: 60.52603495 | G31: 52.94324294
B32: 2041 | C32: 52.58142205 | D32: 67.3355821 | E32: 69.1323546 | F32: 60.35795956 | G32: 52.87922236
B33: 2042 | C33: 52.47404918 | D33: 67.85516866 | E33: 69.75767413 | F33: 60.18988418 | G33: 52.81520177
B34: 2043 | C34: 52.36667632 | D34: 68.37475521 | E34: 70.38299366 | F34: 60.02180879 | G34: 52.75118119
B35: 2044 | C35: 52.25930345 | D35: 68.89434177 | E35: 71.00831319 | F35: 59.8537334 | G35: 52.68716061
B36: 2045 | C36: 52.15193058 | D36: 69.41392832 | E36: 71.63363272 | F36: 59.68565802 | G36: 52.62314002
B37: 2046 | C37: 52.04455771 | D37: 69.93351488 | E37: 72.25895225 | F37: 59.51758263 | G37: 52.55911944
B38: 2047 | C38: 51.93718484 | D38: 70.45310143 | E38: 72.88427179 | F38: 59.34950725 | G38: 52.49509886
B39: 2048 | C39: 51.82981197 | D39: 70.97268799 | E39: 73.50959132 | F39: 59.18143186 | G39: 52.43107827
B40: 2049 | C40: 51.7224391 | D40: 71.49227454 | E40: 74.13491085 | F40: 59.01335648 | G40: 52.36705769
B41: 2050 | C41: 51.61506623 | D41: 72.0118611 | E41: 74.76023038 | F41: 58.84528109 | G41: 52.30303711
B42: 2051 | C42: 51.50769336 | D42: 72.53144765 | E42: 75.38554991 | F42: 58.6772057 | G42: 52.23901652
B43: 2052 | C43: 51.4003205 | D43: 73.05103421 | E43: 76.01086944 | F43: 58.50913032 | G43: 52.17499594
B44: 2053 | C44: 51.29294763 | D44: 73.57062076 | E44: 76.63618897 | F44: 58.34105493 | G44: 52.11097536
B45: 2054 | C45: 51.18557476 | D45: 74.09020732 | E45: 77.2615085 | F45: 58.17297955 | G45: 52.04695477
B46: 2055 | C46: 51.07820189 | D46: 74.60979387 | E46: 77.88682803 | F46: 58.00490416 | G46: 51.98293419
B47: 2056 | C47: 50.85945063 | D47: 75.26481087 | E47: 78.73992591 | F47: 57.67747385 | G47: 51.8386579
B48: 2057 | C48: 50.64069938 | D48: 75.91982787 | E48: 79.59302379 | F48: 57.35004353 | G48: 51.69438161
B49: 2058 | C49: 50.42194812 | D49: 76.57484487 | E49: 80.44612167 | F49: 57.02261322 | G49: 51.55010532
B50: 2059 | C50: 50.20319686 | D50: 77.22986187 | E50: 81.29921955 | F50: 56.6951829 | G50: 51.40582903
B51: 2060 | C51: 49.98444561 | D51: 77.88487887 | E51: 82.15231743 | F51: 56.36775258 | G51: 51.26155274
B52: 2061 | C52: 49.76569435 | D52: 78.53989587 | E52: 83.00541531 | F52: 56.04032227 | G52: 51.11727645
B53: 2062 | C53: 49.54694309 | D53: 79.19491287 | E53: 83.85851319 | F53: 55.71289195 | G53: 50.97300016
B54: 2063 | C54: 49.32819184 | D54: 79.84992987 | E54: 84.71161107 | F54: 55.38546164 | G54: 50.82872387
B55: 2064 | C55: 49.10944058 | D55: 80.50494686 | E55: 85.56470895 | F55: 55.05803132 | G55: 50.68444759
B56: 2065 | C56: 48.89068932 | D56: 81.15996386 | E56: 86.41780683 | F56: 54.73060101 | G56: 50.5401713
B57: 2066 | C57: 48.67193807 | D57: 81.81498086 | E57: 87.27090471 | F57: 54.40317069 | G57: 50.39589501
B58: 2067 | C58: 48.45318681 | D58: 82.46999786 | E58: 88.12400259 | F58: 54.07574038 | G58: 50.25161872
B59: 2068 | C59: 48.23443555 | D59: 83.12501486 | E59: 88.97710047 | F59: 53.74831006 | G59: 50.10734243
B60: 2069 | C60: 48.0156843 | D60: 83.78003186 | E60: 89.83019835 | F60: 53.42087975 | G60: 49.96306614
B61: 2070 | C61: 47.79693304 | D61: 84.43504886 | E61: 90.68329623 | F61: 53.09344943 | G61: 49.81878985
B62: 2071 | C62: 47.54548259 | D62: 85.13165392 | E62: 91.63356167 | F62: 52.75251302 | G62: 49.599552
B63: 2072 | C63: 47.29403213 | D63: 85.82825899 | E63: 92.58382711 | F63: 52.41157661 | G63: 49.38031416
B64: 2073 | C64: 47.04258168 | D64: 86.52486405 | E64: 93.53409256 | F64: 52.0706402 | G64: 49.16107631
B65: 2074 | C65: 46.79113123 | D65: 87.22146911 | E65: 94.484358 | F65: 51.72970379 | G65: 48.94183847
B66: 2075 | C66: 46.53968078 | D66: 87.91807418 | E66: 95.43462345 | F66: 51.38876738 | G66: 48.72260062
B67: 2076 | C67: 46.28823033 | D67: 88.61467924 | E67: 96.38488889 | F67: 51.04783097 | G67: 48.50336278
B68: 2077 | C68: 46.03677987 | D68: 89.31128431 | E68: 97.33515434 | F68: 50.70689456 | G68: 48.28412493
B69: 2078 | C69: 45.78532942 | D69: 90.00788937 | E69: 98.28541978 | F69: 50.36595815 | G69: 48.06488709
B70: 2079 | C70: 45.53387897 | D70: 90.70449443 | E70: 99.23568523 | F70: 50.02502174 | G70: 47.84564924
B71: 2080 | C71: 45.28242852 | D71: 91.4010995 | E71: 100.1859507 | F71: 49.68408533 | G71: 47.6264114
B72: 2081 | C72: 45.03097807 | D72: 92.09770456 | E72: 101.1362161 | F72: 49.34314892 | G72: 47.40717355
B73: 2082 | C73: 44.77952761 | D73: 92.79430963 | E73: 102.0864816 | F73: 49.00221251 | G73: 47.18793571
B74: 2083 | C74: 44.52807716 | D74: 93.49091469 | E74: 103.036747 | F74: 48.6612761 | G74: 46.96869786
B75: 2084 | C75: 44.27662671 | D75: 94.18751975 | E75: 103.9870125 | F75: 48.32033969 | G75: 46.74946002
B76: 2085 | C76: 44.02517626 | D76: 94.88412482 | E76: 104.9372779 | F76: 47.97940328 | G76: 46.53022217
B77: 2086 | C77: 43.80228658 | D77: 95.57934154 | E77: 105.8953583 | F77: 47.69260297 | G77: 46.30448128
B78: 2087 | C78: 43.57939691 | D78: 96.27455827 | E78: 106.8534388 | F78: 47.40580266 | G78: 46.07874039
B79: 2088 | C79: 43.35650723 | D79: 96.969775 | E79: 107.8115192 | F79: 47.11900235 | G79: 45.8529995
B80: 2089 | C80: 43.13361756 | D80: 97.66499172 | E80: 108.7695997 | F80: 46.83220204 | G80: 45.62725861
B81: 2090 | C81: 42.91072788 | D81: 98.36020845 | E81: 109.7276801 | F81: 46.54540172 | G81: 45.40151771
B82: 2091 | C82: 42.68783821 | D82: 99.05542518 | E82: 110.6857605 | F82: 46.25860141 | G82: 45.17577682
B83: 2092 | C83: 42.46494853 | D83: 99.7506419 | E83: 111.643841 | F83: 45.9718011 | G83: 44.95003593
B84: 2093 | C84: 42.24205886 | D84: 100.4458586 | E84: 112.6019214 | F84: 45.68500079 | G84: 44.72429504
B85: 2094 | C85: 42.01916918 | D85: 101.1410754 | E85: 113.5600019 | F85: 45.39820048 | G85: 44.49855415
B86: 2095 | C86: 41.79627951 | D86: 101.8362921 | E86: 114.5180823 | F86: 45.11140016 | G86: 44.27281325
B87: 2096 | C87: 41.57338983 | D87: 102.5315088 | E87: 115.4761627 | F87: 44.82459985 | G87: 44.04707236
B88: 2097 | C88: 41.35050016 | D88: 103.2267255 | E88: 116.4342432 | F88: 44.53779954 | G88: 43.82133147
B89: 2098 | C89: 41.12761048 | D89: 103.9219423 | E89: 117.3923236 | F89: 44.25099923 | G89: 43.59559058
B90: 2099 | C90: 40.90472081 | D90: 104.617159 | E90: 118.3504041 | F90: 43.96419892 | G90: 43.36984969
B91: 2100 | C91: 40.68183113 | D91: 105.3123757 | E91: 119.3084845 | F91: 43.67739861 | G91: 43.14410879

Sheet PivotSiteTime
J1: =IF(C2="(All)","Utility by Site over Time, Strategy: "&C3,"Utility of '"&C2&"' by Site over Time, Strategy: "&C3) -> Utility by Site over Time, Strategy: No Migration
B2: Utility | C2: (All)
B3: Strategy | C3: No Migration
B5: Sum of Value | C5: Column Labels
B6: Row Labels | C6: Dosoris Pond/West Pond | D6: Lattingtown | E6: Hempstead Harbor | F6: Cuba Middle and East Island | G6: Marine Nature Study Area | H6: Seamans Neck Park
B7: 2016 | C7: 53.25707768 | D7: 88.08966304 | E7: 20.44260941 | F7: 298.1603144 | G7: 82.25702155 | H7: 54.18558235
B8: 2017 | C8: 53.25462209 | D8: 88.09097879 | E8: 20.43857466 | F8: 297.974641 | G8: 82.23268303 | H8: 54.10012456
B9: 2018 | C9: 53.2521665 | D9: 88.09229453 | E9: 20.4345399 | F9: 297.7889676 | G9: 82.20834452 | H9: 54.01466677
B10: 2019 | C10: 53.2497109 | D10: 88.09361027 | E10: 20.43050514 | F10: 297.6032942 | G10: 82.18400601 | H10: 53.92920898
B11: 2020 | C11: 53.24725531 | D11: 88.09492601 | E11: 20.42647039 | F11: 297.4176208 | G11: 82.1596675 | H11: 53.8437512
B12: 2021 | C12: 53.24479972 | D12: 88.09624175 | E12: 20.42243563 | F12: 297.2319474 | G12: 82.13532898 | H12: 53.75829341
B13: 2022 | C13: 53.24234412 | D13: 88.09755749 | E13: 20.41840087 | F13: 297.046274 | G13: 82.11099047 | H13: 53.67283562
B14: 2023 | C14: 53.23988853 | D14: 88.09887323 | E14: 20.41436612 | F14: 296.8606006 | G14: 82.08665196 | H14: 53.58737783
B15: 2024 | C15: 53.23743294 | D15: 88.10018897 | E15: 20.41033136 | F15: 296.6749273 | G15: 82.06231345 | H15: 53.50192004
B16: 2025 | C16: 53.23497735 | D16: 88.10150471 | E16: 20.4062966 | F16: 296.4892539 | G16: 82.03797493 | H16: 53.41646225
B17: 2026 | C17: 53.19856518 | D17: 88.10127378 | E17: 20.39902373 | F17: 295.6091539 | G17: 81.91762776 | H17: 53.24278398
B18: 2027 | C18: 53.16215302 | D18: 88.10104284 | E18: 20.39175086 | F18: 294.7290538 | G18: 81.79728058 | H18: 53.0691057
B19: 2028 | C19: 53.12574086 | D19: 88.1008119 | E19: 20.38447799 | F19: 293.8489538 | G19: 81.67693341 | H19: 52.89542743
B20: 2029 | C20: 53.0893287 | D20: 88.10058096 | E20: 20.37720511 | F20: 292.9688538 | G20: 81.55658623 | H20: 52.72174915
B21: 2030 | C21: 53.05291654 | D21: 88.10035002 | E21: 20.36993224 | F21: 292.0887538 | G21: 81.43623906 | H21: 52.54807088
B22: 2031 | C22: 53.01650438 | D22: 88.10011908 | E22: 20.36265937 | F22: 291.2086538 | G22: 81.31589188 | H22: 52.3743926
B23: 2032 | C23: 52.98009221 | D23: 88.09988814 | E23: 20.35538649 | F23: 290.3285538 | G23: 81.1955447 | H23: 52.20071432
B24: 2033 | C24: 52.94368005 | D24: 88.0996572 | E24: 20.34811362 | F24: 289.4484538 | G24: 81.07519753 | H24: 52.02703605
B25: 2034 | C25: 52.90726789 | D25: 88.09942626 | E25: 20.34084075 | F25: 288.5683538 | G25: 80.95485035 | H25: 51.85335777
B26: 2035 | C26: 52.87085573 | D26: 88.09919532 | E26: 20.33356788 | F26: 287.6882537 | G26: 80.83450318 | H26: 51.6796795
B27: 2036 | C27: 52.83444357 | D27: 88.09896438 | E27: 20.326295 | F27: 286.8081537 | G27: 80.714156 | H27: 51.50600122
B28: 2037 | C28: 52.79803141 | D28: 88.09873344 | E28: 20.31902213 | F28: 285.9280537 | G28: 80.59380883 | H28: 51.33232295
B29: 2038 | C29: 52.76161924 | D29: 88.0985025 | E29: 20.31174926 | F29: 285.0479537 | G29: 80.47346165 | H29: 51.15864467
B30: 2039 | C30: 52.72520708 | D30: 88.09827156 | E30: 20.30447638 | F30: 284.1678537 | G30: 80.35311448 | H30: 50.98496639
B31: 2040 | C31: 52.68879492 | D31: 88.09804063 | E31: 20.29720351 | F31: 283.2877537 | G31: 80.2327673 | H31: 50.81128812
B32: 2041 | C32: 52.58142205 | D32: 88.07479299 | E32: 20.28570566 | F32: 281.4533625 | G32: 80.00569741 | H32: 50.45371327
B33: 2042 | C33: 52.47404918 | D33: 88.05154535 | E33: 20.27420782 | F33: 279.6189714 | G33: 79.77862751 | H33: 50.09613842
B34: 2043 | C34: 52.36667632 | D34: 88.02829771 | E34: 20.26270997 | F34: 277.7845802 | G34: 79.55155762 | H34: 49.73856357
B35: 2044 | C35: 52.25930345 | D35: 88.00505008 | E35: 20.25121212 | F35: 275.950189 | G35: 79.32448773 | H35: 49.38098872
B36: 2045 | C36: 52.15193058 | D36: 87.98180244 | E36: 20.23971427 | F36: 274.1157979 | G36: 79.09741784 | H36: 49.02341388
B37: 2046 | C37: 52.04455771 | D37: 87.9585548 | E37: 20.22821642 | F37: 272.2814067 | G37: 78.87034794 | H37: 48.66583903
B38: 2047 | C38: 51.93718484 | D38: 87.93530717 | E38: 20.21671858 | F38: 270.4470156 | G38: 78.64327805 | H38: 48.30826418
B39: 2048 | C39: 51.82981197 | D39: 87.91205953 | E39: 20.20522073 | F39: 268.6126244 | G39: 78.41620816 | H39: 47.95068933
B40: 2049 | C40: 51.7224391 | D40: 87.88881189 | E40: 20.19372288 | F40: 266.7782332 | G40: 78.18913826 | H40: 47.59311448
B41: 2050 | C41: 51.61506623 | D41: 87.86556426 | E41: 20.18222503 | F41: 264.9438421 | G41: 77.96206837 | H41: 47.23553963
B42: 2051 | C42: 51.50769336 | D42: 87.84231662 | E42: 20.17072718 | F42: 263.1094509 | G42: 77.73499848 | H42: 46.87796478
B43: 2052 | C43: 51.4003205 | D43: 87.81906898 | E43: 20.15922934 | F43: 261.2750598 | G43: 77.50792859 | H43: 46.52038994
B44: 2053 | C44: 51.29294763 | D44: 87.79582135 | E44: 20.14773149 | F44: 259.4406686 | G44: 77.28085869 | H44: 46.16281509
B45: 2054 | C45: 51.18557476 | D45: 87.77257371 | E45: 20.13623364 | F45: 257.6062774 | G45: 77.0537888 | H45: 45.80524024
B46: 2055 | C46: 51.07820189 | D46: 87.74932607 | E46: 20.12473579 | F46: 255.7718863 | G46: 76.82671891 | H46: 45.44766539
B47: 2056 | C47: 50.85945063 | D47: 87.6315904 | E47: 20.10767535 | F47: 252.1486294 | G47: 76.42224772 | H47: 44.87126698
B48: 2057 | C48: 50.64069938 | D48: 87.51385472 | E48: 20.09061491 | F48: 248.5253726 | G48: 76.01777653 | H48: 44.29486856
B49: 2058 | C49: 50.42194812 | D49: 87.39611905 | E49: 20.07355447 | F49: 244.9021157 | G49: 75.61330534 | H49: 43.71847015
B50: 2059 | C50: 50.20319686 | D50: 87.27838337 | E50: 20.05649403 | F50: 241.2788589 | G50: 75.20883415 | H50: 43.14207174
B51: 2060 | C51: 49.98444561 | D51: 87.1606477 | E51: 20.03943358 | F51: 237.655602 | G51: 74.80436296 | H51: 42.56567333
B52: 2061 | C52: 49.76569435 | D52: 87.04291202 | E52: 20.02237314 | F52: 234.0323452 | G52: 74.39989176 | H52: 41.98927491
B53: 2062 | C53: 49.54694309 | D53: 86.92517635 | E53: 20.0053127 | F53: 230.4090883 | G53: 73.99542057 | H53: 41.4128765
B54: 2063 | C54: 49.32819184 | D54: 86.80744067 | E54: 19.98825226 | F54: 226.7858315 | G54: 73.59094938 | H54: 40.83647809
B55: 2064 | C55: 49.10944058 | D55: 86.689705 | E55: 19.97119182 | F55: 223.1625746 | G55: 73.18647819 | H55: 40.26007967
B56: 2065 | C56: 48.89068932 | D56: 86.57196932 | E56: 19.95413138 | F56: 219.5393178 | G56: 72.782007 | H56: 39.68368126
B57: 2066 | C57: 48.67193807 | D57: 86.45423365 | E57: 19.93707094 | F57: 215.9160609 | G57: 72.37753581 | H57: 39.10728285
B58: 2067 | C58: 48.45318681 | D58: 86.33649797 | E58: 19.92001049 | F58: 212.2928041 | G58: 71.97306462 | H58: 38.53088443
B59: 2068 | C59: 48.23443555 | D59: 86.2187623 | E59: 19.90295005 | F59: 208.6695472 | G59: 71.56859343 | H59: 37.95448602
B60: 2069 | C60: 48.0156843 | D60: 86.10102662 | E60: 19.88588961 | F60: 205.0462904 | G60: 71.16412224 | H60: 37.37808761
B61: 2070 | C61: 47.79693304 | D61: 85.98329095 | E61: 19.86882917 | F61: 201.4230335 | G61: 70.75965105 | H61: 36.8016892
B62: 2071 | C62: 47.54548259 | D62: 85.68093699 | E62: 19.84623065 | F62: 197.9484325 | G62: 70.13624193 | H62: 36.2696446
B63: 2072 | C63: 47.29403213 | D63: 85.37858304 | E63: 19.82363213 | F63: 194.4738314 | G63: 69.51283281 | H63: 35.73760001
B64: 2073 | C64: 47.04258168 | D64: 85.07622908 | E64: 19.80103361 | F64: 190.9992304 | G64: 68.88942369 | H64: 35.20555541
B65: 2074 | C65: 46.79113123 | D65: 84.77387513 | E65: 19.77843508 | F65: 187.5246293 | G65: 68.26601457 | H65: 34.67351082
B66: 2075 | C66: 46.53968078 | D66: 84.47152117 | E66: 19.75583656 | F66: 184.0500283 | G66: 67.64260545 | H66: 34.14146622
B67: 2076 | C67: 46.28823033 | D67: 84.16916722 | E67: 19.73323804 | F67: 180.5754272 | G67: 67.01919633 | H67: 33.60942163
B68: 2077 | C68: 46.03677987 | D68: 83.86681326 | E68: 19.71063952 | F68: 177.1008262 | G68: 66.39578721 | H68: 33.07737703
B69: 2078 | C69: 45.78532942 | D69: 83.5644593 | E69: 19.688041 | F69: 173.6262251 | G69: 65.77237809 | H69: 32.54533244
B70: 2079 | C70: 45.53387897 | D70: 83.26210535 | E70: 19.66544248 | F70: 170.151624 | G70: 65.14896897 | H70: 32.01328784
B71: 2080 | C71: 45.28242852 | D71: 82.95975139 | E71: 19.64284395 | F71: 166.677023 | G71: 64.52555985 | H71: 31.48124325
B72: 2081 | C72: 45.03097807 | D72: 82.65739744 | E72: 19.62024543 | F72: 163.2024219 | G72: 63.90215073 | H72: 30.94919865
B73: 2082 | C73: 44.77952761 | D73: 82.35504348 | E73: 19.59764691 | F73: 159.7278209 | G73: 63.27874161 | H73: 30.41715406
B74: 2083 | C74: 44.52807716 | D74: 82.05268953 | E74: 19.57504839 | F74: 156.2532198 | G74: 62.65533249 | H74: 29.88510946
B75: 2084 | C75: 44.27662671 | D75: 81.75033557 | E75: 19.55244987 | F75: 152.7786188 | G75: 62.03192337 | H75: 29.35306487
B76: 2085 | C76: 44.02517626 | D76: 81.44798161 | E76: 19.52985135 | F76: 149.3040177 | G76: 61.40851425 | H76: 28.82102027
B77: 2086 | C77: 43.80228658 | D77: 80.98676404 | E77: 19.50297312 | F77: 146.6327122 | G77: 60.74336588 | H77: 28.36182323
B78: 2087 | C78: 43.57939691 | D78: 80.52554646 | E78: 19.47609489 | F78: 143.9614066 | G78: 60.0782175 | H78: 27.90262619
B79: 2088 | C79: 43.35650723 | D79: 80.06432889 | E79: 19.44921666 | F79: 141.2901011 | G79: 59.41306913 | H79: 27.44342915
B80: 2089 | C80: 43.13361756 | D80: 79.60311131 | E80: 19.42233844 | F80: 138.6187956 | G80: 58.74792075 | H80: 26.9842321
B81: 2090 | C81: 42.91072788 | D81: 79.14189374 | E81: 19.39546021 | F81: 135.94749 | G81: 58.08277237 | H81: 26.52503506
B82: 2091 | C82: 42.68783821 | D82: 78.68067616 | E82: 19.36858198 | F82: 133.2761845 | G82: 57.417624 | H82: 26.06583802
B83: 2092 | C83: 42.46494853 | D83: 78.21945859 | E83: 19.34170375 | F83: 130.604879 | G83: 56.75247562 | H83: 25.60664097
B84: 2093 | C84: 42.24205886 | D84: 77.75824101 | E84: 19.31482552 | F84: 127.9335734 | G84: 56.08732725 | H84: 25.14744393
B85: 2094 | C85: 42.01916918 | D85: 77.29702344 | E85: 19.2879473 | F85: 125.2622679 | G85: 55.42217887 | H85: 24.68824689
B86: 2095 | C86: 41.79627951 | D86: 76.83580586 | E86: 19.26106907 | F86: 122.5909624 | G86: 54.7570305 | H86: 24.22904984
B87: 2096 | C87: 41.57338983 | D87: 76.37458829 | E87: 19.23419084 | F87: 119.9196568 | G87: 54.09188212 | H87: 23.7698528
B88: 2097 | C88: 41.35050016 | D88: 75.91337071 | E88: 19.20731261 | F88: 117.2483513 | G88: 53.42673375 | H88: 23.31065576
B89: 2098 | C89: 41.12761048 | D89: 75.45215314 | E89: 19.18043438 | F89: 114.5770458 | G89: 52.76158537 | H89: 22.85145871
B90: 2099 | C90: 40.90472081 | D90: 74.99093557 | E90: 19.15355616 | F90: 111.9057402 | G90: 52.09643699 | H90: 22.39226167
B91: 2100 | C91: 40.68183113 | D91: 74.52971799 | E91: 19.12667793 | F91: 109.2344347 | G91: 51.43128862 | H91: 21.93306463

Sheet PivotUtilityComponents (hidden)
A1: Strategy | B1: (All) | E1: Y Axis Label: | F1: =("Aggregated Utility from " & 'Model Inputs'!D11 & " to " & 'Model Inputs'!F11) -> Aggregated Utility from 2016 to 2100 | H1: ="Components of Each Site's Utility, Strategy: "&B1 -> Components of Each Site's Utility, Strategy: (All)
A3: Sum of Value | B3: Column Labels
A4: Row Labels | B4: (blank) | C4: Carbon Sequestration | D4: Nitrogen Sequestration | E4: Phosphorus Sequestration | F4: Undeveloped Dry Land Recreation | G4: Marsh Land Recreation | H4: Natural Areas for Underserved Communities | I4: Nekton Habitat | J4: Habitat connectivity / Frag | K4: Flood Vulnerability Reduction | L4: Political/Cultural/Historic value | M4: General preservation of wetlands
A5: (blank)
A6: Hempstead Harbor | C6: 650.9228756 | D6: 726.410065 | E6: 718.3761667 | F6: 539.9194852 | G6: 816.4305727 | H6: 842.6891164 | I6: 504.4210747 | J6: 1271.187309 | K6: 4060.18459 | L6: 637.4159401 | M6: 1018.406199
A7: Seamans Neck Park | C7: 879.976604 | D7: 973.8377521 | E7: 953.195796 | F7: 609.7465175 | G7: 1127.819381 | H7: 1333.453071 | I7: 1528.949107 | J7: 1828.086012 | K7: 7538.571861 | L7: 1019.397632 | M7: 1537.409338
A8: Dosoris Pond/West Pond | C8: 1052.151423 | D8: 1214.302532 | E8: 1103.170962 | F8: 5606.86802 | G8: 1506.449439 | H8: 3311.765382 | I8: 1513.957568 | J8: 3436.963188 | K8: 2680.765209 | L8: 2189.006378 | M8: 3303.098749
A9: Marine Nature Study Area | C9: 2109.255623 | D9: 2010.184891 | E9: 1995.027763 | F9: 160.7585864 | G9: 2157.645813 | H9: 2399.747988 | I9: 2507.664241 | J9: 3049.050218 | K9: 10678.50485 | L9: 1925.323567 | M9: 3059.64997
A10: Lattingtown | C10: 2919.853587 | D10: 3309.606793 | E10: 3346.757873 | F10: 4110.356295 | G10: 3476.60652 | H10: 3603.143086 | I10: 4642.829625 | J10: 4272.038586 | K10: 3645.78235 | L10: 2492.070722 | M10: 4180.319511
A11: Cuba Middle and East Island | C11: 6777.226138 | D11: 6172.031422 | E11: 5968.454212 | F11: 3.860708032e-11 | G11: 8153.956412 | H11: 9773.769335 | I11: 18765.5802 | J11: 14314.48147 | K11: 6592.954154 | L11: 8258.357201 | M11: 15223.72459

Sheet Incremental Benefits Bar (hidden)
A1: Run Identification | B1: (All) | D1: ="Comparative Incremental Benefit of Adaptation Strategies by Site" -> Comparative Incremental Benefit of Adaptation Strategies by Site
A3: Average of Incremental Benefit | B3: Column Labels
A4: Row Labels | B4: Dosoris Pond/West Pond | C4: Lattingtown | D4: Hempstead Harbor | E4: Cuba Middle and East Island | F4: Marine Nature Study Area | G4: Seamans Neck Park | H4: Grand Total
A5: Migr. All Dry | B5: 2957.843578 | C5: 1295.052476 | D5: 1075.588064 | E5: 57.58395928 | F5: 445.6312561 | G5: 747.3501071 | H5: 1096.50824
A6: Migr. Undeveloped | B6: 2513.086224 | C6: 1236.004799 | D6: 353.9194815 | E6: 57.62692327 | F6: 431.6255249 | G6: 678.4337573 | H6: 878.4494517
A7: Restore to 1974 | B7: 520.275789 | C7: 1270.614956 | D7: 1871.637171 | E7: 2991.74219 | F7: 367.4015454 | G7: 279.3988948 | H7: 1216.845091
A8: Thin Layer Depo. | B8: 105.3114727 | C8: 0 | D8: 0 | E8: 546.8397437 | F8: 80.12574048 | G8: 47.18570981 | H8: 129.9104445
A9: Grand Total | B9: 1524.129266 | C9: 950.4180578 | D9: 825.2861792 | E9: 913.448204 | F9: 331.1960167 | G9: 438.0921173 | H9: 830.4283068

Sheet Loss Calculations Pivot
A1: Date | B1: (Multiple Items) | D1: DATA IN PIVOT TABLE IN HA
A3: Column Labels
B15: =B4 -> 0 | D15: =D4 -> 0 | F15: =F4 -> 0 | H15: =H4 -> 0 | J15: =J4 -> 0 | L15: =L4 -> 0
A16: =A9 -> 0 | B16: =B9+C9 -> 0 | D16: =D9+E9 -> 0 | F16: =F9+G9 -> 0 | H16: =H9+I9 -> 0 | J16: =J9+K9 -> 0 | L16: =L9+M9 -> 0
A17: acres | B17: =B16*2.47105 -> 0 | D17: =D16*2.47105 -> 0 | F17: =F16*2.47105 -> 0 | H17: =H16*2.47105 -> 0 | J17: =J16*2.47105 -> 0 | L17: =L16*2.47105 -> 0
A19: =A8 -> 0 | B19: =B8+C8 -> 0 | D19: =D8+E8 -> 0 | F19: =F8+G8 -> 0 | H19: =H8+I8 -> 0 | J19: =J8+K8 -> 0 | L19: =L8+M8 -> 0
A20: acres | B20: =B19*2.47105 -> 0 | D20: =D19*2.47105 -> 0 | F20: =F19*2.47105 -> 0 | H20: =H19*2.47105 -> 0 | J20: =J19*2.47105 -> 0 | L20: =L19*2.47105 -> 0
A22: acres to restore | B22: =B17-B20 -> 0 | D22: =D17-D20 -> 0 | F22: =F17-F20 -> 0 | H22: =H17-H20 -> 0 | J22: =J17-J20 -> 0 | L22: =L17-L20 -> 0
B26: Idlewild Inner and Outer | C26: 33.08945989
B27: Alley Creek, Queens | C27: 15.81632618
B28: Lemon Creek, Staten Island | C28: 6.292528825
B29: Pelham Bay Cove | C29: 9.260877637
B30: W.T. Davis | C30: 34.03043573
B31: Udall's Cove, Queens | C31: 7.866464123
B34: =B15 -> 0 | D34: =D15 -> 0 | F34: =F15 -> 0 | H34: =H15 -> 0 | J34: =J15 -> 0 | L34: =L15 -> 0
A35: Acres of Saltmarsh | B35: =B8*2.47105 -> 0 | D35: =D8*2.47105 -> 0 | F35: =F8*2.47105 -> 0 | H35: =H8*2.47105 -> 0 | J35: =J8*2.47105 -> 0 | L35: =L8*2.47105 -> 0
C38: Acres of Saltmarsh
B39: Idlewild Inner and Outer | C39: 80.06300842
B40: Alley Creek, Queens | C40: 21.95157267
B41: Lemon Creek, Staten Island | C41: 6.12721558
B42: Pelham Bay Cove | C42: 7.562154315
B43: W.T. Davis | C43: 44.01780207
B44: Udall's Cove, Queens | C44: 4.211410515

Sheet Benefits per Cost (hidden)
A1: Run Identification | B1: Default
A3: Sum of Benefit per unit cost | B3: Column Labels
A4: Row Labels | B4: Migr. All Dry | C4: Migr. Undeveloped | D4: No Migration | E4: Restore to 1974 | F4: Thin Layer Depo.
A5: Dosoris Pond/West Pond | B5: 12.92519066 | C5: 13.87060498 | D5: 0 | E5: 120.947219 | F5: 9.635046624
A6: Lattingtown | B6: 16.08726001 | C6: 17.04044574 | D6: 0 | E6: 78.53008441 | F6: 0
A7: Hempstead Harbor | B7: 20.32331982 | C7: 20.97586517 | D7: 0 | E7: 166.3032212 | F7: 0
A8: Cuba Middle and East Island | B8: 0 | C8: 0 | D8: 0 | E8: 78.37976619 | F8: 18.6775021
A9: Marine Nature Study Area | B9: 21.5893035 | C9: 22.97949974 | D9: 0 | E9: 151.8141918 | F9: 29.92705019
A10: Seamans Neck Park | B10: 17.34645176 | C10: 18.84940027 | D10: 0 | E10: 134.496569 | F10: 39.28041701

Sheet Incremental Benefits (hidden)
A1: Adaptation Strategy | B1: Migr. All Dry
A2: Run Identification | B2: (All) | D2: ="Incremental Benefit of '"&B1&"' Strategy" -> Incremental Benefit of 'Migr. All Dry' Strategy
A4: Row Labels | B4: Sum of Incremental Benefit
A5: Dosoris Pond/West Pond | B5: 2957.843578
A6: Lattingtown | B6: 1295.052476
A7: Hempstead Harbor | B7: 1075.588064
A8: Cuba Middle and East Island | B8: 57.58395928
A9: Marine Nature Study Area | B9: 445.6312561
A10: Seamans Neck Park | B10: 747.3501071
A11: Grand Total | B11: 6579.049441

Sheet DefaultInputs
I2: 1. Fill in relative ranks of ecosystem services - these weight the importance of each ecosystem service within the overall analysis. Enter zero if a service has no weight (this will negate all site-specific ranks for that service). The total does not have to equal 100.
I6: 2. Provide weights for each service at each site. Enter zero to give no weight, higher numbers to give more weight. The total does not have to equal 100.
A9: Ecosystem Service Valuation | I9: 3. Press the Calulate button to run the tool. Excel will temporarily freeze. See progress at the lower left of the window.
C11: Beginning Year: | D11: 2016 | E11: End Year: | F11: 2100
C15: Nutrient Sequestration | F15: Recreation | I15: Habitat | K15: Other
C16: Carbon Sequestration | D16: Nitrogen Sequestration | E16: Phosphorus Sequestration | F16: Dry-land Recreation | G16: Wetland Recreation | H16: Natural services to under-served communities | I16: Nekton habitat | J16: Habitat fragmentation/connectivity | K16: Flood Vulnerability Reduction | L16: Political/ Cultural/ Historic value | M16: General preservation of natural areas | N16: Total Relative Rank
B17: Ecoservice Relative Rank | C17: 7.167919799 | D17: 7.167919799 | E17: 7.167919799 | F17: 4.461152882 | G17: 9.072681704 | H17: 9.072681704 | I17: 9.072681704 | J17: 12.73182957 | K17: 14.48621554 | L17: 7.167919799 | M17: 12.43107769 | N17: 100
C18: Site-specific "Quality of Habitat," should not reflect the numbers of acres of a particular land-cover type
A19: Site 1 | B19: Dosoris Pond/West Pond | C19: 20.33 | D19: 23.67 | E19: 35 | F19: 7.67 | G19: 6.67 | H19: 7.67 | I19: 6 | J19: 6 | K19: 7.67 | L19: 9 | M19: 6
A20: Site 2 | B20: Lattingtown | C20: 30.33 | D20: 32 | E20: 47.5 | F20: 6.67 | G20: 6.33 | H20: 7.33 | I20: 9 | J20: 6.67 | K20: 7.33 | L20: 9 | M20: 6.67
A21: Site 3 | B21: Hempstead Harbor | C21: 28.67 | D21: 30.33 | E21: 45 | F21: 6.33 | G21: 6.67 | H21: 6.33 | I21: 6.5 | J21: 7 | K21: 7.33 | L21: 8.5 | M21: 6
A22: Site 4 | B22: Cuba Middle and East Island | C22: 27 | D22: 23.67 | E22: 35 | F22: 6.33 | G22: 6.33 | H22: 6 | I22: 10.5 | J22: 6.33 | K22: 4 | L22: 9 | M22: 7.33
A23: Site 5 | B23: Marine Nature Study Area | C23: 33.67 | D23: 30.33 | E23: 45 | F23: 6.33 | G23: 6.33 | H23: 6.67 | I23: 11 | J23: 6 | K23: 6 | L23: 9.5 | M23: 6.67
A24: Site 6 | B24: Seamans Neck Park | C24: 28.67 | D24: 30.33 | E24: 45 | F24: 7 | G24: 7 | H24: 7 | I24: 8.5 | J24: 7.33 | K24: 8 | L24: 9.5 | M24: 6.33
A25: Site 7
A26: Site 8
A27: Site 9
A28: Site 10
A29: Site 11
A30: Site 12
B44: Total spent: | C44: 168.67 | D44: 170.33 | E44: 252.5 | F44: 40.33 | G44: 39.33 | H44: 41 | I44: 51.5 | J44: 39.33 | K44: 40.33 | L44: 54.5 | M44: 39
B48: Discount Factors | C48: Discount Factors | G48: Discount Rate: | H48: 0
D49: Year | E49: Discount Factor
C50: Timestep 1 | D50: 2016 | E50: 1 | G50: 2016 | H50: 1
C51: Timestep 2 | D51: 2020 | E51: 1 | G51: 2020 | H51: 1
C52: Timestep 3 | D52: 2040 | E52: 1 | G52: 2040 | H52: 1
C53: Timestep 4 | D53: 2050 | E53: 1 | G53: 2050 | H53: 1
C54: Timestep 5 | D54: 2065 | E54: 1 | G54: 2065 | H54: 1
C55: Timestep 6 | D55: 2075 | E55: 1 | G55: 2075 | H55: 1
C56: Timestep 7 | D56: 2085 | E56: 1 | G56: 2085 | H56: 1
C57: Timestep 8 | D57: 2100 | E57: 1 | G57: 2100 | H57: 1
C58: Timestep 9
C59: Timestep 10 | G59: Example discount rate calcuation
D60: interpolates within up to 10 timesteps | G60: that can be copied into the discount
G61: factors table to the left.
C67: Adaptation Strategy Costs (millions of dollars per parcel) | J67: Supporting Data for cost calculations
C68: No Migration | D68: Migr. Undeveloped | E68: Migr. All Dry | F68: Restore to 1974 | G68: Thin Layer Depo. | P68: acres | S68: acres
B69: Cost Details | C69: no cost, existing marsh footprint | D69: purchase undeveloped land or easement when required | E69: purchase developed and undeveloped land when required | F69: marsh restoration costs | G69: thin layer deposition costs | J69: Acres Restored for 1974 | M69: Salt Marsh APPLIED in 2016 for Thin Layer Depo (acres) | P69: Avg Undeveloped Dry Land Converting to Wetland by 2100 | S69: Avg Developed Dry Land Converting to Wetland by 2100
A70: Site 1 | B70: Dosoris Pond/West Pond | C70: N / A | D70: 427.6468973 | E70: 524.163664 | F70: 4.301676328 | G70: 10.93004288 | J70: 6.890399372 | L70: Dosoris Pond/West Pond | M70: 19.89813013 | O70: Dosoris Pond/West Pond | P70: 60.39357397 | Q70: assume private; assume NYC price | S70: 11.91565021
A71: Site 2 | B71: Lattingtown | C71: N / A | D71: 171.2034633 | E71: 187.3389626 | F71: 16.17997696 | G71: 1 | J71: 25.91699016 | L71: Lattingtown | M71: 0.1729735 | O71: Lattingtown | P71: 24.17786517 | Q71: assume private; assume NYC price | S71: 1.992036957
A72: Site 3 | B72: Hempstead Harbor | C72: N / A | D72: 39.82519637 | E72: 112.8287485 | F72: 11.25436511 | G72: 1 | J72: 18.02717462 | L72: Hempstead Harbor | M72: 0.228572125 | O72: Hempstead Harbor | P72: 5.624233353 | Q72: assume private; assume NYC price | S72: 9.012784217
A73: Site 4 | B73: Cuba Middle and East Island | C73: N / A | D73: 0 | E73: 0 | F73: 38.16982794 | G73: 29.27799129 | J73: 61.14020173 | L73: Cuba Middle and East Island | M73: 53.3005485
A74: Site 5 | B74: Marine Nature Study Area | C74: N / A | D74: 44.33430342 | E74: 48.09721836 | F74: 2.420073783 | G74: 2.677368466 | J74: 3.876459687 | L74: Marine Nature Study Area | M74: 4.874146125 | O74: Marine Nature Study Area | P74: 6.261022937 | Q74: assume private; assume NYC price | S74: 0.4645574
A75: Site 6 | B75: Seamans Neck Park | C75: N / A | D75: 84.95388652 | E75: 99.31401058 | F75: 2.077368195 | G75: 1.201252772 | J75: 3.32751593 | L75: Seamans Neck Park | M75: 2.18687925 | O75: Seamans Neck Park | P75: 11.99744196 | Q75: assume private; assume NYC price | S75: 1.772854822
A76: Site 7
A77: Site 8
A78: Site 9
A79: Site 10
A80: Site 11
A81: Site 12
B85: Total Strategy Cost | C85: 0 | D85: 767.9637469 | E85: 971.7426041 | F85: 74.40328832 | G85: 46.08665541
B90: Site Name | C90: Historic Pct. Annual Marsh Loss (yr-1)
A91: Site 1 | B91: Dosoris Pond/West Pond | C91: 0.008792431328
A92: Site 2 | B92: Lattingtown | C92: 0.01558100538
A93: Site 3 | B93: Hempstead Harbor | C93: 0.04025657903
A94: Site 4 | B94: Cuba Middle and East Island | C94: 0.008020026263
A95: Site 5 | B95: Marine Nature Study Area | C95: 0.003017722115
A96: Site 6 | B96: Seamans Neck Park | C96: 0.004692800237
